{"text_format":"1","workbook":"xlsx","n_sheets":94,"sheets":["نموذج","المحذوفين ","العملاء","Sheet3","رضا جمعه حسين","حمدان","عمي حافظ العبد","ام سعودي","فتحى بردونه","ام ملك","مصطفي حسن","نوسة","مرات محمد احمد قياتي","مرات محمود عادل","د محمد احمد عبد الجواد ","احمد الجغل","كمال جمعه حسين","وائل خلف","نادر ابو الوفا","محمد نصر","ام مجدى راضى","فراج العزبة","مرات نجم","حماده محمد شلقامي","سعيد عدلى","ياسين عبد الله","وليد رجب","ناديه شقلوف","مرات طارق عبد الله","مرات عبد الحميد احمد","ام مطير","الديب","سحر","محمد رجب ابوطاقية ","عادل عاشور","احمد شعبان عبد العظيم","محمود عادل على","ناجي لطفى","مرات كمال عاشور","جمال محمد جاد","بنت الشيخ خيري","عبد الناصر ابو بكر","الحاج ابراهيم عيسى","وليد محمود","مرات بليغ عبد الله","الشيخ ربيع ابراهيم حمودة","كرامات","ام عمارمرات الشيخ عثمان","الشيخ خلف محروس","ام احمد نافع","محمود امين عبد الحفيظ","مرات سيف معتمد","محمد خميس","شيماء جمعه","مرات احمد محمد احمد الجزار","حسام النجار","خليفه كبدة","رقيه عونى","عرفه رجب فارس","ناجى محمد على","رضا محمود عبد الفتاح","محمد ابراهيم عمر","خيرى اسماعيل","ربيع محمود","مرات احمد خيرى","بثينه قياتى","اشرف عبد الرحمن","حسام الدكش","محمد جمال عبد العليم ","احمد الشيخ عيد ","محمود ممدوح","الشيخ حسان","ربيع هنداوى","محمد صبحى عبد التواب","ام الشيخ صلاح","ام جمال عبد العال","على عبد الله","محمد حمزة الشايب","عبد الرحمن احمد ","مرات صلاح محمود","احمد صالح حنظورة","احمد ابراهيم محمد","عبد الناصر جمال","نبيل مجدى ","محمد زغلول الميرى","عيد محمد عبد الوهاب","همت عبد الحميد","سعيد راضى","ام ياسين الجمال","ام خالد عربى ","عمرو محمد رجب","ربيع جمعه","محمد راضى عبد العليم","مرات استاذ عماد عبد السميع"],"not_rendered":{"charts":0,"images":0,"macros":1,"external_links":0,"defined_names":1,"comments":0,"pivot_tables":0},"unopened":[],"bounds":{"document_bytes":16777216,"sheet_cells":100000,"rows_first":2000,"rows_last":500,"rows_between":2000,"halvings":0,"cell_chars":16384,"cell_head_chars":4096},"cells_cut":0,"cells_raw":0,"read":"whole","date_system":"1900"}

{"sheet":"نموذج","index":0,"n_rows":34,"n_cols":10,"rows_kept":34,"cut":false,"hidden":false,"merged":[[2,0,3,0],[2,9,3,9],[2,5,2,8],[2,1,2,4],[0,6,1,6],[0,7,1,9],[0,2,1,5],[0,0,1,1]]}
["اسم\nالعميل",null,"محمد ابوحسام",null,null,null,"الرصيد  الحالى",2200]
[]
["م","مسحوبـــــــــــات",null,null,null,"تنزيـــــــــــــــــــــــــلات",null,null,null,"الرصيد"]
[null,"المبلغ","البيان","التاريخ","اليوم","المبلغ","البيان","التاريخ","اليوم"]
[1,{"$f":"H1","v":2200},"رصيد اول الفترة","2023-01-01",{"$f":"IF(D5=\"\",\"\",TEXT(D5,\"ddd\"))","v":"الأحد"},null,null,null,{"$f":"IF(H5=\"\",\"\",TEXT(H5,\"ddd\"))","v":""},{"$f":"B5-F5","v":2200}]
[2,null,null,null,{"$f":"IF(D6=\"\",\"\",TEXT(D6,\"ddd\"))","v":""},null,null,null,{"$f":"IF(H6=\"\",\"\",TEXT(H6,\"ddd\"))","v":""},{"$f":"J5+B6-F6","v":2200}]
[3,null,null,null,"",null,null,null,"",{"$f":"J6+B7-F7","v":2200}]
[4,null,null,null,"",null,null,null,"",2200]
[5,null,null,null,"",null,null,null,"",2200]
[6,null,null,null,"",null,null,null,"",2200]
[7,null,null,null,"",null,null,null,"",2200]
[8,null,null,null,"",null,null,null,"",2200]
[9,null,null,null,"",null,null,null,"",2200]
[10,null,null,null,"",null,null,null,"",2200]
[11,null,null,null,"",null,null,null,"",2200]
[12,null,null,null,"",null,null,null,"",2200]
[13,null,null,null,"",null,null,null,"",2200]
[14,null,null,null,"",null,null,null,"",2200]
[15,null,null,null,"",null,null,null,"",2200]
[16,null,null,null,"",null,null,null,"",2200]
[17,null,null,null,"",null,null,null,"",2200]
[18,null,null,null,"",null,null,null,"",2200]
[19,null,null,null,"",null,null,null,"",2200]
[20,null,null,null,"",null,null,null,"",2200]
[21,null,null,null,"",null,null,null,"",2200]
[22,null,null,null,"",null,null,null,"",2200]
[23,null,null,null,"",null,null,null,"",2200]
[24,null,null,null,"",null,null,null,"",2200]
[25,null,null,null,"",null,null,null,"",2200]
[26,null,null,null,"",null,null,null,"",2200]
[27,null,null,null,"",null,null,null,"",2200]
[28,null,null,null,"",null,null,null,"",2200]
[29,null,null,null,"",null,null,null,"",2200]
[30,null,null,null,"",null,null,null,"",2200]

{"sheet":"المحذوفين ","index":1,"n_rows":1,"n_cols":3,"rows_kept":1,"cut":false,"hidden":false,"merged":[]}
["اسم العميل ","الرصيد","تاريخ الحذف"]

{"sheet":"العملاء","index":2,"n_rows":103,"n_cols":5,"rows_kept":103,"cut":false,"hidden":false,"merged":[]}
[null,"كود العميل","كود العميل"," الاسم","الرصيد الحالى"]
[null,null,"رضا جمعه حسين"]
[null,null,"حمدان","نموذج"]
[null,null,"عمي حافظ العبد","العملاء"]
[null,null,"ام سعودي","Sheet3"]
[null,null,"فتحى بردونه","رضا جمعه حسين"]
[null,null,"ام ملك","حمدان"]
[null,null,"مصطفي حسن","عمي حافظ العبد"]
[null,null,"نوسة","ام سعودي"]
[null,null,"مرات محمد احمد قياتي","فتحى بردونه"]
[null,null,"مرات محمود عادل","ام ملك"]
[null,null,"د/ محمد احمد عبد الجواد","مصطفي حسن"]
[null,null,"احمد الجغل","نوسة"]
[null,null,"كمال جمعه حسين","مرات محمد احمد قياتي"]
[null,null,"وائل خلف","مرات محمود عادل"]
[null,null,"نادر ابو الوفا","د محمد احمد عبد الجواد "]
[null,null,"محمود عيسى حسن","احمد الجغل"]
[null,null,"محمد نصر","كمال جمعه حسين"]
[null,null,"ام مجدى راضى","وائل خلف"]
[null,null,"احمد محمد عبد الرحمن","نادر ابو الوفا"]
[null,null,"فراج العزبة","محمد نصر"]
[null,null,"مرات نجم","ام مجدى راضى"]
[null,null,"حماده محمد شلقامي","فراج العزبة"]
[null,null,"بنت عمى خليفه النوري","مرات نجم"]
[null,null,"سعيد عدلى","حماده محمد شلقامي"]
[null,null,"ياسين عبد الله","سعيد عدلى"]
[null,null,"محمود محمد الحنفى","ياسين عبد الله"]
[null,null,"ابو امير","وليد رجب"]
[null,null,"وليد رجب","ناديه شقلوف"]
[null,null,"ناديه شقلوف","مرات طارق عبد الله"]
[null,null,"مرات طارق عبد الله","مرات عبد الحميد احمد"]
[null,null,"مرات عبد الحميد احمد","ام مطير"]
[null,null,"ام مطير","الديب"]
[null,null,"الديب","سحر"]
[null,null,"سحر","محمد رجب ابوطاقية "]
[null,null,"محمد رجب ابوطاقية ","عادل عاشور"]
[null,null,"عادل عاشور","احمد شعبان عبد العظيم"]
[null,null,"احمد شعبان عبد العظيم","محمود عادل على"]
[null,null,"محمود عادل على","ناجي لطفى"]
[null,null,"محمد عدلى","مرات كمال عاشور"]
[null,null,"ناجي لطفى","جمال محمد جاد"]
[null,null,"مرات كمال عاشور","بنت الشيخ خيري"]
[null,null,"جمال محمد جاد","عبد الناصر ابو بكر"]
[null,null,"بنت الشيخ خيري","الحاج ابراهيم عيسى"]
[null,null,"عبد الناصر ابو بكر","وليد محمود"]
[null,null,"الحاج ابراهيم عيسى","مرات بليغ عبد الله"]
[null,null,"وليد محمود","الشيخ ربيع ابراهيم حمودة"]
[null,null,"مرات بليغ عبد الله","كرامات"]
[null,null,"الشيخ ربيع ابراهيم حمودة","ام عمارمرات الشيخ عثمان"]
[null,null,"كرامات","الشيخ خلف محروس"]
[null,null,"ام عمارمرات الشيخ عثمان","ام احمد نافع"]
[null,null,"الشيخ خلف محروس","محمود امين عبد الحفيظ"]
[null,null,"ام احمد نافع","مرات سيف معتمد"]
[null,null,"محمود امين عبد الحفيظ","محمد خميس"]
[null,null,"مرات سيف معتمد","شيماء جمعه"]
[null,null,"محمد خميس","مرات احمد محمد احمد الجزار"]
[null,null,"شيماء جمعه","حسام النجار"]
[null,null,"مرات احمد محمد احمد الجزار","خليفه كبدة"]
[null,null,"محمد","رقيه عونى"]
[null,null,"محمود","عرفه رجب فارس"]
[null,null,"حسام النجار","ناجى محمد على"]
[null,null,"خليفه كبدة","رضا محمود عبد الفتاح"]
[null,null,"رقيه عونى","محمد ابراهيم عمر"]
[null,null,"عرفه رجب فارس","خيرى اسماعيل"]
[null,null,"ناجى محمد على","ربيع محمود"]
[null,null,"رضا محمود عبد الفتاح","مرات احمد خيرى"]
[null,null,"محمد ابراهيم عمر","بثينه قياتى"]
[null,null,"خيرى اسماعيل","اشرف عبد الرحمن"]
[null,null,"ربيع محمود","حسام الدكش"]
[null,null,"مرات احمد خيرى","محمد جمال عبد العليم "]
[null,null,"بثينه قياتى","احمد الشيخ عيد "]
[null,null,"اشرف عبد الرحمن","محمود ممدوح"]
[null,null,"حسام الدكش","الشيخ حسان"]
[null,null,"محمد جمال عبد العليم ","ربيع هنداوى"]
[null,null,"احمد الشيخ عيد ","محمد صبحى عبد التواب"]
[null,null,"محمود ممدوح","ام الشيخ صلاح"]
[null,null,"الشيخ حسان","ام جمال عبد العال"]
[null,null,"ربيع هنداوى","على عبد الله"]
[null,null,"محمد صبحى عبد التواب","محمد حمزة الشايب"]
[null,null,"ام الشيخ صلاح","عبد الرحمن احمد "]
[null,null,"ام جمال عبد العال","مرات صلاح محمود"]
[null,null,"الشيخ حسان ربيع","احمد صالح حنظورة"]
[null,null,"على عبد الله","احمد ابراهيم محمد"]
[null,null,"محمد حمزة الشايب","عبد الناصر جمال"]
[null,null,"عبد الرحمن احمد ","نبيل مجدى "]
[null,null,"مرات صلاح محمود","محمد زغلول الميرى"]
[null,null,"احمد صالح حنظورة","عيد محمد عبد الوهاب"]
[null,null,"احمد ابراهيم محمد","همت عبد الحميد"]
[null,null,"عبد الناصر جمال","سعيد راضى"]
[null,null,"نبيل مجدى ","ام ياسين الجمال"]
[null,null,"محمد زغلول الميرى","ام خالد عربى "]
[null,null,"عيد محمد عبد الوهاب","عمرو محمد رجب"]
[null,null,"همت عبد الحميد","ربيع جمعه"]
[null,null,"سعيد راضى","محمد راضى عبد العليم"]
[null,null,"ام ياسين الجمال","مرات استاذ عماد عبد السميع"]
[null,null,"ام خالد عربى "]
[null,null,"عمرو محمد رجب"]
[null,null,"ربيع جمعه"]
[null,null,"محمد راضى عبد العليم"]
[null,null,"مرات استاذ عماد عبد السميع"]
[null,null,"محمد احمد"]
[null,null,"محمد احمد عبد العزيز"]
[null,null,"محمد ابوحسام"]

{"sheet":"Sheet3","index":3,"n_rows":281,"n_cols":2,"rows_kept":281,"cut":false,"hidden":false,"merged":[[0,0,1,0],[0,1,1,1]]}
["اسم العميل","الرصيد الحالى"]
[]
[{"$f":"العملاء!#REF!","v":{"$error":"#REF!"}},{"$f":"INDIRECT(\"'\"&A3&\"'!h1\")","v":{"$error":"#REF!"}}]
[{"$f":"العملاء!#REF!","v":{"$error":"#REF!"}},{"$f":"INDIRECT(\"'\"&A4&\"'!h1\")","v":{"$error":"#REF!"}}]
[{"$f":"العملاء!#REF!","v":{"$error":"#REF!"}},{"$error":"#REF!"}]
[{"$f":"العملاء!#REF!","v":{"$error":"#REF!"}},{"$error":"#REF!"}]
[{"$f":"العملاء!#REF!","v":{"$error":"#REF!"}},{"$error":"#REF!"}]
[{"$f":"العملاء!#REF!","v":{"$error":"#REF!"}},{"$error":"#REF!"}]
[{"$f":"العملاء!#REF!","v":{"$error":"#REF!"}},{"$error":"#REF!"}]
[{"$f":"العملاء!#REF!","v":{"$error":"#REF!"}},{"$error":"#REF!"}]
[{"$f":"العملاء!#REF!","v":{"$error":"#REF!"}},{"$error":"#REF!"}]
[{"$f":"العملاء!#REF!","v":{"$error":"#REF!"}},{"$error":"#REF!"}]
[{"$f":"العملاء!#REF!","v":{"$error":"#REF!"}},{"$error":"#REF!"}]
[{"$f":"العملاء!#REF!","v":{"$error":"#REF!"}},{"$error":"#REF!"}]
[{"$f":"العملاء!#REF!","v":{"$error":"#REF!"}},{"$error":"#REF!"}]
[{"$f":"العملاء!#REF!","v":{"$error":"#REF!"}},{"$error":"#REF!"}]
[{"$f":"العملاء!#REF!","v":{"$error":"#REF!"}},{"$error":"#REF!"}]
[{"$f":"العملاء!#REF!","v":{"$error":"#REF!"}},{"$error":"#REF!"}]
[{"$f":"العملاء!#REF!","v":{"$error":"#REF!"}},{"$error":"#REF!"}]
[{"$f":"العملاء!#REF!","v":{"$error":"#REF!"}},{"$error":"#REF!"}]
[{"$f":"العملاء!#REF!","v":{"$error":"#REF!"}},{"$error":"#REF!"}]
[{"$f":"العملاء!#REF!","v":{"$error":"#REF!"}},{"$error":"#REF!"}]
[{"$f":"العملاء!#REF!","v":{"$error":"#REF!"}},{"$error":"#REF!"}]
[{"$f":"العملاء!#REF!","v":{"$error":"#REF!"}},{"$error":"#REF!"}]
[{"$f":"العملاء!#REF!","v":{"$error":"#REF!"}},{"$error":"#REF!"}]
[{"$f":"العملاء!#REF!","v":{"$error":"#REF!"}},{"$error":"#REF!"}]
[{"$f":"العملاء!#REF!","v":{"$error":"#REF!"}},{"$error":"#REF!"}]
[{"$f":"العملاء!#REF!","v":{"$error":"#REF!"}},{"$error":"#REF!"}]
[{"$f":"العملاء!#REF!","v":{"$error":"#REF!"}},{"$error":"#REF!"}]
[{"$f":"العملاء!#REF!","v":{"$error":"#REF!"}},{"$error":"#REF!"}]
[{"$f":"العملاء!#REF!","v":{"$error":"#REF!"}},{"$error":"#REF!"}]
[{"$f":"العملاء!#REF!","v":{"$error":"#REF!"}},{"$error":"#REF!"}]
[{"$f":"العملاء!#REF!","v":{"$error":"#REF!"}},{"$error":"#REF!"}]
[{"$f":"العملاء!#REF!","v":{"$error":"#REF!"}},{"$error":"#REF!"}]
[{"$f":"العملاء!#REF!","v":{"$error":"#REF!"}},{"$error":"#REF!"}]
[{"$f":"العملاء!#REF!","v":{"$error":"#REF!"}},{"$error":"#REF!"}]
[{"$f":"العملاء!#REF!","v":{"$error":"#REF!"}},{"$error":"#REF!"}]
[{"$f":"العملاء!#REF!","v":{"$error":"#REF!"}},{"$error":"#REF!"}]
[{"$f":"العملاء!#REF!","v":{"$error":"#REF!"}},{"$error":"#REF!"}]
[{"$f":"العملاء!#REF!","v":{"$error":"#REF!"}},{"$error":"#REF!"}]
[{"$f":"العملاء!#REF!","v":{"$error":"#REF!"}},{"$error":"#REF!"}]
[{"$f":"العملاء!#REF!","v":{"$error":"#REF!"}},{"$error":"#REF!"}]
[{"$f":"العملاء!#REF!","v":{"$error":"#REF!"}},{"$error":"#REF!"}]
[{"$f":"العملاء!#REF!","v":{"$error":"#REF!"}},{"$error":"#REF!"}]
[{"$f":"العملاء!#REF!","v":{"$error":"#REF!"}},{"$error":"#REF!"}]
[{"$f":"العملاء!#REF!","v":{"$error":"#REF!"}},{"$error":"#REF!"}]
[{"$f":"العملاء!#REF!","v":{"$error":"#REF!"}},{"$error":"#REF!"}]
[{"$f":"العملاء!#REF!","v":{"$error":"#REF!"}},{"$error":"#REF!"}]
[{"$f":"العملاء!#REF!","v":{"$error":"#REF!"}},{"$error":"#REF!"}]
[{"$f":"العملاء!#REF!","v":{"$error":"#REF!"}},{"$error":"#REF!"}]
[{"$f":"العملاء!#REF!","v":{"$error":"#REF!"}},{"$error":"#REF!"}]
[{"$f":"العملاء!#REF!","v":{"$error":"#REF!"}},{"$error":"#REF!"}]
[{"$f":"العملاء!#REF!","v":{"$error":"#REF!"}},{"$error":"#REF!"}]
[{"$f":"العملاء!#REF!","v":{"$error":"#REF!"}},{"$error":"#REF!"}]
[{"$f":"العملاء!#REF!","v":{"$error":"#REF!"}},{"$error":"#REF!"}]
[{"$f":"العملاء!#REF!","v":{"$error":"#REF!"}},{"$error":"#REF!"}]
[{"$f":"العملاء!#REF!","v":{"$error":"#REF!"}},{"$error":"#REF!"}]
[{"$f":"العملاء!#REF!","v":{"$error":"#REF!"}},{"$error":"#REF!"}]
[{"$f":"العملاء!#REF!","v":{"$error":"#REF!"}},{"$error":"#REF!"}]
[{"$f":"العملاء!#REF!","v":{"$error":"#REF!"}},{"$error":"#REF!"}]
[{"$f":"العملاء!#REF!","v":{"$error":"#REF!"}},{"$error":"#REF!"}]
[{"$f":"العملاء!#REF!","v":{"$error":"#REF!"}},{"$error":"#REF!"}]
[{"$f":"العملاء!#REF!","v":{"$error":"#REF!"}},{"$error":"#REF!"}]
[{"$f":"العملاء!#REF!","v":{"$error":"#REF!"}},{"$error":"#REF!"}]
[{"$f":"العملاء!#REF!","v":{"$error":"#REF!"}},{"$error":"#REF!"}]
[{"$f":"العملاء!#REF!","v":{"$error":"#REF!"}},{"$error":"#REF!"}]
[{"$f":"العملاء!#REF!","v":{"$error":"#REF!"}},{"$error":"#REF!"}]
[{"$f":"العملاء!#REF!","v":{"$error":"#REF!"}},{"$f":"INDIRECT(\"'\"&A68&\"'!h1\")","v":{"$error":"#REF!"}}]
[{"$f":"العملاء!#REF!","v":{"$error":"#REF!"}},{"$error":"#REF!"}]
[{"$f":"العملاء!#REF!","v":{"$error":"#REF!"}},{"$error":"#REF!"}]
[{"$f":"العملاء!#REF!","v":{"$error":"#REF!"}},{"$error":"#REF!"}]
[{"$f":"العملاء!#REF!","v":{"$error":"#REF!"}},{"$error":"#REF!"}]
[{"$f":"العملاء!#REF!","v":{"$error":"#REF!"}},{"$error":"#REF!"}]
[{"$f":"العملاء!#REF!","v":{"$error":"#REF!"}},{"$error":"#REF!"}]
[{"$f":"العملاء!#REF!","v":{"$error":"#REF!"}},{"$error":"#REF!"}]
[{"$f":"العملاء!#REF!","v":{"$error":"#REF!"}},{"$error":"#REF!"}]
[{"$f":"العملاء!#REF!","v":{"$error":"#REF!"}},{"$error":"#REF!"}]
[{"$f":"العملاء!#REF!","v":{"$error":"#REF!"}},{"$error":"#REF!"}]
[{"$f":"العملاء!#REF!","v":{"$error":"#REF!"}},{"$error":"#REF!"}]
[{"$f":"العملاء!#REF!","v":{"$error":"#REF!"}},{"$error":"#REF!"}]
[{"$f":"العملاء!#REF!","v":{"$error":"#REF!"}},{"$error":"#REF!"}]
[{"$f":"العملاء!#REF!","v":{"$error":"#REF!"}},{"$error":"#REF!"}]
[{"$f":"العملاء!#REF!","v":{"$error":"#REF!"}},{"$error":"#REF!"}]
[{"$f":"العملاء!#REF!","v":{"$error":"#REF!"}},{"$error":"#REF!"}]
[{"$f":"العملاء!#REF!","v":{"$error":"#REF!"}},{"$error":"#REF!"}]
[{"$f":"العملاء!#REF!","v":{"$error":"#REF!"}},{"$error":"#REF!"}]
[{"$f":"العملاء!#REF!","v":{"$error":"#REF!"}},{"$error":"#REF!"}]
[{"$f":"العملاء!#REF!","v":{"$error":"#REF!"}},{"$error":"#REF!"}]
[{"$f":"العملاء!#REF!","v":{"$error":"#REF!"}},{"$error":"#REF!"}]
[{"$f":"العملاء!#REF!","v":{"$error":"#REF!"}},{"$error":"#REF!"}]
[{"$f":"العملاء!#REF!","v":{"$error":"#REF!"}},{"$error":"#REF!"}]
[{"$f":"العملاء!#REF!","v":{"$error":"#REF!"}},{"$error":"#REF!"}]
[{"$f":"العملاء!#REF!","v":{"$error":"#REF!"}},{"$error":"#REF!"}]
[{"$f":"العملاء!#REF!","v":{"$error":"#REF!"}},{"$error":"#REF!"}]
[{"$f":"العملاء!#REF!","v":{"$error":"#REF!"}},{"$error":"#REF!"}]
[{"$f":"العملاء!#REF!","v":{"$error":"#REF!"}},{"$error":"#REF!"}]
[{"$f":"العملاء!#REF!","v":{"$error":"#REF!"}},{"$error":"#REF!"}]
[{"$f":"العملاء!#REF!","v":{"$error":"#REF!"}},{"$error":"#REF!"}]
[{"$f":"العملاء!#REF!","v":{"$error":"#REF!"}},{"$error":"#REF!"}]
[{"$f":"العملاء!#REF!","v":{"$error":"#REF!"}},{"$error":"#REF!"}]
[{"$f":"العملاء!#REF!","v":{"$error":"#REF!"}},{"$error":"#REF!"}]
[{"$f":"العملاء!#REF!","v":{"$error":"#REF!"}},{"$error":"#REF!"}]
[{"$f":"العملاء!#REF!","v":{"$error":"#REF!"}},{"$error":"#REF!"}]
[null,{"$error":"#REF!"}]
[null,{"$error":"#REF!"}]
[null,{"$error":"#REF!"}]
[null,{"$error":"#REF!"}]
[null,{"$error":"#REF!"}]
[null,{"$error":"#REF!"}]
[null,{"$error":"#REF!"}]
[null,{"$error":"#REF!"}]
[null,{"$error":"#REF!"}]
[null,{"$error":"#REF!"}]
[null,{"$error":"#REF!"}]
[null,{"$error":"#REF!"}]
[null,{"$error":"#REF!"}]
[null,{"$error":"#REF!"}]
[null,{"$error":"#REF!"}]
[null,{"$error":"#REF!"}]
[null,{"$error":"#REF!"}]
[null,{"$error":"#REF!"}]
[null,{"$error":"#REF!"}]
[null,{"$error":"#REF!"}]
[null,{"$error":"#REF!"}]
[null,{"$error":"#REF!"}]
[null,{"$error":"#REF!"}]
[null,{"$error":"#REF!"}]
[null,{"$error":"#REF!"}]
[null,{"$error":"#REF!"}]
[null,{"$error":"#REF!"}]
[null,{"$error":"#REF!"}]
[null,{"$f":"INDIRECT(\"'\"&A132&\"'!h1\")","v":{"$error":"#REF!"}}]
[null,{"$error":"#REF!"}]
[null,{"$error":"#REF!"}]
[null,{"$error":"#REF!"}]
[null,{"$error":"#REF!"}]
[null,{"$error":"#REF!"}]
[null,{"$error":"#REF!"}]
[null,{"$error":"#REF!"}]
[null,{"$error":"#REF!"}]
[null,{"$error":"#REF!"}]
[null,{"$error":"#REF!"}]
[null,{"$error":"#REF!"}]
[null,{"$error":"#REF!"}]
[null,{"$error":"#REF!"}]
[null,{"$error":"#REF!"}]
[null,{"$error":"#REF!"}]
[null,{"$error":"#REF!"}]
[null,{"$error":"#REF!"}]
[null,{"$error":"#REF!"}]
[null,{"$error":"#REF!"}]
[null,{"$error":"#REF!"}]
[null,{"$error":"#REF!"}]
[null,{"$error":"#REF!"}]
[null,{"$error":"#REF!"}]
[null,{"$error":"#REF!"}]
[null,{"$error":"#REF!"}]
[null,{"$error":"#REF!"}]
[null,{"$error":"#REF!"}]
[null,{"$error":"#REF!"}]
[null,{"$error":"#REF!"}]
[null,{"$error":"#REF!"}]
[null,{"$error":"#REF!"}]
[null,{"$error":"#REF!"}]
[null,{"$error":"#REF!"}]
[null,{"$error":"#REF!"}]
[null,{"$error":"#REF!"}]
[null,{"$error":"#REF!"}]
[null,{"$error":"#REF!"}]
[null,{"$error":"#REF!"}]
[null,{"$error":"#REF!"}]
[null,{"$error":"#REF!"}]
[null,{"$error":"#REF!"}]
[null,{"$error":"#REF!"}]
[null,{"$error":"#REF!"}]
[null,{"$error":"#REF!"}]
[null,{"$error":"#REF!"}]
[null,{"$error":"#REF!"}]
[null,{"$error":"#REF!"}]
[null,{"$error":"#REF!"}]
[null,{"$error":"#REF!"}]
[null,{"$error":"#REF!"}]
[null,{"$error":"#REF!"}]
[null,{"$error":"#REF!"}]
[null,{"$error":"#REF!"}]
[null,{"$error":"#REF!"}]
[null,{"$error":"#REF!"}]
[null,{"$error":"#REF!"}]
[null,{"$error":"#REF!"}]
[null,{"$error":"#REF!"}]
[null,{"$error":"#REF!"}]
[null,{"$error":"#REF!"}]
[null,{"$error":"#REF!"}]
[null,{"$error":"#REF!"}]
[null,{"$error":"#REF!"}]
[null,{"$f":"INDIRECT(\"'\"&A196&\"'!h1\")","v":{"$error":"#REF!"}}]
[null,{"$error":"#REF!"}]
[null,{"$error":"#REF!"}]
[null,{"$error":"#REF!"}]
[null,{"$error":"#REF!"}]
[null,{"$error":"#REF!"}]
[null,{"$error":"#REF!"}]
[null,{"$error":"#REF!"}]
[null,{"$error":"#REF!"}]
[null,{"$error":"#REF!"}]
[null,{"$error":"#REF!"}]
[null,{"$error":"#REF!"}]
[null,{"$error":"#REF!"}]
[null,{"$error":"#REF!"}]
[null,{"$error":"#REF!"}]
[null,{"$error":"#REF!"}]
[null,{"$error":"#REF!"}]
[null,{"$error":"#REF!"}]
[null,{"$error":"#REF!"}]
[null,{"$error":"#REF!"}]
[null,{"$error":"#REF!"}]
[null,{"$error":"#REF!"}]
[null,{"$error":"#REF!"}]
[null,{"$error":"#REF!"}]
[null,{"$error":"#REF!"}]
[null,{"$error":"#REF!"}]
[null,{"$error":"#REF!"}]
[null,{"$error":"#REF!"}]
[null,{"$error":"#REF!"}]
[null,{"$error":"#REF!"}]
[null,{"$error":"#REF!"}]
[null,{"$error":"#REF!"}]
[null,{"$error":"#REF!"}]
[null,{"$error":"#REF!"}]
[null,{"$error":"#REF!"}]
[null,{"$error":"#REF!"}]
[null,{"$error":"#REF!"}]
[null,{"$error":"#REF!"}]
[null,{"$error":"#REF!"}]
[null,{"$error":"#REF!"}]
[null,{"$error":"#REF!"}]
[null,{"$error":"#REF!"}]
[null,{"$error":"#REF!"}]
[null,{"$error":"#REF!"}]
[null,{"$error":"#REF!"}]
[null,{"$error":"#REF!"}]
[null,{"$error":"#REF!"}]
[null,{"$error":"#REF!"}]
[null,{"$error":"#REF!"}]
[null,{"$error":"#REF!"}]
[null,{"$error":"#REF!"}]
[null,{"$error":"#REF!"}]
[null,{"$error":"#REF!"}]
[null,{"$error":"#REF!"}]
[null,{"$error":"#REF!"}]
[null,{"$error":"#REF!"}]
[null,{"$error":"#REF!"}]
[null,{"$error":"#REF!"}]
[null,{"$error":"#REF!"}]
[null,{"$error":"#REF!"}]
[null,{"$error":"#REF!"}]
[null,{"$error":"#REF!"}]
[null,{"$error":"#REF!"}]
[null,{"$error":"#REF!"}]
[null,{"$f":"INDIRECT(\"'\"&A260&\"'!h1\")","v":{"$error":"#REF!"}}]
[null,{"$error":"#REF!"}]
[null,{"$error":"#REF!"}]
[null,{"$error":"#REF!"}]
[null,{"$error":"#REF!"}]
[null,{"$error":"#REF!"}]
[null,{"$error":"#REF!"}]
[null,{"$error":"#REF!"}]
[null,{"$error":"#REF!"}]
[null,{"$error":"#REF!"}]
[null,{"$error":"#REF!"}]
[null,{"$error":"#REF!"}]
[null,{"$error":"#REF!"}]
[null,{"$error":"#REF!"}]
[null,{"$error":"#REF!"}]
[null,{"$error":"#REF!"}]
[null,{"$error":"#REF!"}]
[null,{"$error":"#REF!"}]
[null,{"$error":"#REF!"}]
[null,{"$error":"#REF!"}]
[null,{"$error":"#REF!"}]
[null,{"$error":"#REF!"}]

{"sheet":"رضا جمعه حسين","index":4,"n_rows":34,"n_cols":10,"rows_kept":34,"cut":false,"hidden":false,"merged":[[2,9,3,9],[0,6,1,6],[0,7,1,9],[0,0,0,1],[0,2,0,5],[1,0,1,1],[2,0,3,0],[2,1,2,4],[2,5,2,8]]}
["اسم العميل",null,"رضا جمعه حسين",null,null,null,"الرصيد  الحالى",{"$f":"SUM(B5:B34)-SUM(F5:F34)","v":1598.55}]
["كود العميل"]
["م","مسحوبـــــــــــات",null,null,null,"تنزيـــــــــــــــــــــــــلات",null,null,null,"الرصيد"]
[null,"المبلغ","البيان","التاريخ","اليوم","المبلغ","البيان","التاريخ","اليوم"]
[1,1598.55,null,null,{"$f":"IF(D5=\"\",\"\",TEXT(D5,\"ddd\"))","v":""},null,null,null,{"$f":"IF(H5=\"\",\"\",TEXT(H5,\"ddd\"))","v":""},{"$f":"B5-F5","v":1598.55}]
[2,null,null,null,null,null,null,null,{"$f":"IF(H6=\"\",\"\",TEXT(H6,\"ddd\"))","v":""},{"$f":"J5+B6-F6","v":1598.55}]
[3,null,null,null,{"$f":"IF(D7=\"\",\"\",TEXT(D7,\"ddd\"))","v":""},null,null,null,"",{"$f":"J6+B7-F7","v":1598.55}]
[4,null,null,null,"",null,null,null,"",1598.55]
[5,null,null,null,"",null,null,null,"",1598.55]
[6,null,null,null,"",null,null,null,"",1598.55]
[7,null,null,null,"",null,null,null,"",1598.55]
[8,null,null,null,"",null,null,null,"",1598.55]
[9,null,null,null,"",null,null,null,"",1598.55]
[10,null,null,null,"",null,null,null,"",1598.55]
[11,null,null,null,"",null,null,null,"",1598.55]
[12,null,null,null,"",null,null,null,"",1598.55]
[13,null,null,null,"",null,null,null,"",1598.55]
[14,null,null,null,"",null,null,null,"",1598.55]
[15,null,null,null,"",null,null,null,"",1598.55]
[16,null,null,null,"",null,null,null,"",1598.55]
[17,null,null,null,"",null,null,null,"",1598.55]
[18,null,null,null,"",null,null,null,"",1598.55]
[19,null,null,null,"",null,null,null,"",1598.55]
[20,null,null,null,"",null,null,null,"",1598.55]
[21,null,null,null,"",null,null,null,"",1598.55]
[22,null,null,null,"",null,null,null,"",1598.55]
[23,null,null,null,"",null,null,null,"",1598.55]
[24,null,null,null,"",null,null,null,"",1598.55]
[25,null,null,null,"",null,null,null,"",1598.55]
[26,null,null,null,"",null,null,null,"",1598.55]
[27,null,null,null,"",null,null,null,"",1598.55]
[28,null,null,null,"",null,null,null,"",1598.55]
[29,null,null,null,"",null,null,null,"",1598.55]
[30,null,null,null,"",null,null,null,"",1598.55]

{"sheet":"حمدان","index":5,"n_rows":34,"n_cols":10,"rows_kept":34,"cut":false,"hidden":false,"merged":[[2,0,3,0],[2,1,2,4],[2,5,2,8],[2,9,3,9],[0,0,0,1],[0,2,0,5],[0,6,1,6],[0,7,1,9],[1,0,1,1]]}
["اسم العميل",null,"حمدان",null,null,null,"الرصيد  الحالى",{"$f":"J34","v":111.5}]
["كود العميل"]
["م","مسحوبـــــــــــات",null,null,null,"تنزيـــــــــــــــــــــــــلات",null,null,null,"الرصيد"]
[null,"المبلغ","البيان","التاريخ","اليوم","المبلغ","البيان","التاريخ","اليوم"]
[1,111.5,null,null,{"$f":"IF(D5=\"\",\"\",TEXT(D5,\"ddd\"))","v":""},null,null,null,{"$f":"IF(H5=\"\",\"\",TEXT(H5,\"ddd\"))","v":""},{"$f":"B5-F5","v":111.5}]
[2,null,null,null,null,null,null,null,{"$f":"IF(H6=\"\",\"\",TEXT(H6,\"ddd\"))","v":""},{"$f":"J5+B6-F6","v":111.5}]
[3,null,null,null,{"$f":"IF(D7=\"\",\"\",TEXT(D7,\"ddd\"))","v":""},null,null,null,"",{"$f":"J6+B7-F7","v":111.5}]
[4,null,null,null,"",null,null,null,"",111.5]
[5,null,null,null,"",null,null,null,"",111.5]
[6,null,null,null,"",null,null,null,"",111.5]
[7,null,null,null,"",null,null,null,"",111.5]
[8,null,null,null,"",null,null,null,"",111.5]
[9,null,null,null,"",null,null,null,"",111.5]
[10,null,null,null,"",null,null,null,"",111.5]
[11,null,null,null,"",null,null,null,"",111.5]
[12,null,null,null,"",null,null,null,"",111.5]
[13,null,null,null,"",null,null,null,"",111.5]
[14,null,null,null,"",null,null,null,"",111.5]
[15,null,null,null,"",null,null,null,"",111.5]
[16,null,null,null,"",null,null,null,"",111.5]
[17,null,null,null,"",null,null,null,"",111.5]
[18,null,null,null,"",null,null,null,"",111.5]
[19,null,null,null,"",null,null,null,"",111.5]
[20,null,null,null,"",null,null,null,"",111.5]
[21,null,null,null,"",null,null,null,"",111.5]
[22,null,null,null,"",null,null,null,"",111.5]
[23,null,null,null,"",null,null,null,"",111.5]
[24,null,null,null,"",null,null,null,"",111.5]
[25,null,null,null,"",null,null,null,"",111.5]
[26,null,null,null,"",null,null,null,"",111.5]
[27,null,null,null,"",null,null,null,"",111.5]
[28,null,null,null,"",null,null,null,"",111.5]
[29,null,null,null,"",null,null,null,"",111.5]
[30,null,null,null,"",null,null,null,"",111.5]

{"sheet":"عمي حافظ العبد","index":6,"n_rows":34,"n_cols":10,"rows_kept":34,"cut":false,"hidden":false,"merged":[[2,0,3,0],[2,1,2,4],[2,5,2,8],[2,9,3,9],[0,0,0,1],[0,2,0,5],[0,6,1,6],[0,7,1,9],[1,0,1,1]]}
["اسم العميل",null,"عمي حافظ العبد",null,null,null,"الرصيد  الحالى",{"$f":"J34","v":280}]
["كود العميل"]
["م","مسحوبـــــــــــات",null,null,null,"تنزيـــــــــــــــــــــــــلات",null,null,null,"الرصيد"]
[null,"المبلغ","البيان","التاريخ","اليوم","المبلغ","البيان","التاريخ","اليوم"]
[1,280,null,null,{"$f":"IF(D5=\"\",\"\",TEXT(D5,\"ddd\"))","v":""},null,null,null,{"$f":"IF(H5=\"\",\"\",TEXT(H5,\"ddd\"))","v":""},{"$f":"B5-F5","v":280}]
[2,null,null,null,null,null,null,null,{"$f":"IF(H6=\"\",\"\",TEXT(H6,\"ddd\"))","v":""},{"$f":"J5+B6-F6","v":280}]
[3,null,null,null,{"$f":"IF(D7=\"\",\"\",TEXT(D7,\"ddd\"))","v":""},null,null,null,"",{"$f":"J6+B7-F7","v":280}]
[4,null,null,null,"",null,null,null,"",280]
[5,null,null,null,"",null,null,null,"",280]
[6,null,null,null,"",null,null,null,"",280]
[7,null,null,null,"",null,null,null,"",280]
[8,null,null,null,"",null,null,null,"",280]
[9,null,null,null,"",null,null,null,"",280]
[10,null,null,null,"",null,null,null,"",280]
[11,null,null,null,"",null,null,null,"",280]
[12,null,null,null,"",null,null,null,"",280]
[13,null,null,null,"",null,null,null,"",280]
[14,null,null,null,"",null,null,null,"",280]
[15,null,null,null,"",null,null,null,"",280]
[16,null,null,null,"",null,null,null,"",280]
[17,null,null,null,"",null,null,null,"",280]
[18,null,null,null,"",null,null,null,"",280]
[19,null,null,null,"",null,null,null,"",280]
[20,null,null,null,"",null,null,null,"",280]
[21,null,null,null,"",null,null,null,"",280]
[22,null,null,null,"",null,null,null,"",280]
[23,null,null,null,"",null,null,null,"",280]
[24,null,null,null,"",null,null,null,"",280]
[25,null,null,null,"",null,null,null,"",280]
[26,null,null,null,"",null,null,null,"",280]
[27,null,null,null,"",null,null,null,"",280]
[28,null,null,null,"",null,null,null,"",280]
[29,null,null,null,"",null,null,null,"",280]
[30,null,null,null,"",null,null,null,"",280]

{"sheet":"ام سعودي","index":7,"n_rows":34,"n_cols":10,"rows_kept":34,"cut":false,"hidden":false,"merged":[[2,0,3,0],[2,1,2,4],[2,5,2,8],[2,9,3,9],[0,0,0,1],[0,2,0,5],[0,6,1,6],[0,7,1,9],[1,0,1,1]]}
["اسم العميل",null,"ام سعودي",null,null,null,"الرصيد  الحالى",{"$f":"J34","v":80.5}]
["كود العميل"]
["م","مسحوبـــــــــــات",null,null,null,"تنزيـــــــــــــــــــــــــلات",null,null,null,"الرصيد"]
[null,"المبلغ","البيان","التاريخ","اليوم","المبلغ","البيان","التاريخ","اليوم"]
[1,80.5,null,null,{"$f":"IF(D5=\"\",\"\",TEXT(D5,\"ddd\"))","v":""},null,null,null,{"$f":"IF(H5=\"\",\"\",TEXT(H5,\"ddd\"))","v":""},{"$f":"B5-F5","v":80.5}]
[2,null,null,null,null,null,null,null,{"$f":"IF(H6=\"\",\"\",TEXT(H6,\"ddd\"))","v":""},{"$f":"J5+B6-F6","v":80.5}]
[3,null,null,null,{"$f":"IF(D7=\"\",\"\",TEXT(D7,\"ddd\"))","v":""},null,null,null,"",{"$f":"J6+B7-F7","v":80.5}]
[4,null,null,null,"",null,null,null,"",80.5]
[5,null,null,null,"",null,null,null,"",80.5]
[6,null,null,null,"",null,null,null,"",80.5]
[7,null,null,null,"",null,null,null,"",80.5]
[8,null,null,null,"",null,null,null,"",80.5]
[9,null,null,null,"",null,null,null,"",80.5]
[10,null,null,null,"",null,null,null,"",80.5]
[11,null,null,null,"",null,null,null,"",80.5]
[12,null,null,null,"",null,null,null,"",80.5]
[13,null,null,null,"",null,null,null,"",80.5]
[14,null,null,null,"",null,null,null,"",80.5]
[15,null,null,null,"",null,null,null,"",80.5]
[16,null,null,null,"",null,null,null,"",80.5]
[17,null,null,null,"",null,null,null,"",80.5]
[18,null,null,null,"",null,null,null,"",80.5]
[19,null,null,null,"",null,null,null,"",80.5]
[20,null,null,null,"",null,null,null,"",80.5]
[21,null,null,null,"",null,null,null,"",80.5]
[22,null,null,null,"",null,null,null,"",80.5]
[23,null,null,null,"",null,null,null,"",80.5]
[24,null,null,null,"",null,null,null,"",80.5]
[25,null,null,null,"",null,null,null,"",80.5]
[26,null,null,null,"",null,null,null,"",80.5]
[27,null,null,null,"",null,null,null,"",80.5]
[28,null,null,null,"",null,null,null,"",80.5]
[29,null,null,null,"",null,null,null,"",80.5]
[30,null,null,null,"",null,null,null,"",80.5]

{"sheet":"فتحى بردونه","index":8,"n_rows":34,"n_cols":10,"rows_kept":34,"cut":false,"hidden":false,"merged":[[2,0,3,0],[2,1,2,4],[2,5,2,8],[2,9,3,9],[0,0,0,1],[0,2,0,5],[0,6,1,6],[0,7,1,9],[1,0,1,1]]}
["اسم العميل",null,"فتحى بردونه",null,null,null,"الرصيد  الحالى",{"$f":"J34","v":23.5}]
["كود العميل"]
["م","مسحوبـــــــــــات",null,null,null,"تنزيـــــــــــــــــــــــــلات",null,null,null,"الرصيد"]
[null,"المبلغ","البيان","التاريخ","اليوم","المبلغ","البيان","التاريخ","اليوم"]
[1,23.5,null,null,{"$f":"IF(D5=\"\",\"\",TEXT(D5,\"ddd\"))","v":""},null,null,null,{"$f":"IF(H5=\"\",\"\",TEXT(H5,\"ddd\"))","v":""},{"$f":"B5-F5","v":23.5}]
[2,null,null,null,null,null,null,null,{"$f":"IF(H6=\"\",\"\",TEXT(H6,\"ddd\"))","v":""},{"$f":"J5+B6-F6","v":23.5}]
[3,null,null,null,{"$f":"IF(D7=\"\",\"\",TEXT(D7,\"ddd\"))","v":""},null,null,null,"",{"$f":"J6+B7-F7","v":23.5}]
[4,null,null,null,"",null,null,null,"",23.5]
[5,null,null,null,"",null,null,null,"",23.5]
[6,null,null,null,"",null,null,null,"",23.5]
[7,null,null,null,"",null,null,null,"",23.5]
[8,null,null,null,"",null,null,null,"",23.5]
[9,null,null,null,"",null,null,null,"",23.5]
[10,null,null,null,"",null,null,null,"",23.5]
[11,null,null,null,"",null,null,null,"",23.5]
[12,null,null,null,"",null,null,null,"",23.5]
[13,null,null,null,"",null,null,null,"",23.5]
[14,null,null,null,"",null,null,null,"",23.5]
[15,null,null,null,"",null,null,null,"",23.5]
[16,null,null,null,"",null,null,null,"",23.5]
[17,null,null,null,"",null,null,null,"",23.5]
[18,null,null,null,"",null,null,null,"",23.5]
[19,null,null,null,"",null,null,null,"",23.5]
[20,null,null,null,"",null,null,null,"",23.5]
[21,null,null,null,"",null,null,null,"",23.5]
[22,null,null,null,"",null,null,null,"",23.5]
[23,null,null,null,"",null,null,null,"",23.5]
[24,null,null,null,"",null,null,null,"",23.5]
[25,null,null,null,"",null,null,null,"",23.5]
[26,null,null,null,"",null,null,null,"",23.5]
[27,null,null,null,"",null,null,null,"",23.5]
[28,null,null,null,"",null,null,null,"",23.5]
[29,null,null,null,"",null,null,null,"",23.5]
[30,null,null,null,"",null,null,null,"",23.5]

{"sheet":"ام ملك","index":9,"n_rows":34,"n_cols":10,"rows_kept":34,"cut":false,"hidden":false,"merged":[[2,0,3,0],[2,1,2,4],[2,5,2,8],[2,9,3,9],[0,0,0,1],[0,2,0,5],[0,6,1,6],[0,7,1,9],[1,0,1,1]]}
["اسم العميل",null,"ام ملك",null,null,null,"الرصيد  الحالى",{"$f":"J34","v":192.5}]
["كود العميل"]
["م","مسحوبـــــــــــات",null,null,null,"تنزيـــــــــــــــــــــــــلات",null,null,null,"الرصيد"]
[null,"المبلغ","البيان","التاريخ","اليوم","المبلغ","البيان","التاريخ","اليوم"]
[1,192.5,null,null,{"$f":"IF(D5=\"\",\"\",TEXT(D5,\"ddd\"))","v":""},null,null,null,{"$f":"IF(H5=\"\",\"\",TEXT(H5,\"ddd\"))","v":""},{"$f":"B5-F5","v":192.5}]
[2,null,null,null,null,null,null,null,{"$f":"IF(H6=\"\",\"\",TEXT(H6,\"ddd\"))","v":""},{"$f":"J5+B6-F6","v":192.5}]
[3,null,null,null,{"$f":"IF(D7=\"\",\"\",TEXT(D7,\"ddd\"))","v":""},null,null,null,"",{"$f":"J6+B7-F7","v":192.5}]
[4,null,null,null,"",null,null,null,"",192.5]
[5,null,null,null,"",null,null,null,"",192.5]
[6,null,null,null,"",null,null,null,"",192.5]
[7,null,null,null,"",null,null,null,"",192.5]
[8,null,null,null,"",null,null,null,"",192.5]
[9,null,null,null,"",null,null,null,"",192.5]
[10,null,null,null,"",null,null,null,"",192.5]
[11,null,null,null,"",null,null,null,"",192.5]
[12,null,null,null,"",null,null,null,"",192.5]
[13,null,null,null,"",null,null,null,"",192.5]
[14,null,null,null,"",null,null,null,"",192.5]
[15,null,null,null,"",null,null,null,"",192.5]
[16,null,null,null,"",null,null,null,"",192.5]
[17,null,null,null,"",null,null,null,"",192.5]
[18,null,null,null,"",null,null,null,"",192.5]
[19,null,null,null,"",null,null,null,"",192.5]
[20,null,null,null,"",null,null,null,"",192.5]
[21,null,null,null,"",null,null,null,"",192.5]
[22,null,null,null,"",null,null,null,"",192.5]
[23,null,null,null,"",null,null,null,"",192.5]
[24,null,null,null,"",null,null,null,"",192.5]
[25,null,null,null,"",null,null,null,"",192.5]
[26,null,null,null,"",null,null,null,"",192.5]
[27,null,null,null,"",null,null,null,"",192.5]
[28,null,null,null,"",null,null,null,"",192.5]
[29,null,null,null,"",null,null,null,"",192.5]
[30,null,null,null,"",null,null,null,"",192.5]

{"sheet":"مصطفي حسن","index":10,"n_rows":34,"n_cols":10,"rows_kept":34,"cut":false,"hidden":false,"merged":[[2,0,3,0],[2,1,2,4],[2,5,2,8],[2,9,3,9],[0,0,0,1],[0,2,0,5],[0,6,1,6],[0,7,1,9],[1,0,1,1]]}
["اسم العميل",null,"مصطفي حسن",null,null,null,"الرصيد  الحالى",{"$f":"J34","v":229}]
["كود العميل"]
["م","مسحوبـــــــــــات",null,null,null,"تنزيـــــــــــــــــــــــــلات",null,null,null,"الرصيد"]
[null,"المبلغ","البيان","التاريخ","اليوم","المبلغ","البيان","التاريخ","اليوم"]
[1,229,null,null,{"$f":"IF(D5=\"\",\"\",TEXT(D5,\"ddd\"))","v":""},null,null,null,{"$f":"IF(H5=\"\",\"\",TEXT(H5,\"ddd\"))","v":""},{"$f":"B5-F5","v":229}]
[2,null,null,null,null,null,null,null,{"$f":"IF(H6=\"\",\"\",TEXT(H6,\"ddd\"))","v":""},{"$f":"J5+B6-F6","v":229}]
[3,null,null,null,{"$f":"IF(D7=\"\",\"\",TEXT(D7,\"ddd\"))","v":""},null,null,null,"",{"$f":"J6+B7-F7","v":229}]
[4,null,null,null,"",null,null,null,"",229]
[5,null,null,null,"",null,null,null,"",229]
[6,null,null,null,"",null,null,null,"",229]
[7,null,null,null,"",null,null,null,"",229]
[8,null,null,null,"",null,null,null,"",229]
[9,null,null,null,"",null,null,null,"",229]
[10,null,null,null,"",null,null,null,"",229]
[11,null,null,null,"",null,null,null,"",229]
[12,null,null,null,"",null,null,null,"",229]
[13,null,null,null,"",null,null,null,"",229]
[14,null,null,null,"",null,null,null,"",229]
[15,null,null,null,"",null,null,null,"",229]
[16,null,null,null,"",null,null,null,"",229]
[17,null,null,null,"",null,null,null,"",229]
[18,null,null,null,"",null,null,null,"",229]
[19,null,null,null,"",null,null,null,"",229]
[20,null,null,null,"",null,null,null,"",229]
[21,null,null,null,"",null,null,null,"",229]
[22,null,null,null,"",null,null,null,"",229]
[23,null,null,null,"",null,null,null,"",229]
[24,null,null,null,"",null,null,null,"",229]
[25,null,null,null,"",null,null,null,"",229]
[26,null,null,null,"",null,null,null,"",229]
[27,null,null,null,"",null,null,null,"",229]
[28,null,null,null,"",null,null,null,"",229]
[29,null,null,null,"",null,null,null,"",229]
[30,null,null,null,"",null,null,null,"",229]

{"sheet":"نوسة","index":11,"n_rows":34,"n_cols":10,"rows_kept":34,"cut":false,"hidden":false,"merged":[[2,0,3,0],[2,1,2,4],[2,5,2,8],[2,9,3,9],[0,0,0,1],[0,2,0,5],[0,6,1,6],[0,7,1,9],[1,0,1,1]]}
["اسم العميل",null,"نوسة",null,null,null,"الرصيد  الحالى",{"$f":"J34","v":340}]
["كود العميل"]
["م","مسحوبـــــــــــات",null,null,null,"تنزيـــــــــــــــــــــــــلات",null,null,null,"الرصيد"]
[null,"المبلغ","البيان","التاريخ","اليوم","المبلغ","البيان","التاريخ","اليوم"]
[1,340,null,null,{"$f":"IF(D5=\"\",\"\",TEXT(D5,\"ddd\"))","v":""},null,null,null,{"$f":"IF(H5=\"\",\"\",TEXT(H5,\"ddd\"))","v":""},{"$f":"B5-F5","v":340}]
[2,null,null,null,null,null,null,null,{"$f":"IF(H6=\"\",\"\",TEXT(H6,\"ddd\"))","v":""},{"$f":"J5+B6-F6","v":340}]
[3,null,null,null,{"$f":"IF(D7=\"\",\"\",TEXT(D7,\"ddd\"))","v":""},null,null,null,"",{"$f":"J6+B7-F7","v":340}]
[4,null,null,null,"",null,null,null,"",340]
[5,null,null,null,"",null,null,null,"",340]
[6,null,null,null,"",null,null,null,"",340]
[7,null,null,null,"",null,null,null,"",340]
[8,null,null,null,"",null,null,null,"",340]
[9,null,null,null,"",null,null,null,"",340]
[10,null,null,null,"",null,null,null,"",340]
[11,null,null,null,"",null,null,null,"",340]
[12,null,null,null,"",null,null,null,"",340]
[13,null,null,null,"",null,null,null,"",340]
[14,null,null,null,"",null,null,null,"",340]
[15,null,null,null,"",null,null,null,"",340]
[16,null,null,null,"",null,null,null,"",340]
[17,null,null,null,"",null,null,null,"",340]
[18,null,null,null,"",null,null,null,"",340]
[19,null,null,null,"",null,null,null,"",340]
[20,null,null,null,"",null,null,null,"",340]
[21,null,null,null,"",null,null,null,"",340]
[22,null,null,null,"",null,null,null,"",340]
[23,null,null,null,"",null,null,null,"",340]
[24,null,null,null,"",null,null,null,"",340]
[25,null,null,null,"",null,null,null,"",340]
[26,null,null,null,"",null,null,null,"",340]
[27,null,null,null,"",null,null,null,"",340]
[28,null,null,null,"",null,null,null,"",340]
[29,null,null,null,"",null,null,null,"",340]
[30,null,null,null,"",null,null,null,"",340]

{"sheet":"مرات محمد احمد قياتي","index":12,"n_rows":34,"n_cols":10,"rows_kept":34,"cut":false,"hidden":false,"merged":[[2,0,3,0],[2,1,2,4],[2,5,2,8],[2,9,3,9],[0,0,0,1],[0,2,0,5],[0,6,1,6],[0,7,1,9],[1,0,1,1]]}
["اسم العميل",null,"مرات محمد احمد قياتي",null,null,null,"الرصيد  الحالى",{"$f":"J34","v":126.5}]
["كود العميل"]
["م","مسحوبـــــــــــات",null,null,null,"تنزيـــــــــــــــــــــــــلات",null,null,null,"الرصيد"]
[null,"المبلغ","البيان","التاريخ","اليوم","المبلغ","البيان","التاريخ","اليوم"]
[1,126.5,null,null,{"$f":"IF(D5=\"\",\"\",TEXT(D5,\"ddd\"))","v":""},null,null,null,{"$f":"IF(H5=\"\",\"\",TEXT(H5,\"ddd\"))","v":""},{"$f":"B5-F5","v":126.5}]
[2,null,null,null,null,null,null,null,{"$f":"IF(H6=\"\",\"\",TEXT(H6,\"ddd\"))","v":""},{"$f":"J5+B6-F6","v":126.5}]
[3,null,null,null,{"$f":"IF(D7=\"\",\"\",TEXT(D7,\"ddd\"))","v":""},null,null,null,"",{"$f":"J6+B7-F7","v":126.5}]
[4,null,null,null,"",null,null,null,"",126.5]
[5,null,null,null,"",null,null,null,"",126.5]
[6,null,null,null,"",null,null,null,"",126.5]
[7,null,null,null,"",null,null,null,"",126.5]
[8,null,null,null,"",null,null,null,"",126.5]
[9,null,null,null,"",null,null,null,"",126.5]
[10,null,null,null,"",null,null,null,"",126.5]
[11,null,null,null,"",null,null,null,"",126.5]
[12,null,null,null,"",null,null,null,"",126.5]
[13,null,null,null,"",null,null,null,"",126.5]
[14,null,null,null,"",null,null,null,"",126.5]
[15,null,null,null,"",null,null,null,"",126.5]
[16,null,null,null,"",null,null,null,"",126.5]
[17,null,null,null,"",null,null,null,"",126.5]
[18,null,null,null,"",null,null,null,"",126.5]
[19,null,null,null,"",null,null,null,"",126.5]
[20,null,null,null,"",null,null,null,"",126.5]
[21,null,null,null,"",null,null,null,"",126.5]
[22,null,null,null,"",null,null,null,"",126.5]
[23,null,null,null,"",null,null,null,"",126.5]
[24,null,null,null,"",null,null,null,"",126.5]
[25,null,null,null,"",null,null,null,"",126.5]
[26,null,null,null,"",null,null,null,"",126.5]
[27,null,null,null,"",null,null,null,"",126.5]
[28,null,null,null,"",null,null,null,"",126.5]
[29,null,null,null,"",null,null,null,"",126.5]
[30,null,null,null,"",null,null,null,"",126.5]

{"sheet":"مرات محمود عادل","index":13,"n_rows":34,"n_cols":10,"rows_kept":34,"cut":false,"hidden":false,"merged":[[2,0,3,0],[2,1,2,4],[2,5,2,8],[2,9,3,9],[0,0,0,1],[0,2,0,5],[0,6,1,6],[0,7,1,9],[1,0,1,1]]}
["اسم العميل",null,"مرات محمود عادل",null,null,null,"الرصيد  الحالى",{"$f":"J34","v":1474.75}]
["كود العميل"]
["م","مسحوبـــــــــــات",null,null,null,"تنزيـــــــــــــــــــــــــلات",null,null,null,"الرصيد"]
[null,"المبلغ","البيان","التاريخ","اليوم","المبلغ","البيان","التاريخ","اليوم"]
[1,1474.75,null,null,{"$f":"IF(D5=\"\",\"\",TEXT(D5,\"ddd\"))","v":""},null,null,null,{"$f":"IF(H5=\"\",\"\",TEXT(H5,\"ddd\"))","v":""},{"$f":"B5-F5","v":1474.75}]
[2,null,null,null,null,null,null,null,{"$f":"IF(H6=\"\",\"\",TEXT(H6,\"ddd\"))","v":""},{"$f":"J5+B6-F6","v":1474.75}]
[3,null,null,null,{"$f":"IF(D7=\"\",\"\",TEXT(D7,\"ddd\"))","v":""},null,null,null,"",{"$f":"J6+B7-F7","v":1474.75}]
[4,null,null,null,"",null,null,null,"",1474.75]
[5,null,null,null,"",null,null,null,"",1474.75]
[6,null,null,null,"",null,null,null,"",1474.75]
[7,null,null,null,"",null,null,null,"",1474.75]
[8,null,null,null,"",null,null,null,"",1474.75]
[9,null,null,null,"",null,null,null,"",1474.75]
[10,null,null,null,"",null,null,null,"",1474.75]
[11,null,null,null,"",null,null,null,"",1474.75]
[12,null,null,null,"",null,null,null,"",1474.75]
[13,null,null,null,"",null,null,null,"",1474.75]
[14,null,null,null,"",null,null,null,"",1474.75]
[15,null,null,null,"",null,null,null,"",1474.75]
[16,null,null,null,"",null,null,null,"",1474.75]
[17,null,null,null,"",null,null,null,"",1474.75]
[18,null,null,null,"",null,null,null,"",1474.75]
[19,null,null,null,"",null,null,null,"",1474.75]
[20,null,null,null,"",null,null,null,"",1474.75]
[21,null,null,null,"",null,null,null,"",1474.75]
[22,null,null,null,"",null,null,null,"",1474.75]
[23,null,null,null,"",null,null,null,"",1474.75]
[24,null,null,null,"",null,null,null,"",1474.75]
[25,null,null,null,"",null,null,null,"",1474.75]
[26,null,null,null,"",null,null,null,"",1474.75]
[27,null,null,null,"",null,null,null,"",1474.75]
[28,null,null,null,"",null,null,null,"",1474.75]
[29,null,null,null,"",null,null,null,"",1474.75]
[30,null,null,null,"",null,null,null,"",1474.75]

{"sheet":"د محمد احمد عبد الجواد ","index":14,"n_rows":34,"n_cols":10,"rows_kept":34,"cut":false,"hidden":false,"merged":[[2,0,3,0],[2,1,2,4],[2,5,2,8],[2,9,3,9],[0,0,0,1],[0,2,0,5],[0,6,1,6],[0,7,1,9],[1,0,1,1]]}
["اسم العميل",null,"د/ محمد احمد عبد الجواد",null,null,null,"الرصيد  الحالى",{"$f":"J34","v":135}]
["كود العميل"]
["م","مسحوبـــــــــــات",null,null,null,"تنزيـــــــــــــــــــــــــلات",null,null,null,"الرصيد"]
[null,"المبلغ","البيان","التاريخ","اليوم","المبلغ","البيان","التاريخ","اليوم"]
[1,135,null,null,{"$f":"IF(D5=\"\",\"\",TEXT(D5,\"ddd\"))","v":""},null,null,null,{"$f":"IF(H5=\"\",\"\",TEXT(H5,\"ddd\"))","v":""},{"$f":"B5-F5","v":135}]
[2,null,null,null,null,null,null,null,{"$f":"IF(H6=\"\",\"\",TEXT(H6,\"ddd\"))","v":""},{"$f":"J5+B6-F6","v":135}]
[3,null,null,null,{"$f":"IF(D7=\"\",\"\",TEXT(D7,\"ddd\"))","v":""},null,null,null,"",{"$f":"J6+B7-F7","v":135}]
[4,null,null,null,"",null,null,null,"",135]
[5,null,null,null,"",null,null,null,"",135]
[6,null,null,null,"",null,null,null,"",135]
[7,null,null,null,"",null,null,null,"",135]
[8,null,null,null,"",null,null,null,"",135]
[9,null,null,null,"",null,null,null,"",135]
[10,null,null,null,"",null,null,null,"",135]
[11,null,null,null,"",null,null,null,"",135]
[12,null,null,null,"",null,null,null,"",135]
[13,null,null,null,"",null,null,null,"",135]
[14,null,null,null,"",null,null,null,"",135]
[15,null,null,null,"",null,null,null,"",135]
[16,null,null,null,"",null,null,null,"",135]
[17,null,null,null,"",null,null,null,"",135]
[18,null,null,null,"",null,null,null,"",135]
[19,null,null,null,"",null,null,null,"",135]
[20,null,null,null,"",null,null,null,"",135]
[21,null,null,null,"",null,null,null,"",135]
[22,null,null,null,"",null,null,null,"",135]
[23,null,null,null,"",null,null,null,"",135]
[24,null,null,null,"",null,null,null,"",135]
[25,null,null,null,"",null,null,null,"",135]
[26,null,null,null,"",null,null,null,"",135]
[27,null,null,null,"",null,null,null,"",135]
[28,null,null,null,"",null,null,null,"",135]
[29,null,null,null,"",null,null,null,"",135]
[30,null,null,null,"",null,null,null,"",135]

{"sheet":"احمد الجغل","index":15,"n_rows":34,"n_cols":10,"rows_kept":34,"cut":false,"hidden":false,"merged":[[2,0,3,0],[2,1,2,4],[2,5,2,8],[2,9,3,9],[0,0,0,1],[0,2,0,5],[0,6,1,6],[0,7,1,9],[1,0,1,1]]}
["اسم العميل",null,"احمد الجغل",null,null,null,"الرصيد  الحالى",{"$f":"J34","v":1584.75}]
["كود العميل"]
["م","مسحوبـــــــــــات",null,null,null,"تنزيـــــــــــــــــــــــــلات",null,null,null,"الرصيد"]
[null,"المبلغ","البيان","التاريخ","اليوم","المبلغ","البيان","التاريخ","اليوم"]
[1,1584.75,null,null,{"$f":"IF(D5=\"\",\"\",TEXT(D5,\"ddd\"))","v":""},null,null,null,{"$f":"IF(H5=\"\",\"\",TEXT(H5,\"ddd\"))","v":""},{"$f":"B5-F5","v":1584.75}]
[2,null,null,null,null,null,null,null,{"$f":"IF(H6=\"\",\"\",TEXT(H6,\"ddd\"))","v":""},{"$f":"J5+B6-F6","v":1584.75}]
[3,null,null,null,{"$f":"IF(D7=\"\",\"\",TEXT(D7,\"ddd\"))","v":""},null,null,null,"",{"$f":"J6+B7-F7","v":1584.75}]
[4,null,null,null,"",null,null,null,"",1584.75]
[5,null,null,null,"",null,null,null,"",1584.75]
[6,null,null,null,"",null,null,null,"",1584.75]
[7,null,null,null,"",null,null,null,"",1584.75]
[8,null,null,null,"",null,null,null,"",1584.75]
[9,null,null,null,"",null,null,null,"",1584.75]
[10,null,null,null,"",null,null,null,"",1584.75]
[11,null,null,null,"",null,null,null,"",1584.75]
[12,null,null,null,"",null,null,null,"",1584.75]
[13,null,null,null,"",null,null,null,"",1584.75]
[14,null,null,null,"",null,null,null,"",1584.75]
[15,null,null,null,"",null,null,null,"",1584.75]
[16,null,null,null,"",null,null,null,"",1584.75]
[17,null,null,null,"",null,null,null,"",1584.75]
[18,null,null,null,"",null,null,null,"",1584.75]
[19,null,null,null,"",null,null,null,"",1584.75]
[20,null,null,null,"",null,null,null,"",1584.75]
[21,null,null,null,"",null,null,null,"",1584.75]
[22,null,null,null,"",null,null,null,"",1584.75]
[23,null,null,null,"",null,null,null,"",1584.75]
[24,null,null,null,"",null,null,null,"",1584.75]
[25,null,null,null,"",null,null,null,"",1584.75]
[26,null,null,null,"",null,null,null,"",1584.75]
[27,null,null,null,"",null,null,null,"",1584.75]
[28,null,null,null,"",null,null,null,"",1584.75]
[29,null,null,null,"",null,null,null,"",1584.75]
[30,null,null,null,"",null,null,null,"",1584.75]

{"sheet":"كمال جمعه حسين","index":16,"n_rows":34,"n_cols":10,"rows_kept":34,"cut":false,"hidden":false,"merged":[[2,0,3,0],[2,1,2,4],[2,5,2,8],[2,9,3,9],[0,0,0,1],[0,2,1,5],[0,6,1,6],[0,7,1,9],[1,0,1,1]]}
["اسم العميل",null,"كمال جمعه حسين",null,null,null,"الرصيد  الحالى",{"$f":"J34","v":135.5}]
["كود العميل"]
["م","مسحوبـــــــــــات",null,null,null,"تنزيـــــــــــــــــــــــــلات",null,null,null,"الرصيد"]
[null,"المبلغ","البيان","التاريخ","اليوم","المبلغ","البيان","التاريخ","اليوم"]
[1,135.5,null,null,{"$f":"IF(D5=\"\",\"\",TEXT(D5,\"ddd\"))","v":""},null,null,null,{"$f":"IF(H5=\"\",\"\",TEXT(H5,\"ddd\"))","v":""},{"$f":"B5-F5","v":135.5}]
[2,null,null,null,null,null,null,null,{"$f":"IF(H6=\"\",\"\",TEXT(H6,\"ddd\"))","v":""},{"$f":"J5+B6-F6","v":135.5}]
[3,null,null,null,{"$f":"IF(D7=\"\",\"\",TEXT(D7,\"ddd\"))","v":""},null,null,null,"",{"$f":"J6+B7-F7","v":135.5}]
[4,null,null,null,"",null,null,null,"",135.5]
[5,null,null,null,"",null,null,null,"",135.5]
[6,null,null,null,"",null,null,null,"",135.5]
[7,null,null,null,"",null,null,null,"",135.5]
[8,null,null,null,"",null,null,null,"",135.5]
[9,null,null,null,"",null,null,null,"",135.5]
[10,null,null,null,"",null,null,null,"",135.5]
[11,null,null,null,"",null,null,null,"",135.5]
[12,null,null,null,"",null,null,null,"",135.5]
[13,null,null,null,"",null,null,null,"",135.5]
[14,null,null,null,"",null,null,null,"",135.5]
[15,null,null,null,"",null,null,null,"",135.5]
[16,null,null,null,"",null,null,null,"",135.5]
[17,null,null,null,"",null,null,null,"",135.5]
[18,null,null,null,"",null,null,null,"",135.5]
[19,null,null,null,"",null,null,null,"",135.5]
[20,null,null,null,"",null,null,null,"",135.5]
[21,null,null,null,"",null,null,null,"",135.5]
[22,null,null,null,"",null,null,null,"",135.5]
[23,null,null,null,"",null,null,null,"",135.5]
[24,null,null,null,"",null,null,null,"",135.5]
[25,null,null,null,"",null,null,null,"",135.5]
[26,null,null,null,"",null,null,null,"",135.5]
[27,null,null,null,"",null,null,null,"",135.5]
[28,null,null,null,"",null,null,null,"",135.5]
[29,null,null,null,"",null,null,null,"",135.5]
[30,null,null,null,"",null,null,null,"",135.5]

{"sheet":"وائل خلف","index":17,"n_rows":34,"n_cols":10,"rows_kept":34,"cut":false,"hidden":false,"merged":[[2,0,3,0],[2,1,2,4],[2,5,2,8],[2,9,3,9],[0,0,0,1],[0,2,1,5],[0,6,1,6],[0,7,1,9],[1,0,1,1]]}
["اسم العميل",null,"وائل خلف",null,null,null,"الرصيد  الحالى",{"$f":"J34","v":651.25}]
["كود العميل"]
["م","مسحوبـــــــــــات",null,null,null,"تنزيـــــــــــــــــــــــــلات",null,null,null,"الرصيد"]
[null,"المبلغ","البيان","التاريخ","اليوم","المبلغ","البيان","التاريخ","اليوم"]
[1,651.25,null,null,{"$f":"IF(D5=\"\",\"\",TEXT(D5,\"ddd\"))","v":""},null,null,null,{"$f":"IF(H5=\"\",\"\",TEXT(H5,\"ddd\"))","v":""},{"$f":"B5-F5","v":651.25}]
[2,null,null,null,null,null,null,null,{"$f":"IF(H6=\"\",\"\",TEXT(H6,\"ddd\"))","v":""},{"$f":"J5+B6-F6","v":651.25}]
[3,null,null,null,{"$f":"IF(D7=\"\",\"\",TEXT(D7,\"ddd\"))","v":""},null,null,null,"",{"$f":"J6+B7-F7","v":651.25}]
[4,null,null,null,"",null,null,null,"",651.25]
[5,null,null,null,"",null,null,null,"",651.25]
[6,null,null,null,"",null,null,null,"",651.25]
[7,null,null,null,"",null,null,null,"",651.25]
[8,null,null,null,"",null,null,null,"",651.25]
[9,null,null,null,"",null,null,null,"",651.25]
[10,null,null,null,"",null,null,null,"",651.25]
[11,null,null,null,"",null,null,null,"",651.25]
[12,null,null,null,"",null,null,null,"",651.25]
[13,null,null,null,"",null,null,null,"",651.25]
[14,null,null,null,"",null,null,null,"",651.25]
[15,null,null,null,"",null,null,null,"",651.25]
[16,null,null,null,"",null,null,null,"",651.25]
[17,null,null,null,"",null,null,null,"",651.25]
[18,null,null,null,"",null,null,null,"",651.25]
[19,null,null,null,"",null,null,null,"",651.25]
[20,null,null,null,"",null,null,null,"",651.25]
[21,null,null,null,"",null,null,null,"",651.25]
[22,null,null,null,"",null,null,null,"",651.25]
[23,null,null,null,"",null,null,null,"",651.25]
[24,null,null,null,"",null,null,null,"",651.25]
[25,null,null,null,"",null,null,null,"",651.25]
[26,null,null,null,"",null,null,null,"",651.25]
[27,null,null,null,"",null,null,null,"",651.25]
[28,null,null,null,"",null,null,null,"",651.25]
[29,null,null,null,"",null,null,null,"",651.25]
[30,null,null,null,"",null,null,null,"",651.25]

{"sheet":"نادر ابو الوفا","index":18,"n_rows":34,"n_cols":10,"rows_kept":34,"cut":false,"hidden":false,"merged":[[2,0,3,0],[2,1,2,4],[2,5,2,8],[2,9,3,9],[0,0,0,1],[0,2,1,5],[0,6,1,6],[0,7,1,9],[1,0,1,1]]}
["اسم العميل",null,"نادر ابو الوفا",null,null,null,"الرصيد  الحالى",{"$f":"J34","v":264.25}]
["كود العميل"]
["م","مسحوبـــــــــــات",null,null,null,"تنزيـــــــــــــــــــــــــلات",null,null,null,"الرصيد"]
[null,"المبلغ","البيان","التاريخ","اليوم","المبلغ","البيان","التاريخ","اليوم"]
[1,264.25,null,null,{"$f":"IF(D5=\"\",\"\",TEXT(D5,\"ddd\"))","v":""},null,null,null,{"$f":"IF(H5=\"\",\"\",TEXT(H5,\"ddd\"))","v":""},{"$f":"B5-F5","v":264.25}]
[2,null,null,null,null,null,null,null,{"$f":"IF(H6=\"\",\"\",TEXT(H6,\"ddd\"))","v":""},{"$f":"J5+B6-F6","v":264.25}]
[3,null,null,null,{"$f":"IF(D7=\"\",\"\",TEXT(D7,\"ddd\"))","v":""},null,null,null,"",{"$f":"J6+B7-F7","v":264.25}]
[4,null,null,null,"",null,null,null,"",264.25]
[5,null,null,null,"",null,null,null,"",264.25]
[6,null,null,null,"",null,null,null,"",264.25]
[7,null,null,null,"",null,null,null,"",264.25]
[8,null,null,null,"",null,null,null,"",264.25]
[9,null,null,null,"",null,null,null,"",264.25]
[10,null,null,null,"",null,null,null,"",264.25]
[11,null,null,null,"",null,null,null,"",264.25]
[12,null,null,null,"",null,null,null,"",264.25]
[13,null,null,null,"",null,null,null,"",264.25]
[14,null,null,null,"",null,null,null,"",264.25]
[15,null,null,null,"",null,null,null,"",264.25]
[16,null,null,null,"",null,null,null,"",264.25]
[17,null,null,null,"",null,null,null,"",264.25]
[18,null,null,null,"",null,null,null,"",264.25]
[19,null,null,null,"",null,null,null,"",264.25]
[20,null,null,null,"",null,null,null,"",264.25]
[21,null,null,null,"",null,null,null,"",264.25]
[22,null,null,null,"",null,null,null,"",264.25]
[23,null,null,null,"",null,null,null,"",264.25]
[24,null,null,null,"",null,null,null,"",264.25]
[25,null,null,null,"",null,null,null,"",264.25]
[26,null,null,null,"",null,null,null,"",264.25]
[27,null,null,null,"",null,null,null,"",264.25]
[28,null,null,null,"",null,null,null,"",264.25]
[29,null,null,null,"",null,null,null,"",264.25]
[30,null,null,null,"",null,null,null,"",264.25]

{"sheet":"محمد نصر","index":19,"n_rows":34,"n_cols":10,"rows_kept":34,"cut":false,"hidden":false,"merged":[[2,0,3,0],[2,1,2,4],[2,5,2,8],[2,9,3,9],[0,0,0,1],[0,2,1,5],[0,6,1,6],[0,7,1,9],[1,0,1,1]]}
["اسم العميل",null,"محمد نصر",null,null,null,"الرصيد  الحالى",{"$f":"J34","v":107.5}]
["كود العميل"]
["م","مسحوبـــــــــــات",null,null,null,"تنزيـــــــــــــــــــــــــلات",null,null,null,"الرصيد"]
[null,"المبلغ","البيان","التاريخ","اليوم","المبلغ","البيان","التاريخ","اليوم"]
[1,107.5,null,null,{"$f":"IF(D5=\"\",\"\",TEXT(D5,\"ddd\"))","v":""},null,null,null,{"$f":"IF(H5=\"\",\"\",TEXT(H5,\"ddd\"))","v":""},{"$f":"B5-F5","v":107.5}]
[2,null,null,null,null,null,null,null,{"$f":"IF(H6=\"\",\"\",TEXT(H6,\"ddd\"))","v":""},{"$f":"J5+B6-F6","v":107.5}]
[3,null,null,null,{"$f":"IF(D7=\"\",\"\",TEXT(D7,\"ddd\"))","v":""},null,null,null,"",{"$f":"J6+B7-F7","v":107.5}]
[4,null,null,null,"",null,null,null,"",107.5]
[5,null,null,null,"",null,null,null,"",107.5]
[6,null,null,null,"",null,null,null,"",107.5]
[7,null,null,null,"",null,null,null,"",107.5]
[8,null,null,null,"",null,null,null,"",107.5]
[9,null,null,null,"",null,null,null,"",107.5]
[10,null,null,null,"",null,null,null,"",107.5]
[11,null,null,null,"",null,null,null,"",107.5]
[12,null,null,null,"",null,null,null,"",107.5]
[13,null,null,null,"",null,null,null,"",107.5]
[14,null,null,null,"",null,null,null,"",107.5]
[15,null,null,null,"",null,null,null,"",107.5]
[16,null,null,null,"",null,null,null,"",107.5]
[17,null,null,null,"",null,null,null,"",107.5]
[18,null,null,null,"",null,null,null,"",107.5]
[19,null,null,null,"",null,null,null,"",107.5]
[20,null,null,null,"",null,null,null,"",107.5]
[21,null,null,null,"",null,null,null,"",107.5]
[22,null,null,null,"",null,null,null,"",107.5]
[23,null,null,null,"",null,null,null,"",107.5]
[24,null,null,null,"",null,null,null,"",107.5]
[25,null,null,null,"",null,null,null,"",107.5]
[26,null,null,null,"",null,null,null,"",107.5]
[27,null,null,null,"",null,null,null,"",107.5]
[28,null,null,null,"",null,null,null,"",107.5]
[29,null,null,null,"",null,null,null,"",107.5]
[30,null,null,null,"",null,null,null,"",107.5]

{"sheet":"ام مجدى راضى","index":20,"n_rows":34,"n_cols":10,"rows_kept":34,"cut":false,"hidden":false,"merged":[[0,0,1,1],[0,2,1,5],[0,6,1,6],[0,7,1,9],[2,0,3,0],[2,1,2,4],[2,5,2,8],[2,9,3,9]]}
["اسم العميل",null,"ام مجدى راضى",null,null,null,"الرصيد  الحالى",{"$f":"J34","v":69.75}]
[]
["م","مسحوبـــــــــــات",null,null,null,"تنزيـــــــــــــــــــــــــلات",null,null,null,"الرصيد"]
[null,"المبلغ","البيان","التاريخ","اليوم","المبلغ","البيان","التاريخ","اليوم"]
[1,69.75,null,null,{"$f":"IF(D5=\"\",\"\",TEXT(D5,\"ddd\"))","v":""},null,null,null,{"$f":"IF(H5=\"\",\"\",TEXT(H5,\"ddd\"))","v":""},{"$f":"B5-F5","v":69.75}]
[2,null,null,null,null,null,null,null,{"$f":"IF(H6=\"\",\"\",TEXT(H6,\"ddd\"))","v":""},{"$f":"J5+B6-F6","v":69.75}]
[3,null,null,null,{"$f":"IF(D7=\"\",\"\",TEXT(D7,\"ddd\"))","v":""},null,null,null,"",{"$f":"J6+B7-F7","v":69.75}]
[4,null,null,null,"",null,null,null,"",69.75]
[5,null,null,null,"",null,null,null,"",69.75]
[6,null,null,null,"",null,null,null,"",69.75]
[7,null,null,null,"",null,null,null,"",69.75]
[8,null,null,null,"",null,null,null,"",69.75]
[9,null,null,null,"",null,null,null,"",69.75]
[10,null,null,null,"",null,null,null,"",69.75]
[11,null,null,null,"",null,null,null,"",69.75]
[12,null,null,null,"",null,null,null,"",69.75]
[13,null,null,null,"",null,null,null,"",69.75]
[14,null,null,null,"",null,null,null,"",69.75]
[15,null,null,null,"",null,null,null,"",69.75]
[16,null,null,null,"",null,null,null,"",69.75]
[17,null,null,null,"",null,null,null,"",69.75]
[18,null,null,null,"",null,null,null,"",69.75]
[19,null,null,null,"",null,null,null,"",69.75]
[20,null,null,null,"",null,null,null,"",69.75]
[21,null,null,null,"",null,null,null,"",69.75]
[22,null,null,null,"",null,null,null,"",69.75]
[23,null,null,null,"",null,null,null,"",69.75]
[24,null,null,null,"",null,null,null,"",69.75]
[25,null,null,null,"",null,null,null,"",69.75]
[26,null,null,null,"",null,null,null,"",69.75]
[27,null,null,null,"",null,null,null,"",69.75]
[28,null,null,null,"",null,null,null,"",69.75]
[29,null,null,null,"",null,null,null,"",69.75]
[30,null,null,null,"",null,null,null,"",69.75]

{"sheet":"فراج العزبة","index":21,"n_rows":34,"n_cols":10,"rows_kept":34,"cut":false,"hidden":false,"merged":[[0,0,1,1],[0,2,1,5],[0,6,1,6],[0,7,1,9],[2,0,3,0],[2,1,2,4],[2,5,2,8],[2,9,3,9]]}
["اسم العميل",null,"فراج العزبة",null,null,null,"الرصيد  الحالى",{"$f":"J34","v":99}]
[]
["م","مسحوبـــــــــــات",null,null,null,"تنزيـــــــــــــــــــــــــلات",null,null,null,"الرصيد"]
[null,"المبلغ","البيان","التاريخ","اليوم","المبلغ","البيان","التاريخ","اليوم"]
[1,99,null,null,{"$f":"IF(D5=\"\",\"\",TEXT(D5,\"ddd\"))","v":""},null,null,null,{"$f":"IF(H5=\"\",\"\",TEXT(H5,\"ddd\"))","v":""},{"$f":"B5-F5","v":99}]
[2,null,null,null,null,null,null,null,{"$f":"IF(H6=\"\",\"\",TEXT(H6,\"ddd\"))","v":""},{"$f":"J5+B6-F6","v":99}]
[3,null,null,null,{"$f":"IF(D7=\"\",\"\",TEXT(D7,\"ddd\"))","v":""},null,null,null,"",{"$f":"J6+B7-F7","v":99}]
[4,null,null,null,"",null,null,null,"",99]
[5,null,null,null,"",null,null,null,"",99]
[6,null,null,null,"",null,null,null,"",99]
[7,null,null,null,"",null,null,null,"",99]
[8,null,null,null,"",null,null,null,"",99]
[9,null,null,null,"",null,null,null,"",99]
[10,null,null,null,"",null,null,null,"",99]
[11,null,null,null,"",null,null,null,"",99]
[12,null,null,null,"",null,null,null,"",99]
[13,null,null,null,"",null,null,null,"",99]
[14,null,null,null,"",null,null,null,"",99]
[15,null,null,null,"",null,null,null,"",99]
[16,null,null,null,"",null,null,null,"",99]
[17,null,null,null,"",null,null,null,"",99]
[18,null,null,null,"",null,null,null,"",99]
[19,null,null,null,"",null,null,null,"",99]
[20,null,null,null,"",null,null,null,"",99]
[21,null,null,null,"",null,null,null,"",99]
[22,null,null,null,"",null,null,null,"",99]
[23,null,null,null,"",null,null,null,"",99]
[24,null,null,null,"",null,null,null,"",99]
[25,null,null,null,"",null,null,null,"",99]
[26,null,null,null,"",null,null,null,"",99]
[27,null,null,null,"",null,null,null,"",99]
[28,null,null,null,"",null,null,null,"",99]
[29,null,null,null,"",null,null,null,"",99]
[30,null,null,null,"",null,null,null,"",99]

{"sheet":"مرات نجم","index":22,"n_rows":34,"n_cols":10,"rows_kept":34,"cut":false,"hidden":false,"merged":[[0,0,1,1],[0,2,1,5],[0,6,1,6],[0,7,1,9],[2,0,3,0],[2,1,2,4],[2,5,2,8],[2,9,3,9]]}
["اسم العميل",null,"مرات نجم",null,null,null,"الرصيد  الحالى",{"$f":"J34","v":311.5}]
[]
["م","مسحوبـــــــــــات",null,null,null,"تنزيـــــــــــــــــــــــــلات",null,null,null,"الرصيد"]
[null,"المبلغ","البيان","التاريخ","اليوم","المبلغ","البيان","التاريخ","اليوم"]
[1,311.5,null,null,{"$f":"IF(D5=\"\",\"\",TEXT(D5,\"ddd\"))","v":""},null,null,null,{"$f":"IF(H5=\"\",\"\",TEXT(H5,\"ddd\"))","v":""},{"$f":"B5-F5","v":311.5}]
[2,null,null,null,null,null,null,null,{"$f":"IF(H6=\"\",\"\",TEXT(H6,\"ddd\"))","v":""},{"$f":"J5+B6-F6","v":311.5}]
[3,null,null,null,{"$f":"IF(D7=\"\",\"\",TEXT(D7,\"ddd\"))","v":""},null,null,null,"",{"$f":"J6+B7-F7","v":311.5}]
[4,null,null,null,"",null,null,null,"",311.5]
[5,null,null,null,"",null,null,null,"",311.5]
[6,null,null,null,"",null,null,null,"",311.5]
[7,null,null,null,"",null,null,null,"",311.5]
[8,null,null,null,"",null,null,null,"",311.5]
[9,null,null,null,"",null,null,null,"",311.5]
[10,null,null,null,"",null,null,null,"",311.5]
[11,null,null,null,"",null,null,null,"",311.5]
[12,null,null,null,"",null,null,null,"",311.5]
[13,null,null,null,"",null,null,null,"",311.5]
[14,null,null,null,"",null,null,null,"",311.5]
[15,null,null,null,"",null,null,null,"",311.5]
[16,null,null,null,"",null,null,null,"",311.5]
[17,null,null,null,"",null,null,null,"",311.5]
[18,null,null,null,"",null,null,null,"",311.5]
[19,null,null,null,"",null,null,null,"",311.5]
[20,null,null,null,"",null,null,null,"",311.5]
[21,null,null,null,"",null,null,null,"",311.5]
[22,null,null,null,"",null,null,null,"",311.5]
[23,null,null,null,"",null,null,null,"",311.5]
[24,null,null,null,"",null,null,null,"",311.5]
[25,null,null,null,"",null,null,null,"",311.5]
[26,null,null,null,"",null,null,null,"",311.5]
[27,null,null,null,"",null,null,null,"",311.5]
[28,null,null,null,"",null,null,null,"",311.5]
[29,null,null,null,"",null,null,null,"",311.5]
[30,null,null,null,"",null,null,null,"",311.5]

{"sheet":"حماده محمد شلقامي","index":23,"n_rows":34,"n_cols":10,"rows_kept":34,"cut":false,"hidden":false,"merged":[[0,0,1,1],[0,2,1,5],[0,6,1,6],[0,7,1,9],[2,0,3,0],[2,1,2,4],[2,5,2,8],[2,9,3,9]]}
["اسم العميل",null,"حماده محمد شلقامي",null,null,null,"الرصيد  الحالى",{"$f":"J34","v":96}]
[]
["م","مسحوبـــــــــــات",null,null,null,"تنزيـــــــــــــــــــــــــلات",null,null,null,"الرصيد"]
[null,"المبلغ","البيان","التاريخ","اليوم","المبلغ","البيان","التاريخ","اليوم"]
[1,96,null,null,{"$f":"IF(D5=\"\",\"\",TEXT(D5,\"ddd\"))","v":""},null,null,null,{"$f":"IF(H5=\"\",\"\",TEXT(H5,\"ddd\"))","v":""},{"$f":"B5-F5","v":96}]
[2,null,null,null,null,null,null,null,{"$f":"IF(H6=\"\",\"\",TEXT(H6,\"ddd\"))","v":""},{"$f":"J5+B6-F6","v":96}]
[3,null,null,null,{"$f":"IF(D7=\"\",\"\",TEXT(D7,\"ddd\"))","v":""},null,null,null,"",{"$f":"J6+B7-F7","v":96}]
[4,null,null,null,"",null,null,null,"",96]
[5,null,null,null,"",null,null,null,"",96]
[6,null,null,null,"",null,null,null,"",96]
[7,null,null,null,"",null,null,null,"",96]
[8,null,null,null,"",null,null,null,"",96]
[9,null,null,null,"",null,null,null,"",96]
[10,null,null,null,"",null,null,null,"",96]
[11,null,null,null,"",null,null,null,"",96]
[12,null,null,null,"",null,null,null,"",96]
[13,null,null,null,"",null,null,null,"",96]
[14,null,null,null,"",null,null,null,"",96]
[15,null,null,null,"",null,null,null,"",96]
[16,null,null,null,"",null,null,null,"",96]
[17,null,null,null,"",null,null,null,"",96]
[18,null,null,null,"",null,null,null,"",96]
[19,null,null,null,"",null,null,null,"",96]
[20,null,null,null,"",null,null,null,"",96]
[21,null,null,null,"",null,null,null,"",96]
[22,null,null,null,"",null,null,null,"",96]
[23,null,null,null,"",null,null,null,"",96]
[24,null,null,null,"",null,null,null,"",96]
[25,null,null,null,"",null,null,null,"",96]
[26,null,null,null,"",null,null,null,"",96]
[27,null,null,null,"",null,null,null,"",96]
[28,null,null,null,"",null,null,null,"",96]
[29,null,null,null,"",null,null,null,"",96]
[30,null,null,null,"",null,null,null,"",96]

{"sheet":"سعيد عدلى","index":24,"n_rows":34,"n_cols":10,"rows_kept":34,"cut":false,"hidden":false,"merged":[[0,0,1,1],[0,2,1,5],[0,6,1,6],[0,7,1,9],[2,0,3,0],[2,1,2,4],[2,5,2,8],[2,9,3,9]]}
["اسم العميل",null,"سعيد عدلى",null,null,null,"الرصيد  الحالى",{"$f":"J34","v":192}]
[]
["م","مسحوبـــــــــــات",null,null,null,"تنزيـــــــــــــــــــــــــلات",null,null,null,"الرصيد"]
[null,"المبلغ","البيان","التاريخ","اليوم","المبلغ","البيان","التاريخ","اليوم"]
[1,192,null,null,{"$f":"IF(D5=\"\",\"\",TEXT(D5,\"ddd\"))","v":""},null,null,null,{"$f":"IF(H5=\"\",\"\",TEXT(H5,\"ddd\"))","v":""},{"$f":"B5-F5","v":192}]
[2,null,null,null,null,null,null,null,{"$f":"IF(H6=\"\",\"\",TEXT(H6,\"ddd\"))","v":""},{"$f":"J5+B6-F6","v":192}]
[3,null,null,null,{"$f":"IF(D7=\"\",\"\",TEXT(D7,\"ddd\"))","v":""},null,null,null,"",{"$f":"J6+B7-F7","v":192}]
[4,null,null,null,"",null,null,null,"",192]
[5,null,null,null,"",null,null,null,"",192]
[6,null,null,null,"",null,null,null,"",192]
[7,null,null,null,"",null,null,null,"",192]
[8,null,null,null,"",null,null,null,"",192]
[9,null,null,null,"",null,null,null,"",192]
[10,null,null,null,"",null,null,null,"",192]
[11,null,null,null,"",null,null,null,"",192]
[12,null,null,null,"",null,null,null,"",192]
[13,null,null,null,"",null,null,null,"",192]
[14,null,null,null,"",null,null,null,"",192]
[15,null,null,null,"",null,null,null,"",192]
[16,null,null,null,"",null,null,null,"",192]
[17,null,null,null,"",null,null,null,"",192]
[18,null,null,null,"",null,null,null,"",192]
[19,null,null,null,"",null,null,null,"",192]
[20,null,null,null,"",null,null,null,"",192]
[21,null,null,null,"",null,null,null,"",192]
[22,null,null,null,"",null,null,null,"",192]
[23,null,null,null,"",null,null,null,"",192]
[24,null,null,null,"",null,null,null,"",192]
[25,null,null,null,"",null,null,null,"",192]
[26,null,null,null,"",null,null,null,"",192]
[27,null,null,null,"",null,null,null,"",192]
[28,null,null,null,"",null,null,null,"",192]
[29,null,null,null,"",null,null,null,"",192]
[30,null,null,null,"",null,null,null,"",192]

{"sheet":"ياسين عبد الله","index":25,"n_rows":34,"n_cols":10,"rows_kept":34,"cut":false,"hidden":false,"merged":[[0,0,1,1],[0,2,1,5],[0,6,1,6],[0,7,1,9],[2,0,3,0],[2,1,2,4],[2,5,2,8],[2,9,3,9]]}
["اسم العميل",null,"ياسين عبد الله",null,null,null,"الرصيد  الحالى",{"$f":"J34","v":67.5}]
[]
["م","مسحوبـــــــــــات",null,null,null,"تنزيـــــــــــــــــــــــــلات",null,null,null,"الرصيد"]
[null,"المبلغ","البيان","التاريخ","اليوم","المبلغ","البيان","التاريخ","اليوم"]
[1,67.5,null,null,{"$f":"IF(D5=\"\",\"\",TEXT(D5,\"ddd\"))","v":""},null,null,null,{"$f":"IF(H5=\"\",\"\",TEXT(H5,\"ddd\"))","v":""},{"$f":"B5-F5","v":67.5}]
[2,null,null,null,null,null,null,null,{"$f":"IF(H6=\"\",\"\",TEXT(H6,\"ddd\"))","v":""},{"$f":"J5+B6-F6","v":67.5}]
[3,null,null,null,{"$f":"IF(D7=\"\",\"\",TEXT(D7,\"ddd\"))","v":""},null,null,null,"",{"$f":"J6+B7-F7","v":67.5}]
[4,null,null,null,"",null,null,null,"",67.5]
[5,null,null,null,"",null,null,null,"",67.5]
[6,null,null,null,"",null,null,null,"",67.5]
[7,null,null,null,"",null,null,null,"",67.5]
[8,null,null,null,"",null,null,null,"",67.5]
[9,null,null,null,"",null,null,null,"",67.5]
[10,null,null,null,"",null,null,null,"",67.5]
[11,null,null,null,"",null,null,null,"",67.5]
[12,null,null,null,"",null,null,null,"",67.5]
[13,null,null,null,"",null,null,null,"",67.5]
[14,null,null,null,"",null,null,null,"",67.5]
[15,null,null,null,"",null,null,null,"",67.5]
[16,null,null,null,"",null,null,null,"",67.5]
[17,null,null,null,"",null,null,null,"",67.5]
[18,null,null,null,"",null,null,null,"",67.5]
[19,null,null,null,"",null,null,null,"",67.5]
[20,null,null,null,"",null,null,null,"",67.5]
[21,null,null,null,"",null,null,null,"",67.5]
[22,null,null,null,"",null,null,null,"",67.5]
[23,null,null,null,"",null,null,null,"",67.5]
[24,null,null,null,"",null,null,null,"",67.5]
[25,null,null,null,"",null,null,null,"",67.5]
[26,null,null,null,"",null,null,null,"",67.5]
[27,null,null,null,"",null,null,null,"",67.5]
[28,null,null,null,"",null,null,null,"",67.5]
[29,null,null,null,"",null,null,null,"",67.5]
[30,null,null,null,"",null,null,null,"",67.5]

{"sheet":"وليد رجب","index":26,"n_rows":34,"n_cols":10,"rows_kept":34,"cut":false,"hidden":false,"merged":[[0,0,1,1],[0,2,1,5],[0,6,1,6],[0,7,1,9],[2,0,3,0],[2,1,2,4],[2,5,2,8],[2,9,3,9]]}
["اسم العميل",null,"وليد رجب",null,null,null,"الرصيد  الحالى",{"$f":"J34","v":0}]
[]
["م","مسحوبـــــــــــات",null,null,null,"تنزيـــــــــــــــــــــــــلات",null,null,null,"الرصيد"]
[null,"المبلغ","البيان","التاريخ","اليوم","المبلغ","البيان","التاريخ","اليوم"]
[1,null,null,null,{"$f":"IF(D5=\"\",\"\",TEXT(D5,\"ddd\"))","v":""},null,null,null,{"$f":"IF(H5=\"\",\"\",TEXT(H5,\"ddd\"))","v":""},{"$f":"B5-F5","v":0}]
[2,null,null,null,null,null,null,null,{"$f":"IF(H6=\"\",\"\",TEXT(H6,\"ddd\"))","v":""},{"$f":"J5+B6-F6","v":0}]
[3,null,null,null,{"$f":"IF(D7=\"\",\"\",TEXT(D7,\"ddd\"))","v":""},null,null,null,"",{"$f":"J6+B7-F7","v":0}]
[4,null,null,null,"",null,null,null,"",0]
[5,null,null,null,"",null,null,null,"",0]
[6,null,null,null,"",null,null,null,"",0]
[7,null,null,null,"",null,null,null,"",0]
[8,null,null,null,"",null,null,null,"",0]
[9,null,null,null,"",null,null,null,"",0]
[10,null,null,null,"",null,null,null,"",0]
[11,null,null,null,"",null,null,null,"",0]
[12,null,null,null,"",null,null,null,"",0]
[13,null,null,null,"",null,null,null,"",0]
[14,null,null,null,"",null,null,null,"",0]
[15,null,null,null,"",null,null,null,"",0]
[16,null,null,null,"",null,null,null,"",0]
[17,null,null,null,"",null,null,null,"",0]
[18,null,null,null,"",null,null,null,"",0]
[19,null,null,null,"",null,null,null,"",0]
[20,null,null,null,"",null,null,null,"",0]
[21,null,null,null,"",null,null,null,"",0]
[22,null,null,null,"",null,null,null,"",0]
[23,null,null,null,"",null,null,null,"",0]
[24,null,null,null,"",null,null,null,"",0]
[25,null,null,null,"",null,null,null,"",0]
[26,null,null,null,"",null,null,null,"",0]
[27,null,null,null,"",null,null,null,"",0]
[28,null,null,null,"",null,null,null,"",0]
[29,null,null,null,"",null,null,null,"",0]
[30,null,null,null,"",null,null,null,"",0]

{"sheet":"ناديه شقلوف","index":27,"n_rows":34,"n_cols":10,"rows_kept":34,"cut":false,"hidden":false,"merged":[[0,0,1,1],[0,2,1,5],[0,6,1,6],[0,7,1,9],[2,0,3,0],[2,1,2,4],[2,5,2,8],[2,9,3,9]]}
["اسم العميل",null,"ناديه شقلوف",null,null,null,"الرصيد  الحالى",{"$f":"J34","v":0}]
[]
["م","مسحوبـــــــــــات",null,null,null,"تنزيـــــــــــــــــــــــــلات",null,null,null,"الرصيد"]
[null,"المبلغ","البيان","التاريخ","اليوم","المبلغ","البيان","التاريخ","اليوم"]
[1,null,null,null,{"$f":"IF(D5=\"\",\"\",TEXT(D5,\"ddd\"))","v":""},null,null,null,{"$f":"IF(H5=\"\",\"\",TEXT(H5,\"ddd\"))","v":""},{"$f":"B5-F5","v":0}]
[2,null,null,null,null,null,null,null,{"$f":"IF(H6=\"\",\"\",TEXT(H6,\"ddd\"))","v":""},{"$f":"J5+B6-F6","v":0}]
[3,null,null,null,{"$f":"IF(D7=\"\",\"\",TEXT(D7,\"ddd\"))","v":""},null,null,null,"",{"$f":"J6+B7-F7","v":0}]
[4,null,null,null,"",null,null,null,"",0]
[5,null,null,null,"",null,null,null,"",0]
[6,null,null,null,"",null,null,null,"",0]
[7,null,null,null,"",null,null,null,"",0]
[8,null,null,null,"",null,null,null,"",0]
[9,null,null,null,"",null,null,null,"",0]
[10,null,null,null,"",null,null,null,"",0]
[11,null,null,null,"",null,null,null,"",0]
[12,null,null,null,"",null,null,null,"",0]
[13,null,null,null,"",null,null,null,"",0]
[14,null,null,null,"",null,null,null,"",0]
[15,null,null,null,"",null,null,null,"",0]
[16,null,null,null,"",null,null,null,"",0]
[17,null,null,null,"",null,null,null,"",0]
[18,null,null,null,"",null,null,null,"",0]
[19,null,null,null,"",null,null,null,"",0]
[20,null,null,null,"",null,null,null,"",0]
[21,null,null,null,"",null,null,null,"",0]
[22,null,null,null,"",null,null,null,"",0]
[23,null,null,null,"",null,null,null,"",0]
[24,null,null,null,"",null,null,null,"",0]
[25,null,null,null,"",null,null,null,"",0]
[26,null,null,null,"",null,null,null,"",0]
[27,null,null,null,"",null,null,null,"",0]
[28,null,null,null,"",null,null,null,"",0]
[29,null,null,null,"",null,null,null,"",0]
[30,null,null,null,"",null,null,null,"",0]

{"sheet":"مرات طارق عبد الله","index":28,"n_rows":34,"n_cols":10,"rows_kept":34,"cut":false,"hidden":false,"merged":[[0,0,1,1],[0,2,1,5],[0,6,1,6],[0,7,1,9],[2,0,3,0],[2,1,2,4],[2,5,2,8],[2,9,3,9]]}
["اسم العميل",null,"مرات طارق عبد الله",null,null,null,"الرصيد  الحالى",{"$f":"J34","v":0}]
[]
["م","مسحوبـــــــــــات",null,null,null,"تنزيـــــــــــــــــــــــــلات",null,null,null,"الرصيد"]
[null,"المبلغ","البيان","التاريخ","اليوم","المبلغ","البيان","التاريخ","اليوم"]
[1,null,null,null,{"$f":"IF(D5=\"\",\"\",TEXT(D5,\"ddd\"))","v":""},null,null,null,{"$f":"IF(H5=\"\",\"\",TEXT(H5,\"ddd\"))","v":""},{"$f":"B5-F5","v":0}]
[2,null,null,null,null,null,null,null,{"$f":"IF(H6=\"\",\"\",TEXT(H6,\"ddd\"))","v":""},{"$f":"J5+B6-F6","v":0}]
[3,null,null,null,{"$f":"IF(D7=\"\",\"\",TEXT(D7,\"ddd\"))","v":""},null,null,null,"",{"$f":"J6+B7-F7","v":0}]
[4,null,null,null,"",null,null,null,"",0]
[5,null,null,null,"",null,null,null,"",0]
[6,null,null,null,"",null,null,null,"",0]
[7,null,null,null,"",null,null,null,"",0]
[8,null,null,null,"",null,null,null,"",0]
[9,null,null,null,"",null,null,null,"",0]
[10,null,null,null,"",null,null,null,"",0]
[11,null,null,null,"",null,null,null,"",0]
[12,null,null,null,"",null,null,null,"",0]
[13,null,null,null,"",null,null,null,"",0]
[14,null,null,null,"",null,null,null,"",0]
[15,null,null,null,"",null,null,null,"",0]
[16,null,null,null,"",null,null,null,"",0]
[17,null,null,null,"",null,null,null,"",0]
[18,null,null,null,"",null,null,null,"",0]
[19,null,null,null,"",null,null,null,"",0]
[20,null,null,null,"",null,null,null,"",0]
[21,null,null,null,"",null,null,null,"",0]
[22,null,null,null,"",null,null,null,"",0]
[23,null,null,null,"",null,null,null,"",0]
[24,null,null,null,"",null,null,null,"",0]
[25,null,null,null,"",null,null,null,"",0]
[26,null,null,null,"",null,null,null,"",0]
[27,null,null,null,"",null,null,null,"",0]
[28,null,null,null,"",null,null,null,"",0]
[29,null,null,null,"",null,null,null,"",0]
[30,null,null,null,"",null,null,null,"",0]

{"sheet":"مرات عبد الحميد احمد","index":29,"n_rows":34,"n_cols":10,"rows_kept":34,"cut":false,"hidden":false,"merged":[[0,0,1,1],[0,2,1,5],[0,6,1,6],[0,7,1,9],[2,0,3,0],[2,1,2,4],[2,5,2,8],[2,9,3,9]]}
["اسم العميل",null,"مرات عبد الحميد احمد",null,null,null,"الرصيد  الحالى",{"$f":"J34","v":0}]
[]
["م","مسحوبـــــــــــات",null,null,null,"تنزيـــــــــــــــــــــــــلات",null,null,null,"الرصيد"]
[null,"المبلغ","البيان","التاريخ","اليوم","المبلغ","البيان","التاريخ","اليوم"]
[1,null,null,null,{"$f":"IF(D5=\"\",\"\",TEXT(D5,\"ddd\"))","v":""},null,null,null,{"$f":"IF(H5=\"\",\"\",TEXT(H5,\"ddd\"))","v":""},{"$f":"B5-F5","v":0}]
[2,null,null,null,null,null,null,null,{"$f":"IF(H6=\"\",\"\",TEXT(H6,\"ddd\"))","v":""},{"$f":"J5+B6-F6","v":0}]
[3,null,null,null,{"$f":"IF(D7=\"\",\"\",TEXT(D7,\"ddd\"))","v":""},null,null,null,"",{"$f":"J6+B7-F7","v":0}]
[4,null,null,null,"",null,null,null,"",0]
[5,null,null,null,"",null,null,null,"",0]
[6,null,null,null,"",null,null,null,"",0]
[7,null,null,null,"",null,null,null,"",0]
[8,null,null,null,"",null,null,null,"",0]
[9,null,null,null,"",null,null,null,"",0]
[10,null,null,null,"",null,null,null,"",0]
[11,null,null,null,"",null,null,null,"",0]
[12,null,null,null,"",null,null,null,"",0]
[13,null,null,null,"",null,null,null,"",0]
[14,null,null,null,"",null,null,null,"",0]
[15,null,null,null,"",null,null,null,"",0]
[16,null,null,null,"",null,null,null,"",0]
[17,null,null,null,"",null,null,null,"",0]
[18,null,null,null,"",null,null,null,"",0]
[19,null,null,null,"",null,null,null,"",0]
[20,null,null,null,"",null,null,null,"",0]
[21,null,null,null,"",null,null,null,"",0]
[22,null,null,null,"",null,null,null,"",0]
[23,null,null,null,"",null,null,null,"",0]
[24,null,null,null,"",null,null,null,"",0]
[25,null,null,null,"",null,null,null,"",0]
[26,null,null,null,"",null,null,null,"",0]
[27,null,null,null,"",null,null,null,"",0]
[28,null,null,null,"",null,null,null,"",0]
[29,null,null,null,"",null,null,null,"",0]
[30,null,null,null,"",null,null,null,"",0]

{"sheet":"ام مطير","index":30,"n_rows":34,"n_cols":10,"rows_kept":34,"cut":false,"hidden":false,"merged":[[0,0,1,1],[0,2,1,5],[0,6,1,6],[0,7,1,9],[2,0,3,0],[2,1,2,4],[2,5,2,8],[2,9,3,9]]}
["اسم العميل",null,"ام مطير",null,null,null,"الرصيد  الحالى",{"$f":"J34","v":0}]
[]
["م","مسحوبـــــــــــات",null,null,null,"تنزيـــــــــــــــــــــــــلات",null,null,null,"الرصيد"]
[null,"المبلغ","البيان","التاريخ","اليوم","المبلغ","البيان","التاريخ","اليوم"]
[1,null,null,null,{"$f":"IF(D5=\"\",\"\",TEXT(D5,\"ddd\"))","v":""},null,null,null,{"$f":"IF(H5=\"\",\"\",TEXT(H5,\"ddd\"))","v":""},{"$f":"B5-F5","v":0}]
[2,null,null,null,null,null,null,null,{"$f":"IF(H6=\"\",\"\",TEXT(H6,\"ddd\"))","v":""},{"$f":"J5+B6-F6","v":0}]
[3,null,null,null,{"$f":"IF(D7=\"\",\"\",TEXT(D7,\"ddd\"))","v":""},null,null,null,"",{"$f":"J6+B7-F7","v":0}]
[4,null,null,null,"",null,null,null,"",0]
[5,null,null,null,"",null,null,null,"",0]
[6,null,null,null,"",null,null,null,"",0]
[7,null,null,null,"",null,null,null,"",0]
[8,null,null,null,"",null,null,null,"",0]
[9,null,null,null,"",null,null,null,"",0]
[10,null,null,null,"",null,null,null,"",0]
[11,null,null,null,"",null,null,null,"",0]
[12,null,null,null,"",null,null,null,"",0]
[13,null,null,null,"",null,null,null,"",0]
[14,null,null,null,"",null,null,null,"",0]
[15,null,null,null,"",null,null,null,"",0]
[16,null,null,null,"",null,null,null,"",0]
[17,null,null,null,"",null,null,null,"",0]
[18,null,null,null,"",null,null,null,"",0]
[19,null,null,null,"",null,null,null,"",0]
[20,null,null,null,"",null,null,null,"",0]
[21,null,null,null,"",null,null,null,"",0]
[22,null,null,null,"",null,null,null,"",0]
[23,null,null,null,"",null,null,null,"",0]
[24,null,null,null,"",null,null,null,"",0]
[25,null,null,null,"",null,null,null,"",0]
[26,null,null,null,"",null,null,null,"",0]
[27,null,null,null,"",null,null,null,"",0]
[28,null,null,null,"",null,null,null,"",0]
[29,null,null,null,"",null,null,null,"",0]
[30,null,null,null,"",null,null,null,"",0]

{"sheet":"الديب","index":31,"n_rows":34,"n_cols":10,"rows_kept":34,"cut":false,"hidden":false,"merged":[[0,0,1,1],[0,2,1,5],[0,6,1,6],[0,7,1,9],[2,0,3,0],[2,1,2,4],[2,5,2,8],[2,9,3,9]]}
["اسم العميل",null,"الديب",null,null,null,"الرصيد  الحالى",{"$f":"J34","v":0}]
[]
["م","مسحوبـــــــــــات",null,null,null,"تنزيـــــــــــــــــــــــــلات",null,null,null,"الرصيد"]
[null,"المبلغ","البيان","التاريخ","اليوم","المبلغ","البيان","التاريخ","اليوم"]
[1,null,null,null,{"$f":"IF(D5=\"\",\"\",TEXT(D5,\"ddd\"))","v":""},null,null,null,{"$f":"IF(H5=\"\",\"\",TEXT(H5,\"ddd\"))","v":""},{"$f":"B5-F5","v":0}]
[2,null,null,null,null,null,null,null,{"$f":"IF(H6=\"\",\"\",TEXT(H6,\"ddd\"))","v":""},{"$f":"J5+B6-F6","v":0}]
[3,null,null,null,{"$f":"IF(D7=\"\",\"\",TEXT(D7,\"ddd\"))","v":""},null,null,null,"",{"$f":"J6+B7-F7","v":0}]
[4,null,null,null,"",null,null,null,"",0]
[5,null,null,null,"",null,null,null,"",0]
[6,null,null,null,"",null,null,null,"",0]
[7,null,null,null,"",null,null,null,"",0]
[8,null,null,null,"",null,null,null,"",0]
[9,null,null,null,"",null,null,null,"",0]
[10,null,null,null,"",null,null,null,"",0]
[11,null,null,null,"",null,null,null,"",0]
[12,null,null,null,"",null,null,null,"",0]
[13,null,null,null,"",null,null,null,"",0]
[14,null,null,null,"",null,null,null,"",0]
[15,null,null,null,"",null,null,null,"",0]
[16,null,null,null,"",null,null,null,"",0]
[17,null,null,null,"",null,null,null,"",0]
[18,null,null,null,"",null,null,null,"",0]
[19,null,null,null,"",null,null,null,"",0]
[20,null,null,null,"",null,null,null,"",0]
[21,null,null,null,"",null,null,null,"",0]
[22,null,null,null,"",null,null,null,"",0]
[23,null,null,null,"",null,null,null,"",0]
[24,null,null,null,"",null,null,null,"",0]
[25,null,null,null,"",null,null,null,"",0]
[26,null,null,null,"",null,null,null,"",0]
[27,null,null,null,"",null,null,null,"",0]
[28,null,null,null,"",null,null,null,"",0]
[29,null,null,null,"",null,null,null,"",0]
[30,null,null,null,"",null,null,null,"",0]

{"sheet":"سحر","index":32,"n_rows":34,"n_cols":10,"rows_kept":34,"cut":false,"hidden":false,"merged":[[0,0,1,1],[0,2,1,5],[0,6,1,6],[0,7,1,9],[2,0,3,0],[2,1,2,4],[2,5,2,8],[2,9,3,9]]}
["اسم العميل",null,"سحر",null,null,null,"الرصيد  الحالى",{"$f":"J34","v":0}]
[]
["م","مسحوبـــــــــــات",null,null,null,"تنزيـــــــــــــــــــــــــلات",null,null,null,"الرصيد"]
[null,"المبلغ","البيان","التاريخ","اليوم","المبلغ","البيان","التاريخ","اليوم"]
[1,null,null,null,{"$f":"IF(D5=\"\",\"\",TEXT(D5,\"ddd\"))","v":""},null,null,null,{"$f":"IF(H5=\"\",\"\",TEXT(H5,\"ddd\"))","v":""},{"$f":"B5-F5","v":0}]
[2,null,null,null,null,null,null,null,{"$f":"IF(H6=\"\",\"\",TEXT(H6,\"ddd\"))","v":""},{"$f":"J5+B6-F6","v":0}]
[3,null,null,null,{"$f":"IF(D7=\"\",\"\",TEXT(D7,\"ddd\"))","v":""},null,null,null,"",{"$f":"J6+B7-F7","v":0}]
[4,null,null,null,"",null,null,null,"",0]
[5,null,null,null,"",null,null,null,"",0]
[6,null,null,null,"",null,null,null,"",0]
[7,null,null,null,"",null,null,null,"",0]
[8,null,null,null,"",null,null,null,"",0]
[9,null,null,null,"",null,null,null,"",0]
[10,null,null,null,"",null,null,null,"",0]
[11,null,null,null,"",null,null,null,"",0]
[12,null,null,null,"",null,null,null,"",0]
[13,null,null,null,"",null,null,null,"",0]
[14,null,null,null,"",null,null,null,"",0]
[15,null,null,null,"",null,null,null,"",0]
[16,null,null,null,"",null,null,null,"",0]
[17,null,null,null,"",null,null,null,"",0]
[18,null,null,null,"",null,null,null,"",0]
[19,null,null,null,"",null,null,null,"",0]
[20,null,null,null,"",null,null,null,"",0]
[21,null,null,null,"",null,null,null,"",0]
[22,null,null,null,"",null,null,null,"",0]
[23,null,null,null,"",null,null,null,"",0]
[24,null,null,null,"",null,null,null,"",0]
[25,null,null,null,"",null,null,null,"",0]
[26,null,null,null,"",null,null,null,"",0]
[27,null,null,null,"",null,null,null,"",0]
[28,null,null,null,"",null,null,null,"",0]
[29,null,null,null,"",null,null,null,"",0]
[30,null,null,null,"",null,null,null,"",0]

{"sheet":"محمد رجب ابوطاقية ","index":33,"n_rows":34,"n_cols":10,"rows_kept":34,"cut":false,"hidden":false,"merged":[[0,0,1,1],[0,2,1,5],[0,6,1,6],[0,7,1,9],[2,0,3,0],[2,1,2,4],[2,5,2,8],[2,9,3,9]]}
["اسم العميل",null,"محمد رجب ابوطاقية ",null,null,null,"الرصيد  الحالى",{"$f":"J34","v":0}]
[]
["م","مسحوبـــــــــــات",null,null,null,"تنزيـــــــــــــــــــــــــلات",null,null,null,"الرصيد"]
[null,"المبلغ","البيان","التاريخ","اليوم","المبلغ","البيان","التاريخ","اليوم"]
[1,null,null,null,{"$f":"IF(D5=\"\",\"\",TEXT(D5,\"ddd\"))","v":""},null,null,null,{"$f":"IF(H5=\"\",\"\",TEXT(H5,\"ddd\"))","v":""},{"$f":"B5-F5","v":0}]
[2,null,null,null,null,null,null,null,{"$f":"IF(H6=\"\",\"\",TEXT(H6,\"ddd\"))","v":""},{"$f":"J5+B6-F6","v":0}]
[3,null,null,null,{"$f":"IF(D7=\"\",\"\",TEXT(D7,\"ddd\"))","v":""},null,null,null,"",{"$f":"J6+B7-F7","v":0}]
[4,null,null,null,"",null,null,null,"",0]
[5,null,null,null,"",null,null,null,"",0]
[6,null,null,null,"",null,null,null,"",0]
[7,null,null,null,"",null,null,null,"",0]
[8,null,null,null,"",null,null,null,"",0]
[9,null,null,null,"",null,null,null,"",0]
[10,null,null,null,"",null,null,null,"",0]
[11,null,null,null,"",null,null,null,"",0]
[12,null,null,null,"",null,null,null,"",0]
[13,null,null,null,"",null,null,null,"",0]
[14,null,null,null,"",null,null,null,"",0]
[15,null,null,null,"",null,null,null,"",0]
[16,null,null,null,"",null,null,null,"",0]
[17,null,null,null,"",null,null,null,"",0]
[18,null,null,null,"",null,null,null,"",0]
[19,null,null,null,"",null,null,null,"",0]
[20,null,null,null,"",null,null,null,"",0]
[21,null,null,null,"",null,null,null,"",0]
[22,null,null,null,"",null,null,null,"",0]
[23,null,null,null,"",null,null,null,"",0]
[24,null,null,null,"",null,null,null,"",0]
[25,null,null,null,"",null,null,null,"",0]
[26,null,null,null,"",null,null,null,"",0]
[27,null,null,null,"",null,null,null,"",0]
[28,null,null,null,"",null,null,null,"",0]
[29,null,null,null,"",null,null,null,"",0]
[30,null,null,null,"",null,null,null,"",0]

{"sheet":"عادل عاشور","index":34,"n_rows":34,"n_cols":10,"rows_kept":34,"cut":false,"hidden":false,"merged":[[0,0,1,1],[0,2,1,5],[0,6,1,6],[0,7,1,9],[2,0,3,0],[2,1,2,4],[2,5,2,8],[2,9,3,9]]}
["اسم العميل",null,"عادل عاشور",null,null,null,"الرصيد  الحالى",{"$f":"J34","v":0}]
[]
["م","مسحوبـــــــــــات",null,null,null,"تنزيـــــــــــــــــــــــــلات",null,null,null,"الرصيد"]
[null,"المبلغ","البيان","التاريخ","اليوم","المبلغ","البيان","التاريخ","اليوم"]
[1,null,null,null,{"$f":"IF(D5=\"\",\"\",TEXT(D5,\"ddd\"))","v":""},null,null,null,{"$f":"IF(H5=\"\",\"\",TEXT(H5,\"ddd\"))","v":""},{"$f":"B5-F5","v":0}]
[2,null,null,null,null,null,null,null,{"$f":"IF(H6=\"\",\"\",TEXT(H6,\"ddd\"))","v":""},{"$f":"J5+B6-F6","v":0}]
[3,null,null,null,{"$f":"IF(D7=\"\",\"\",TEXT(D7,\"ddd\"))","v":""},null,null,null,"",{"$f":"J6+B7-F7","v":0}]
[4,null,null,null,"",null,null,null,"",0]
[5,null,null,null,"",null,null,null,"",0]
[6,null,null,null,"",null,null,null,"",0]
[7,null,null,null,"",null,null,null,"",0]
[8,null,null,null,"",null,null,null,"",0]
[9,null,null,null,"",null,null,null,"",0]
[10,null,null,null,"",null,null,null,"",0]
[11,null,null,null,"",null,null,null,"",0]
[12,null,null,null,"",null,null,null,"",0]
[13,null,null,null,"",null,null,null,"",0]
[14,null,null,null,"",null,null,null,"",0]
[15,null,null,null,"",null,null,null,"",0]
[16,null,null,null,"",null,null,null,"",0]
[17,null,null,null,"",null,null,null,"",0]
[18,null,null,null,"",null,null,null,"",0]
[19,null,null,null,"",null,null,null,"",0]
[20,null,null,null,"",null,null,null,"",0]
[21,null,null,null,"",null,null,null,"",0]
[22,null,null,null,"",null,null,null,"",0]
[23,null,null,null,"",null,null,null,"",0]
[24,null,null,null,"",null,null,null,"",0]
[25,null,null,null,"",null,null,null,"",0]
[26,null,null,null,"",null,null,null,"",0]
[27,null,null,null,"",null,null,null,"",0]
[28,null,null,null,"",null,null,null,"",0]
[29,null,null,null,"",null,null,null,"",0]
[30,null,null,null,"",null,null,null,"",0]

{"sheet":"احمد شعبان عبد العظيم","index":35,"n_rows":34,"n_cols":10,"rows_kept":34,"cut":false,"hidden":false,"merged":[[0,0,1,1],[0,2,1,5],[0,6,1,6],[0,7,1,9],[2,0,3,0],[2,1,2,4],[2,5,2,8],[2,9,3,9]]}
["اسم العميل",null,"احمد شعبان عبد العظيم",null,null,null,"الرصيد  الحالى",{"$f":"J34","v":0}]
[]
["م","مسحوبـــــــــــات",null,null,null,"تنزيـــــــــــــــــــــــــلات",null,null,null,"الرصيد"]
[null,"المبلغ","البيان","التاريخ","اليوم","المبلغ","البيان","التاريخ","اليوم"]
[1,null,null,null,{"$f":"IF(D5=\"\",\"\",TEXT(D5,\"ddd\"))","v":""},null,null,null,{"$f":"IF(H5=\"\",\"\",TEXT(H5,\"ddd\"))","v":""},{"$f":"B5-F5","v":0}]
[2,null,null,null,null,null,null,null,{"$f":"IF(H6=\"\",\"\",TEXT(H6,\"ddd\"))","v":""},{"$f":"J5+B6-F6","v":0}]
[3,null,null,null,{"$f":"IF(D7=\"\",\"\",TEXT(D7,\"ddd\"))","v":""},null,null,null,"",{"$f":"J6+B7-F7","v":0}]
[4,null,null,null,"",null,null,null,"",0]
[5,null,null,null,"",null,null,null,"",0]
[6,null,null,null,"",null,null,null,"",0]
[7,null,null,null,"",null,null,null,"",0]
[8,null,null,null,"",null,null,null,"",0]
[9,null,null,null,"",null,null,null,"",0]
[10,null,null,null,"",null,null,null,"",0]
[11,null,null,null,"",null,null,null,"",0]
[12,null,null,null,"",null,null,null,"",0]
[13,null,null,null,"",null,null,null,"",0]
[14,null,null,null,"",null,null,null,"",0]
[15,null,null,null,"",null,null,null,"",0]
[16,null,null,null,"",null,null,null,"",0]
[17,null,null,null,"",null,null,null,"",0]
[18,null,null,null,"",null,null,null,"",0]
[19,null,null,null,"",null,null,null,"",0]
[20,null,null,null,"",null,null,null,"",0]
[21,null,null,null,"",null,null,null,"",0]
[22,null,null,null,"",null,null,null,"",0]
[23,null,null,null,"",null,null,null,"",0]
[24,null,null,null,"",null,null,null,"",0]
[25,null,null,null,"",null,null,null,"",0]
[26,null,null,null,"",null,null,null,"",0]
[27,null,null,null,"",null,null,null,"",0]
[28,null,null,null,"",null,null,null,"",0]
[29,null,null,null,"",null,null,null,"",0]
[30,null,null,null,"",null,null,null,"",0]

{"sheet":"محمود عادل على","index":36,"n_rows":34,"n_cols":10,"rows_kept":34,"cut":false,"hidden":false,"merged":[[0,0,1,1],[0,2,1,5],[0,6,1,6],[0,7,1,9],[2,0,3,0],[2,1,2,4],[2,5,2,8],[2,9,3,9]]}
["اسم العميل",null,"محمود عادل على",null,null,null,"الرصيد  الحالى",{"$f":"J34","v":0}]
[]
["م","مسحوبـــــــــــات",null,null,null,"تنزيـــــــــــــــــــــــــلات",null,null,null,"الرصيد"]
[null,"المبلغ","البيان","التاريخ","اليوم","المبلغ","البيان","التاريخ","اليوم"]
[1,null,null,null,{"$f":"IF(D5=\"\",\"\",TEXT(D5,\"ddd\"))","v":""},null,null,null,{"$f":"IF(H5=\"\",\"\",TEXT(H5,\"ddd\"))","v":""},{"$f":"B5-F5","v":0}]
[2,null,null,null,null,null,null,null,{"$f":"IF(H6=\"\",\"\",TEXT(H6,\"ddd\"))","v":""},{"$f":"J5+B6-F6","v":0}]
[3,null,null,null,{"$f":"IF(D7=\"\",\"\",TEXT(D7,\"ddd\"))","v":""},null,null,null,"",{"$f":"J6+B7-F7","v":0}]
[4,null,null,null,"",null,null,null,"",0]
[5,null,null,null,"",null,null,null,"",0]
[6,null,null,null,"",null,null,null,"",0]
[7,null,null,null,"",null,null,null,"",0]
[8,null,null,null,"",null,null,null,"",0]
[9,null,null,null,"",null,null,null,"",0]
[10,null,null,null,"",null,null,null,"",0]
[11,null,null,null,"",null,null,null,"",0]
[12,null,null,null,"",null,null,null,"",0]
[13,null,null,null,"",null,null,null,"",0]
[14,null,null,null,"",null,null,null,"",0]
[15,null,null,null,"",null,null,null,"",0]
[16,null,null,null,"",null,null,null,"",0]
[17,null,null,null,"",null,null,null,"",0]
[18,null,null,null,"",null,null,null,"",0]
[19,null,null,null,"",null,null,null,"",0]
[20,null,null,null,"",null,null,null,"",0]
[21,null,null,null,"",null,null,null,"",0]
[22,null,null,null,"",null,null,null,"",0]
[23,null,null,null,"",null,null,null,"",0]
[24,null,null,null,"",null,null,null,"",0]
[25,null,null,null,"",null,null,null,"",0]
[26,null,null,null,"",null,null,null,"",0]
[27,null,null,null,"",null,null,null,"",0]
[28,null,null,null,"",null,null,null,"",0]
[29,null,null,null,"",null,null,null,"",0]
[30,null,null,null,"",null,null,null,"",0]

{"sheet":"ناجي لطفى","index":37,"n_rows":34,"n_cols":10,"rows_kept":34,"cut":false,"hidden":false,"merged":[[0,0,1,1],[0,2,1,5],[0,6,1,6],[0,7,1,9],[2,0,3,0],[2,1,2,4],[2,5,2,8],[2,9,3,9]]}
["اسم العميل",null,"ناجي لطفى",null,null,null,"الرصيد  الحالى",{"$f":"J34","v":0}]
[]
["م","مسحوبـــــــــــات",null,null,null,"تنزيـــــــــــــــــــــــــلات",null,null,null,"الرصيد"]
[null,"المبلغ","البيان","التاريخ","اليوم","المبلغ","البيان","التاريخ","اليوم"]
[1,null,null,null,{"$f":"IF(D5=\"\",\"\",TEXT(D5,\"ddd\"))","v":""},null,null,null,{"$f":"IF(H5=\"\",\"\",TEXT(H5,\"ddd\"))","v":""},{"$f":"B5-F5","v":0}]
[2,null,null,null,null,null,null,null,{"$f":"IF(H6=\"\",\"\",TEXT(H6,\"ddd\"))","v":""},{"$f":"J5+B6-F6","v":0}]
[3,null,null,null,{"$f":"IF(D7=\"\",\"\",TEXT(D7,\"ddd\"))","v":""},null,null,null,"",{"$f":"J6+B7-F7","v":0}]
[4,null,null,null,"",null,null,null,"",0]
[5,null,null,null,"",null,null,null,"",0]
[6,null,null,null,"",null,null,null,"",0]
[7,null,null,null,"",null,null,null,"",0]
[8,null,null,null,"",null,null,null,"",0]
[9,null,null,null,"",null,null,null,"",0]
[10,null,null,null,"",null,null,null,"",0]
[11,null,null,null,"",null,null,null,"",0]
[12,null,null,null,"",null,null,null,"",0]
[13,null,null,null,"",null,null,null,"",0]
[14,null,null,null,"",null,null,null,"",0]
[15,null,null,null,"",null,null,null,"",0]
[16,null,null,null,"",null,null,null,"",0]
[17,null,null,null,"",null,null,null,"",0]
[18,null,null,null,"",null,null,null,"",0]
[19,null,null,null,"",null,null,null,"",0]
[20,null,null,null,"",null,null,null,"",0]
[21,null,null,null,"",null,null,null,"",0]
[22,null,null,null,"",null,null,null,"",0]
[23,null,null,null,"",null,null,null,"",0]
[24,null,null,null,"",null,null,null,"",0]
[25,null,null,null,"",null,null,null,"",0]
[26,null,null,null,"",null,null,null,"",0]
[27,null,null,null,"",null,null,null,"",0]
[28,null,null,null,"",null,null,null,"",0]
[29,null,null,null,"",null,null,null,"",0]
[30,null,null,null,"",null,null,null,"",0]

{"sheet":"مرات كمال عاشور","index":38,"n_rows":34,"n_cols":10,"rows_kept":34,"cut":false,"hidden":false,"merged":[[0,0,1,1],[0,2,1,5],[0,6,1,6],[0,7,1,9],[2,0,3,0],[2,1,2,4],[2,5,2,8],[2,9,3,9]]}
["اسم العميل",null,"مرات كمال عاشور",null,null,null,"الرصيد  الحالى",{"$f":"J34","v":0}]
[]
["م","مسحوبـــــــــــات",null,null,null,"تنزيـــــــــــــــــــــــــلات",null,null,null,"الرصيد"]
[null,"المبلغ","البيان","التاريخ","اليوم","المبلغ","البيان","التاريخ","اليوم"]
[1,null,null,null,{"$f":"IF(D5=\"\",\"\",TEXT(D5,\"ddd\"))","v":""},null,null,null,{"$f":"IF(H5=\"\",\"\",TEXT(H5,\"ddd\"))","v":""},{"$f":"B5-F5","v":0}]
[2,null,null,null,null,null,null,null,{"$f":"IF(H6=\"\",\"\",TEXT(H6,\"ddd\"))","v":""},{"$f":"J5+B6-F6","v":0}]
[3,null,null,null,{"$f":"IF(D7=\"\",\"\",TEXT(D7,\"ddd\"))","v":""},null,null,null,"",{"$f":"J6+B7-F7","v":0}]
[4,null,null,null,"",null,null,null,"",0]
[5,null,null,null,"",null,null,null,"",0]
[6,null,null,null,"",null,null,null,"",0]
[7,null,null,null,"",null,null,null,"",0]
[8,null,null,null,"",null,null,null,"",0]
[9,null,null,null,"",null,null,null,"",0]
[10,null,null,null,"",null,null,null,"",0]
[11,null,null,null,"",null,null,null,"",0]
[12,null,null,null,"",null,null,null,"",0]
[13,null,null,null,"",null,null,null,"",0]
[14,null,null,null,"",null,null,null,"",0]
[15,null,null,null,"",null,null,null,"",0]
[16,null,null,null,"",null,null,null,"",0]
[17,null,null,null,"",null,null,null,"",0]
[18,null,null,null,"",null,null,null,"",0]
[19,null,null,null,"",null,null,null,"",0]
[20,null,null,null,"",null,null,null,"",0]
[21,null,null,null,"",null,null,null,"",0]
[22,null,null,null,"",null,null,null,"",0]
[23,null,null,null,"",null,null,null,"",0]
[24,null,null,null,"",null,null,null,"",0]
[25,null,null,null,"",null,null,null,"",0]
[26,null,null,null,"",null,null,null,"",0]
[27,null,null,null,"",null,null,null,"",0]
[28,null,null,null,"",null,null,null,"",0]
[29,null,null,null,"",null,null,null,"",0]
[30,null,null,null,"",null,null,null,"",0]

{"sheet":"جمال محمد جاد","index":39,"n_rows":34,"n_cols":10,"rows_kept":34,"cut":false,"hidden":false,"merged":[[0,0,1,1],[0,2,1,5],[0,6,1,6],[0,7,1,9],[2,0,3,0],[2,1,2,4],[2,5,2,8],[2,9,3,9]]}
["اسم العميل",null,"جمال محمد جاد",null,null,null,"الرصيد  الحالى",{"$f":"J34","v":0}]
[]
["م","مسحوبـــــــــــات",null,null,null,"تنزيـــــــــــــــــــــــــلات",null,null,null,"الرصيد"]
[null,"المبلغ","البيان","التاريخ","اليوم","المبلغ","البيان","التاريخ","اليوم"]
[1,null,null,null,{"$f":"IF(D5=\"\",\"\",TEXT(D5,\"ddd\"))","v":""},null,null,null,{"$f":"IF(H5=\"\",\"\",TEXT(H5,\"ddd\"))","v":""},{"$f":"B5-F5","v":0}]
[2,null,null,null,null,null,null,null,{"$f":"IF(H6=\"\",\"\",TEXT(H6,\"ddd\"))","v":""},{"$f":"J5+B6-F6","v":0}]
[3,null,null,null,{"$f":"IF(D7=\"\",\"\",TEXT(D7,\"ddd\"))","v":""},null,null,null,"",{"$f":"J6+B7-F7","v":0}]
[4,null,null,null,"",null,null,null,"",0]
[5,null,null,null,"",null,null,null,"",0]
[6,null,null,null,"",null,null,null,"",0]
[7,null,null,null,"",null,null,null,"",0]
[8,null,null,null,"",null,null,null,"",0]
[9,null,null,null,"",null,null,null,"",0]
[10,null,null,null,"",null,null,null,"",0]
[11,null,null,null,"",null,null,null,"",0]
[12,null,null,null,"",null,null,null,"",0]
[13,null,null,null,"",null,null,null,"",0]
[14,null,null,null,"",null,null,null,"",0]
[15,null,null,null,"",null,null,null,"",0]
[16,null,null,null,"",null,null,null,"",0]
[17,null,null,null,"",null,null,null,"",0]
[18,null,null,null,"",null,null,null,"",0]
[19,null,null,null,"",null,null,null,"",0]
[20,null,null,null,"",null,null,null,"",0]
[21,null,null,null,"",null,null,null,"",0]
[22,null,null,null,"",null,null,null,"",0]
[23,null,null,null,"",null,null,null,"",0]
[24,null,null,null,"",null,null,null,"",0]
[25,null,null,null,"",null,null,null,"",0]
[26,null,null,null,"",null,null,null,"",0]
[27,null,null,null,"",null,null,null,"",0]
[28,null,null,null,"",null,null,null,"",0]
[29,null,null,null,"",null,null,null,"",0]
[30,null,null,null,"",null,null,null,"",0]

{"sheet":"بنت الشيخ خيري","index":40,"n_rows":34,"n_cols":10,"rows_kept":34,"cut":false,"hidden":false,"merged":[[0,0,1,1],[0,2,1,5],[0,6,1,6],[0,7,1,9],[2,0,3,0],[2,1,2,4],[2,5,2,8],[2,9,3,9]]}
["اسم العميل",null,"بنت الشيخ خيري",null,null,null,"الرصيد  الحالى",{"$f":"J34","v":0}]
[]
["م","مسحوبـــــــــــات",null,null,null,"تنزيـــــــــــــــــــــــــلات",null,null,null,"الرصيد"]
[null,"المبلغ","البيان","التاريخ","اليوم","المبلغ","البيان","التاريخ","اليوم"]
[1,null,null,null,{"$f":"IF(D5=\"\",\"\",TEXT(D5,\"ddd\"))","v":""},null,null,null,{"$f":"IF(H5=\"\",\"\",TEXT(H5,\"ddd\"))","v":""},{"$f":"B5-F5","v":0}]
[2,null,null,null,null,null,null,null,{"$f":"IF(H6=\"\",\"\",TEXT(H6,\"ddd\"))","v":""},{"$f":"J5+B6-F6","v":0}]
[3,null,null,null,{"$f":"IF(D7=\"\",\"\",TEXT(D7,\"ddd\"))","v":""},null,null,null,"",{"$f":"J6+B7-F7","v":0}]
[4,null,null,null,"",null,null,null,"",0]
[5,null,null,null,"",null,null,null,"",0]
[6,null,null,null,"",null,null,null,"",0]
[7,null,null,null,"",null,null,null,"",0]
[8,null,null,null,"",null,null,null,"",0]
[9,null,null,null,"",null,null,null,"",0]
[10,null,null,null,"",null,null,null,"",0]
[11,null,null,null,"",null,null,null,"",0]
[12,null,null,null,"",null,null,null,"",0]
[13,null,null,null,"",null,null,null,"",0]
[14,null,null,null,"",null,null,null,"",0]
[15,null,null,null,"",null,null,null,"",0]
[16,null,null,null,"",null,null,null,"",0]
[17,null,null,null,"",null,null,null,"",0]
[18,null,null,null,"",null,null,null,"",0]
[19,null,null,null,"",null,null,null,"",0]
[20,null,null,null,"",null,null,null,"",0]
[21,null,null,null,"",null,null,null,"",0]
[22,null,null,null,"",null,null,null,"",0]
[23,null,null,null,"",null,null,null,"",0]
[24,null,null,null,"",null,null,null,"",0]
[25,null,null,null,"",null,null,null,"",0]
[26,null,null,null,"",null,null,null,"",0]
[27,null,null,null,"",null,null,null,"",0]
[28,null,null,null,"",null,null,null,"",0]
[29,null,null,null,"",null,null,null,"",0]
[30,null,null,null,"",null,null,null,"",0]

{"sheet":"عبد الناصر ابو بكر","index":41,"n_rows":34,"n_cols":10,"rows_kept":34,"cut":false,"hidden":false,"merged":[[0,0,1,1],[0,2,1,5],[0,6,1,6],[0,7,1,9],[2,0,3,0],[2,1,2,4],[2,5,2,8],[2,9,3,9]]}
["اسم العميل",null,"عبد الناصر ابو بكر",null,null,null,"الرصيد  الحالى",{"$f":"J34","v":0}]
[]
["م","مسحوبـــــــــــات",null,null,null,"تنزيـــــــــــــــــــــــــلات",null,null,null,"الرصيد"]
[null,"المبلغ","البيان","التاريخ","اليوم","المبلغ","البيان","التاريخ","اليوم"]
[1,null,null,null,{"$f":"IF(D5=\"\",\"\",TEXT(D5,\"ddd\"))","v":""},null,null,null,{"$f":"IF(H5=\"\",\"\",TEXT(H5,\"ddd\"))","v":""},{"$f":"B5-F5","v":0}]
[2,null,null,null,null,null,null,null,{"$f":"IF(H6=\"\",\"\",TEXT(H6,\"ddd\"))","v":""},{"$f":"J5+B6-F6","v":0}]
[3,null,null,null,{"$f":"IF(D7=\"\",\"\",TEXT(D7,\"ddd\"))","v":""},null,null,null,"",{"$f":"J6+B7-F7","v":0}]
[4,null,null,null,"",null,null,null,"",0]
[5,null,null,null,"",null,null,null,"",0]
[6,null,null,null,"",null,null,null,"",0]
[7,null,null,null,"",null,null,null,"",0]
[8,null,null,null,"",null,null,null,"",0]
[9,null,null,null,"",null,null,null,"",0]
[10,null,null,null,"",null,null,null,"",0]
[11,null,null,null,"",null,null,null,"",0]
[12,null,null,null,"",null,null,null,"",0]
[13,null,null,null,"",null,null,null,"",0]
[14,null,null,null,"",null,null,null,"",0]
[15,null,null,null,"",null,null,null,"",0]
[16,null,null,null,"",null,null,null,"",0]
[17,null,null,null,"",null,null,null,"",0]
[18,null,null,null,"",null,null,null,"",0]
[19,null,null,null,"",null,null,null,"",0]
[20,null,null,null,"",null,null,null,"",0]
[21,null,null,null,"",null,null,null,"",0]
[22,null,null,null,"",null,null,null,"",0]
[23,null,null,null,"",null,null,null,"",0]
[24,null,null,null,"",null,null,null,"",0]
[25,null,null,null,"",null,null,null,"",0]
[26,null,null,null,"",null,null,null,"",0]
[27,null,null,null,"",null,null,null,"",0]
[28,null,null,null,"",null,null,null,"",0]
[29,null,null,null,"",null,null,null,"",0]
[30,null,null,null,"",null,null,null,"",0]

{"sheet":"الحاج ابراهيم عيسى","index":42,"n_rows":34,"n_cols":10,"rows_kept":34,"cut":false,"hidden":false,"merged":[[0,0,1,1],[0,2,1,5],[0,6,1,6],[0,7,1,9],[2,0,3,0],[2,1,2,4],[2,5,2,8],[2,9,3,9]]}
["اسم العميل",null,"الحاج ابراهيم عيسى",null,null,null,"الرصيد  الحالى",{"$f":"J34","v":0}]
[]
["م","مسحوبـــــــــــات",null,null,null,"تنزيـــــــــــــــــــــــــلات",null,null,null,"الرصيد"]
[null,"المبلغ","البيان","التاريخ","اليوم","المبلغ","البيان","التاريخ","اليوم"]
[1,null,null,null,{"$f":"IF(D5=\"\",\"\",TEXT(D5,\"ddd\"))","v":""},null,null,null,{"$f":"IF(H5=\"\",\"\",TEXT(H5,\"ddd\"))","v":""},{"$f":"B5-F5","v":0}]
[2,null,null,null,null,null,null,null,{"$f":"IF(H6=\"\",\"\",TEXT(H6,\"ddd\"))","v":""},{"$f":"J5+B6-F6","v":0}]
[3,null,null,null,{"$f":"IF(D7=\"\",\"\",TEXT(D7,\"ddd\"))","v":""},null,null,null,"",{"$f":"J6+B7-F7","v":0}]
[4,null,null,null,"",null,null,null,"",0]
[5,null,null,null,"",null,null,null,"",0]
[6,null,null,null,"",null,null,null,"",0]
[7,null,null,null,"",null,null,null,"",0]
[8,null,null,null,"",null,null,null,"",0]
[9,null,null,null,"",null,null,null,"",0]
[10,null,null,null,"",null,null,null,"",0]
[11,null,null,null,"",null,null,null,"",0]
[12,null,null,null,"",null,null,null,"",0]
[13,null,null,null,"",null,null,null,"",0]
[14,null,null,null,"",null,null,null,"",0]
[15,null,null,null,"",null,null,null,"",0]
[16,null,null,null,"",null,null,null,"",0]
[17,null,null,null,"",null,null,null,"",0]
[18,null,null,null,"",null,null,null,"",0]
[19,null,null,null,"",null,null,null,"",0]
[20,null,null,null,"",null,null,null,"",0]
[21,null,null,null,"",null,null,null,"",0]
[22,null,null,null,"",null,null,null,"",0]
[23,null,null,null,"",null,null,null,"",0]
[24,null,null,null,"",null,null,null,"",0]
[25,null,null,null,"",null,null,null,"",0]
[26,null,null,null,"",null,null,null,"",0]
[27,null,null,null,"",null,null,null,"",0]
[28,null,null,null,"",null,null,null,"",0]
[29,null,null,null,"",null,null,null,"",0]
[30,null,null,null,"",null,null,null,"",0]

{"sheet":"وليد محمود","index":43,"n_rows":34,"n_cols":10,"rows_kept":34,"cut":false,"hidden":false,"merged":[[0,0,1,1],[0,2,1,5],[0,6,1,6],[0,7,1,9],[2,0,3,0],[2,1,2,4],[2,5,2,8],[2,9,3,9]]}
["اسم العميل",null,"وليد محمود",null,null,null,"الرصيد  الحالى",{"$f":"J34","v":0}]
[]
["م","مسحوبـــــــــــات",null,null,null,"تنزيـــــــــــــــــــــــــلات",null,null,null,"الرصيد"]
[null,"المبلغ","البيان","التاريخ","اليوم","المبلغ","البيان","التاريخ","اليوم"]
[1,null,null,null,{"$f":"IF(D5=\"\",\"\",TEXT(D5,\"ddd\"))","v":""},null,null,null,{"$f":"IF(H5=\"\",\"\",TEXT(H5,\"ddd\"))","v":""},{"$f":"B5-F5","v":0}]
[2,null,null,null,null,null,null,null,{"$f":"IF(H6=\"\",\"\",TEXT(H6,\"ddd\"))","v":""},{"$f":"J5+B6-F6","v":0}]
[3,null,null,null,{"$f":"IF(D7=\"\",\"\",TEXT(D7,\"ddd\"))","v":""},null,null,null,"",{"$f":"J6+B7-F7","v":0}]
[4,null,null,null,"",null,null,null,"",0]
[5,null,null,null,"",null,null,null,"",0]
[6,null,null,null,"",null,null,null,"",0]
[7,null,null,null,"",null,null,null,"",0]
[8,null,null,null,"",null,null,null,"",0]
[9,null,null,null,"",null,null,null,"",0]
[10,null,null,null,"",null,null,null,"",0]
[11,null,null,null,"",null,null,null,"",0]
[12,null,null,null,"",null,null,null,"",0]
[13,null,null,null,"",null,null,null,"",0]
[14,null,null,null,"",null,null,null,"",0]
[15,null,null,null,"",null,null,null,"",0]
[16,null,null,null,"",null,null,null,"",0]
[17,null,null,null,"",null,null,null,"",0]
[18,null,null,null,"",null,null,null,"",0]
[19,null,null,null,"",null,null,null,"",0]
[20,null,null,null,"",null,null,null,"",0]
[21,null,null,null,"",null,null,null,"",0]
[22,null,null,null,"",null,null,null,"",0]
[23,null,null,null,"",null,null,null,"",0]
[24,null,null,null,"",null,null,null,"",0]
[25,null,null,null,"",null,null,null,"",0]
[26,null,null,null,"",null,null,null,"",0]
[27,null,null,null,"",null,null,null,"",0]
[28,null,null,null,"",null,null,null,"",0]
[29,null,null,null,"",null,null,null,"",0]
[30,null,null,null,"",null,null,null,"",0]

{"sheet":"مرات بليغ عبد الله","index":44,"n_rows":34,"n_cols":10,"rows_kept":34,"cut":false,"hidden":false,"merged":[[0,0,1,1],[0,2,1,5],[0,6,1,6],[0,7,1,9],[2,0,3,0],[2,1,2,4],[2,5,2,8],[2,9,3,9]]}
["اسم العميل",null,"مرات بليغ عبد الله",null,null,null,"الرصيد  الحالى",{"$f":"J34","v":0}]
[]
["م","مسحوبـــــــــــات",null,null,null,"تنزيـــــــــــــــــــــــــلات",null,null,null,"الرصيد"]
[null,"المبلغ","البيان","التاريخ","اليوم","المبلغ","البيان","التاريخ","اليوم"]
[1,null,null,null,{"$f":"IF(D5=\"\",\"\",TEXT(D5,\"ddd\"))","v":""},null,null,null,{"$f":"IF(H5=\"\",\"\",TEXT(H5,\"ddd\"))","v":""},{"$f":"B5-F5","v":0}]
[2,null,null,null,null,null,null,null,{"$f":"IF(H6=\"\",\"\",TEXT(H6,\"ddd\"))","v":""},{"$f":"J5+B6-F6","v":0}]
[3,null,null,null,{"$f":"IF(D7=\"\",\"\",TEXT(D7,\"ddd\"))","v":""},null,null,null,"",{"$f":"J6+B7-F7","v":0}]
[4,null,null,null,"",null,null,null,"",0]
[5,null,null,null,"",null,null,null,"",0]
[6,null,null,null,"",null,null,null,"",0]
[7,null,null,null,"",null,null,null,"",0]
[8,null,null,null,"",null,null,null,"",0]
[9,null,null,null,"",null,null,null,"",0]
[10,null,null,null,"",null,null,null,"",0]
[11,null,null,null,"",null,null,null,"",0]
[12,null,null,null,"",null,null,null,"",0]
[13,null,null,null,"",null,null,null,"",0]
[14,null,null,null,"",null,null,null,"",0]
[15,null,null,null,"",null,null,null,"",0]
[16,null,null,null,"",null,null,null,"",0]
[17,null,null,null,"",null,null,null,"",0]
[18,null,null,null,"",null,null,null,"",0]
[19,null,null,null,"",null,null,null,"",0]
[20,null,null,null,"",null,null,null,"",0]
[21,null,null,null,"",null,null,null,"",0]
[22,null,null,null,"",null,null,null,"",0]
[23,null,null,null,"",null,null,null,"",0]
[24,null,null,null,"",null,null,null,"",0]
[25,null,null,null,"",null,null,null,"",0]
[26,null,null,null,"",null,null,null,"",0]
[27,null,null,null,"",null,null,null,"",0]
[28,null,null,null,"",null,null,null,"",0]
[29,null,null,null,"",null,null,null,"",0]
[30,null,null,null,"",null,null,null,"",0]

{"sheet":"الشيخ ربيع ابراهيم حمودة","index":45,"n_rows":34,"n_cols":10,"rows_kept":34,"cut":false,"hidden":false,"merged":[[0,0,1,1],[0,2,1,5],[0,6,1,6],[0,7,1,9],[2,0,3,0],[2,1,2,4],[2,5,2,8],[2,9,3,9]]}
["اسم العميل",null,"الشيخ ربيع ابراهيم حمودة",null,null,null,"الرصيد  الحالى",{"$f":"J34","v":0}]
[]
["م","مسحوبـــــــــــات",null,null,null,"تنزيـــــــــــــــــــــــــلات",null,null,null,"الرصيد"]
[null,"المبلغ","البيان","التاريخ","اليوم","المبلغ","البيان","التاريخ","اليوم"]
[1,null,null,null,{"$f":"IF(D5=\"\",\"\",TEXT(D5,\"ddd\"))","v":""},null,null,null,{"$f":"IF(H5=\"\",\"\",TEXT(H5,\"ddd\"))","v":""},{"$f":"B5-F5","v":0}]
[2,null,null,null,null,null,null,null,{"$f":"IF(H6=\"\",\"\",TEXT(H6,\"ddd\"))","v":""},{"$f":"J5+B6-F6","v":0}]
[3,null,null,null,{"$f":"IF(D7=\"\",\"\",TEXT(D7,\"ddd\"))","v":""},null,null,null,"",{"$f":"J6+B7-F7","v":0}]
[4,null,null,null,"",null,null,null,"",0]
[5,null,null,null,"",null,null,null,"",0]
[6,null,null,null,"",null,null,null,"",0]
[7,null,null,null,"",null,null,null,"",0]
[8,null,null,null,"",null,null,null,"",0]
[9,null,null,null,"",null,null,null,"",0]
[10,null,null,null,"",null,null,null,"",0]
[11,null,null,null,"",null,null,null,"",0]
[12,null,null,null,"",null,null,null,"",0]
[13,null,null,null,"",null,null,null,"",0]
[14,null,null,null,"",null,null,null,"",0]
[15,null,null,null,"",null,null,null,"",0]
[16,null,null,null,"",null,null,null,"",0]
[17,null,null,null,"",null,null,null,"",0]
[18,null,null,null,"",null,null,null,"",0]
[19,null,null,null,"",null,null,null,"",0]
[20,null,null,null,"",null,null,null,"",0]
[21,null,null,null,"",null,null,null,"",0]
[22,null,null,null,"",null,null,null,"",0]
[23,null,null,null,"",null,null,null,"",0]
[24,null,null,null,"",null,null,null,"",0]
[25,null,null,null,"",null,null,null,"",0]
[26,null,null,null,"",null,null,null,"",0]
[27,null,null,null,"",null,null,null,"",0]
[28,null,null,null,"",null,null,null,"",0]
[29,null,null,null,"",null,null,null,"",0]
[30,null,null,null,"",null,null,null,"",0]

{"sheet":"كرامات","index":46,"n_rows":34,"n_cols":10,"rows_kept":34,"cut":false,"hidden":false,"merged":[[0,0,1,1],[0,2,1,5],[0,6,1,6],[0,7,1,9],[2,0,3,0],[2,1,2,4],[2,5,2,8],[2,9,3,9]]}
["اسم العميل",null,"كرامات",null,null,null,"الرصيد  الحالى",{"$f":"J34","v":0}]
[]
["م","مسحوبـــــــــــات",null,null,null,"تنزيـــــــــــــــــــــــــلات",null,null,null,"الرصيد"]
[null,"المبلغ","البيان","التاريخ","اليوم","المبلغ","البيان","التاريخ","اليوم"]
[1,null,null,null,{"$f":"IF(D5=\"\",\"\",TEXT(D5,\"ddd\"))","v":""},null,null,null,{"$f":"IF(H5=\"\",\"\",TEXT(H5,\"ddd\"))","v":""},{"$f":"B5-F5","v":0}]
[2,null,null,null,null,null,null,null,{"$f":"IF(H6=\"\",\"\",TEXT(H6,\"ddd\"))","v":""},{"$f":"J5+B6-F6","v":0}]
[3,null,null,null,{"$f":"IF(D7=\"\",\"\",TEXT(D7,\"ddd\"))","v":""},null,null,null,"",{"$f":"J6+B7-F7","v":0}]
[4,null,null,null,"",null,null,null,"",0]
[5,null,null,null,"",null,null,null,"",0]
[6,null,null,null,"",null,null,null,"",0]
[7,null,null,null,"",null,null,null,"",0]
[8,null,null,null,"",null,null,null,"",0]
[9,null,null,null,"",null,null,null,"",0]
[10,null,null,null,"",null,null,null,"",0]
[11,null,null,null,"",null,null,null,"",0]
[12,null,null,null,"",null,null,null,"",0]
[13,null,null,null,"",null,null,null,"",0]
[14,null,null,null,"",null,null,null,"",0]
[15,null,null,null,"",null,null,null,"",0]
[16,null,null,null,"",null,null,null,"",0]
[17,null,null,null,"",null,null,null,"",0]
[18,null,null,null,"",null,null,null,"",0]
[19,null,null,null,"",null,null,null,"",0]
[20,null,null,null,"",null,null,null,"",0]
[21,null,null,null,"",null,null,null,"",0]
[22,null,null,null,"",null,null,null,"",0]
[23,null,null,null,"",null,null,null,"",0]
[24,null,null,null,"",null,null,null,"",0]
[25,null,null,null,"",null,null,null,"",0]
[26,null,null,null,"",null,null,null,"",0]
[27,null,null,null,"",null,null,null,"",0]
[28,null,null,null,"",null,null,null,"",0]
[29,null,null,null,"",null,null,null,"",0]
[30,null,null,null,"",null,null,null,"",0]

{"sheet":"ام عمارمرات الشيخ عثمان","index":47,"n_rows":34,"n_cols":10,"rows_kept":34,"cut":false,"hidden":false,"merged":[[0,0,1,1],[0,2,1,5],[0,6,1,6],[0,7,1,9],[2,0,3,0],[2,1,2,4],[2,5,2,8],[2,9,3,9]]}
["اسم العميل",null,"ام عمارمرات الشيخ عثمان",null,null,null,"الرصيد  الحالى",{"$f":"J34","v":0}]
[]
["م","مسحوبـــــــــــات",null,null,null,"تنزيـــــــــــــــــــــــــلات",null,null,null,"الرصيد"]
[null,"المبلغ","البيان","التاريخ","اليوم","المبلغ","البيان","التاريخ","اليوم"]
[1,null,null,null,{"$f":"IF(D5=\"\",\"\",TEXT(D5,\"ddd\"))","v":""},null,null,null,{"$f":"IF(H5=\"\",\"\",TEXT(H5,\"ddd\"))","v":""},{"$f":"B5-F5","v":0}]
[2,null,null,null,null,null,null,null,{"$f":"IF(H6=\"\",\"\",TEXT(H6,\"ddd\"))","v":""},{"$f":"J5+B6-F6","v":0}]
[3,null,null,null,{"$f":"IF(D7=\"\",\"\",TEXT(D7,\"ddd\"))","v":""},null,null,null,"",{"$f":"J6+B7-F7","v":0}]
[4,null,null,null,"",null,null,null,"",0]
[5,null,null,null,"",null,null,null,"",0]
[6,null,null,null,"",null,null,null,"",0]
[7,null,null,null,"",null,null,null,"",0]
[8,null,null,null,"",null,null,null,"",0]
[9,null,null,null,"",null,null,null,"",0]
[10,null,null,null,"",null,null,null,"",0]
[11,null,null,null,"",null,null,null,"",0]
[12,null,null,null,"",null,null,null,"",0]
[13,null,null,null,"",null,null,null,"",0]
[14,null,null,null,"",null,null,null,"",0]
[15,null,null,null,"",null,null,null,"",0]
[16,null,null,null,"",null,null,null,"",0]
[17,null,null,null,"",null,null,null,"",0]
[18,null,null,null,"",null,null,null,"",0]
[19,null,null,null,"",null,null,null,"",0]
[20,null,null,null,"",null,null,null,"",0]
[21,null,null,null,"",null,null,null,"",0]
[22,null,null,null,"",null,null,null,"",0]
[23,null,null,null,"",null,null,null,"",0]
[24,null,null,null,"",null,null,null,"",0]
[25,null,null,null,"",null,null,null,"",0]
[26,null,null,null,"",null,null,null,"",0]
[27,null,null,null,"",null,null,null,"",0]
[28,null,null,null,"",null,null,null,"",0]
[29,null,null,null,"",null,null,null,"",0]
[30,null,null,null,"",null,null,null,"",0]

{"sheet":"الشيخ خلف محروس","index":48,"n_rows":34,"n_cols":10,"rows_kept":34,"cut":false,"hidden":false,"merged":[[0,0,1,1],[0,2,1,5],[0,6,1,6],[0,7,1,9],[2,0,3,0],[2,1,2,4],[2,5,2,8],[2,9,3,9]]}
["اسم العميل",null,"الشيخ خلف محروس",null,null,null,"الرصيد  الحالى",{"$f":"J34","v":0}]
[]
["م","مسحوبـــــــــــات",null,null,null,"تنزيـــــــــــــــــــــــــلات",null,null,null,"الرصيد"]
[null,"المبلغ","البيان","التاريخ","اليوم","المبلغ","البيان","التاريخ","اليوم"]
[1,null,null,null,{"$f":"IF(D5=\"\",\"\",TEXT(D5,\"ddd\"))","v":""},null,null,null,{"$f":"IF(H5=\"\",\"\",TEXT(H5,\"ddd\"))","v":""},{"$f":"B5-F5","v":0}]
[2,null,null,null,null,null,null,null,{"$f":"IF(H6=\"\",\"\",TEXT(H6,\"ddd\"))","v":""},{"$f":"J5+B6-F6","v":0}]
[3,null,null,null,{"$f":"IF(D7=\"\",\"\",TEXT(D7,\"ddd\"))","v":""},null,null,null,"",{"$f":"J6+B7-F7","v":0}]
[4,null,null,null,"",null,null,null,"",0]
[5,null,null,null,"",null,null,null,"",0]
[6,null,null,null,"",null,null,null,"",0]
[7,null,null,null,"",null,null,null,"",0]
[8,null,null,null,"",null,null,null,"",0]
[9,null,null,null,"",null,null,null,"",0]
[10,null,null,null,"",null,null,null,"",0]
[11,null,null,null,"",null,null,null,"",0]
[12,null,null,null,"",null,null,null,"",0]
[13,null,null,null,"",null,null,null,"",0]
[14,null,null,null,"",null,null,null,"",0]
[15,null,null,null,"",null,null,null,"",0]
[16,null,null,null,"",null,null,null,"",0]
[17,null,null,null,"",null,null,null,"",0]
[18,null,null,null,"",null,null,null,"",0]
[19,null,null,null,"",null,null,null,"",0]
[20,null,null,null,"",null,null,null,"",0]
[21,null,null,null,"",null,null,null,"",0]
[22,null,null,null,"",null,null,null,"",0]
[23,null,null,null,"",null,null,null,"",0]
[24,null,null,null,"",null,null,null,"",0]
[25,null,null,null,"",null,null,null,"",0]
[26,null,null,null,"",null,null,null,"",0]
[27,null,null,null,"",null,null,null,"",0]
[28,null,null,null,"",null,null,null,"",0]
[29,null,null,null,"",null,null,null,"",0]
[30,null,null,null,"",null,null,null,"",0]

{"sheet":"ام احمد نافع","index":49,"n_rows":34,"n_cols":10,"rows_kept":34,"cut":false,"hidden":false,"merged":[[0,0,1,1],[0,2,1,5],[0,6,1,6],[0,7,1,9],[2,0,3,0],[2,1,2,4],[2,5,2,8],[2,9,3,9]]}
["اسم العميل",null,"ام احمد نافع",null,null,null,"الرصيد  الحالى",{"$f":"J34","v":0}]
[]
["م","مسحوبـــــــــــات",null,null,null,"تنزيـــــــــــــــــــــــــلات",null,null,null,"الرصيد"]
[null,"المبلغ","البيان","التاريخ","اليوم","المبلغ","البيان","التاريخ","اليوم"]
[1,null,null,null,{"$f":"IF(D5=\"\",\"\",TEXT(D5,\"ddd\"))","v":""},null,null,null,{"$f":"IF(H5=\"\",\"\",TEXT(H5,\"ddd\"))","v":""},{"$f":"B5-F5","v":0}]
[2,null,null,null,null,null,null,null,{"$f":"IF(H6=\"\",\"\",TEXT(H6,\"ddd\"))","v":""},{"$f":"J5+B6-F6","v":0}]
[3,null,null,null,{"$f":"IF(D7=\"\",\"\",TEXT(D7,\"ddd\"))","v":""},null,null,null,"",{"$f":"J6+B7-F7","v":0}]
[4,null,null,null,"",null,null,null,"",0]
[5,null,null,null,"",null,null,null,"",0]
[6,null,null,null,"",null,null,null,"",0]
[7,null,null,null,"",null,null,null,"",0]
[8,null,null,null,"",null,null,null,"",0]
[9,null,null,null,"",null,null,null,"",0]
[10,null,null,null,"",null,null,null,"",0]
[11,null,null,null,"",null,null,null,"",0]
[12,null,null,null,"",null,null,null,"",0]
[13,null,null,null,"",null,null,null,"",0]
[14,null,null,null,"",null,null,null,"",0]
[15,null,null,null,"",null,null,null,"",0]
[16,null,null,null,"",null,null,null,"",0]
[17,null,null,null,"",null,null,null,"",0]
[18,null,null,null,"",null,null,null,"",0]
[19,null,null,null,"",null,null,null,"",0]
[20,null,null,null,"",null,null,null,"",0]
[21,null,null,null,"",null,null,null,"",0]
[22,null,null,null,"",null,null,null,"",0]
[23,null,null,null,"",null,null,null,"",0]
[24,null,null,null,"",null,null,null,"",0]
[25,null,null,null,"",null,null,null,"",0]
[26,null,null,null,"",null,null,null,"",0]
[27,null,null,null,"",null,null,null,"",0]
[28,null,null,null,"",null,null,null,"",0]
[29,null,null,null,"",null,null,null,"",0]
[30,null,null,null,"",null,null,null,"",0]

{"sheet":"محمود امين عبد الحفيظ","index":50,"n_rows":34,"n_cols":10,"rows_kept":34,"cut":false,"hidden":false,"merged":[[0,0,1,1],[0,2,1,5],[0,6,1,6],[0,7,1,9],[2,0,3,0],[2,1,2,4],[2,5,2,8],[2,9,3,9]]}
["اسم العميل",null,"محمود امين عبد الحفيظ",null,null,null,"الرصيد  الحالى",{"$f":"J34","v":0}]
[]
["م","مسحوبـــــــــــات",null,null,null,"تنزيـــــــــــــــــــــــــلات",null,null,null,"الرصيد"]
[null,"المبلغ","البيان","التاريخ","اليوم","المبلغ","البيان","التاريخ","اليوم"]
[1,null,null,null,{"$f":"IF(D5=\"\",\"\",TEXT(D5,\"ddd\"))","v":""},null,null,null,{"$f":"IF(H5=\"\",\"\",TEXT(H5,\"ddd\"))","v":""},{"$f":"B5-F5","v":0}]
[2,null,null,null,null,null,null,null,{"$f":"IF(H6=\"\",\"\",TEXT(H6,\"ddd\"))","v":""},{"$f":"J5+B6-F6","v":0}]
[3,null,null,null,{"$f":"IF(D7=\"\",\"\",TEXT(D7,\"ddd\"))","v":""},null,null,null,"",{"$f":"J6+B7-F7","v":0}]
[4,null,null,null,"",null,null,null,"",0]
[5,null,null,null,"",null,null,null,"",0]
[6,null,null,null,"",null,null,null,"",0]
[7,null,null,null,"",null,null,null,"",0]
[8,null,null,null,"",null,null,null,"",0]
[9,null,null,null,"",null,null,null,"",0]
[10,null,null,null,"",null,null,null,"",0]
[11,null,null,null,"",null,null,null,"",0]
[12,null,null,null,"",null,null,null,"",0]
[13,null,null,null,"",null,null,null,"",0]
[14,null,null,null,"",null,null,null,"",0]
[15,null,null,null,"",null,null,null,"",0]
[16,null,null,null,"",null,null,null,"",0]
[17,null,null,null,"",null,null,null,"",0]
[18,null,null,null,"",null,null,null,"",0]
[19,null,null,null,"",null,null,null,"",0]
[20,null,null,null,"",null,null,null,"",0]
[21,null,null,null,"",null,null,null,"",0]
[22,null,null,null,"",null,null,null,"",0]
[23,null,null,null,"",null,null,null,"",0]
[24,null,null,null,"",null,null,null,"",0]
[25,null,null,null,"",null,null,null,"",0]
[26,null,null,null,"",null,null,null,"",0]
[27,null,null,null,"",null,null,null,"",0]
[28,null,null,null,"",null,null,null,"",0]
[29,null,null,null,"",null,null,null,"",0]
[30,null,null,null,"",null,null,null,"",0]

{"sheet":"مرات سيف معتمد","index":51,"n_rows":34,"n_cols":10,"rows_kept":34,"cut":false,"hidden":false,"merged":[[0,0,1,1],[0,2,1,5],[0,6,1,6],[0,7,1,9],[2,0,3,0],[2,1,2,4],[2,5,2,8],[2,9,3,9]]}
["اسم العميل",null,"مرات سيف معتمد",null,null,null,"الرصيد  الحالى",{"$f":"J34","v":0}]
[]
["م","مسحوبـــــــــــات",null,null,null,"تنزيـــــــــــــــــــــــــلات",null,null,null,"الرصيد"]
[null,"المبلغ","البيان","التاريخ","اليوم","المبلغ","البيان","التاريخ","اليوم"]
[1,null,null,null,{"$f":"IF(D5=\"\",\"\",TEXT(D5,\"ddd\"))","v":""},null,null,null,{"$f":"IF(H5=\"\",\"\",TEXT(H5,\"ddd\"))","v":""},{"$f":"B5-F5","v":0}]
[2,null,null,null,null,null,null,null,{"$f":"IF(H6=\"\",\"\",TEXT(H6,\"ddd\"))","v":""},{"$f":"J5+B6-F6","v":0}]
[3,null,null,null,{"$f":"IF(D7=\"\",\"\",TEXT(D7,\"ddd\"))","v":""},null,null,null,"",{"$f":"J6+B7-F7","v":0}]
[4,null,null,null,"",null,null,null,"",0]
[5,null,null,null,"",null,null,null,"",0]
[6,null,null,null,"",null,null,null,"",0]
[7,null,null,null,"",null,null,null,"",0]
[8,null,null,null,"",null,null,null,"",0]
[9,null,null,null,"",null,null,null,"",0]
[10,null,null,null,"",null,null,null,"",0]
[11,null,null,null,"",null,null,null,"",0]
[12,null,null,null,"",null,null,null,"",0]
[13,null,null,null,"",null,null,null,"",0]
[14,null,null,null,"",null,null,null,"",0]
[15,null,null,null,"",null,null,null,"",0]
[16,null,null,null,"",null,null,null,"",0]
[17,null,null,null,"",null,null,null,"",0]
[18,null,null,null,"",null,null,null,"",0]
[19,null,null,null,"",null,null,null,"",0]
[20,null,null,null,"",null,null,null,"",0]
[21,null,null,null,"",null,null,null,"",0]
[22,null,null,null,"",null,null,null,"",0]
[23,null,null,null,"",null,null,null,"",0]
[24,null,null,null,"",null,null,null,"",0]
[25,null,null,null,"",null,null,null,"",0]
[26,null,null,null,"",null,null,null,"",0]
[27,null,null,null,"",null,null,null,"",0]
[28,null,null,null,"",null,null,null,"",0]
[29,null,null,null,"",null,null,null,"",0]
[30,null,null,null,"",null,null,null,"",0]

{"sheet":"محمد خميس","index":52,"n_rows":34,"n_cols":10,"rows_kept":34,"cut":false,"hidden":false,"merged":[[0,0,1,1],[0,2,1,5],[0,6,1,6],[0,7,1,9],[2,0,3,0],[2,1,2,4],[2,5,2,8],[2,9,3,9]]}
["اسم العميل",null,"محمد خميس",null,null,null,"الرصيد  الحالى",{"$f":"J34","v":0}]
[]
["م","مسحوبـــــــــــات",null,null,null,"تنزيـــــــــــــــــــــــــلات",null,null,null,"الرصيد"]
[null,"المبلغ","البيان","التاريخ","اليوم","المبلغ","البيان","التاريخ","اليوم"]
[1,null,null,null,{"$f":"IF(D5=\"\",\"\",TEXT(D5,\"ddd\"))","v":""},null,null,null,{"$f":"IF(H5=\"\",\"\",TEXT(H5,\"ddd\"))","v":""},{"$f":"B5-F5","v":0}]
[2,null,null,null,null,null,null,null,{"$f":"IF(H6=\"\",\"\",TEXT(H6,\"ddd\"))","v":""},{"$f":"J5+B6-F6","v":0}]
[3,null,null,null,{"$f":"IF(D7=\"\",\"\",TEXT(D7,\"ddd\"))","v":""},null,null,null,"",{"$f":"J6+B7-F7","v":0}]
[4,null,null,null,"",null,null,null,"",0]
[5,null,null,null,"",null,null,null,"",0]
[6,null,null,null,"",null,null,null,"",0]
[7,null,null,null,"",null,null,null,"",0]
[8,null,null,null,"",null,null,null,"",0]
[9,null,null,null,"",null,null,null,"",0]
[10,null,null,null,"",null,null,null,"",0]
[11,null,null,null,"",null,null,null,"",0]
[12,null,null,null,"",null,null,null,"",0]
[13,null,null,null,"",null,null,null,"",0]
[14,null,null,null,"",null,null,null,"",0]
[15,null,null,null,"",null,null,null,"",0]
[16,null,null,null,"",null,null,null,"",0]
[17,null,null,null,"",null,null,null,"",0]
[18,null,null,null,"",null,null,null,"",0]
[19,null,null,null,"",null,null,null,"",0]
[20,null,null,null,"",null,null,null,"",0]
[21,null,null,null,"",null,null,null,"",0]
[22,null,null,null,"",null,null,null,"",0]
[23,null,null,null,"",null,null,null,"",0]
[24,null,null,null,"",null,null,null,"",0]
[25,null,null,null,"",null,null,null,"",0]
[26,null,null,null,"",null,null,null,"",0]
[27,null,null,null,"",null,null,null,"",0]
[28,null,null,null,"",null,null,null,"",0]
[29,null,null,null,"",null,null,null,"",0]
[30,null,null,null,"",null,null,null,"",0]

{"sheet":"شيماء جمعه","index":53,"n_rows":34,"n_cols":10,"rows_kept":34,"cut":false,"hidden":false,"merged":[[0,0,1,1],[0,2,1,5],[0,6,1,6],[0,7,1,9],[2,0,3,0],[2,1,2,4],[2,5,2,8],[2,9,3,9]]}
["اسم العميل",null,"شيماء جمعه",null,null,null,"الرصيد  الحالى",{"$f":"J34","v":0}]
[]
["م","مسحوبـــــــــــات",null,null,null,"تنزيـــــــــــــــــــــــــلات",null,null,null,"الرصيد"]
[null,"المبلغ","البيان","التاريخ","اليوم","المبلغ","البيان","التاريخ","اليوم"]
[1,null,null,null,{"$f":"IF(D5=\"\",\"\",TEXT(D5,\"ddd\"))","v":""},null,null,null,{"$f":"IF(H5=\"\",\"\",TEXT(H5,\"ddd\"))","v":""},{"$f":"B5-F5","v":0}]
[2,null,null,null,null,null,null,null,{"$f":"IF(H6=\"\",\"\",TEXT(H6,\"ddd\"))","v":""},{"$f":"J5+B6-F6","v":0}]
[3,null,null,null,{"$f":"IF(D7=\"\",\"\",TEXT(D7,\"ddd\"))","v":""},null,null,null,"",{"$f":"J6+B7-F7","v":0}]
[4,null,null,null,"",null,null,null,"",0]
[5,null,null,null,"",null,null,null,"",0]
[6,null,null,null,"",null,null,null,"",0]
[7,null,null,null,"",null,null,null,"",0]
[8,null,null,null,"",null,null,null,"",0]
[9,null,null,null,"",null,null,null,"",0]
[10,null,null,null,"",null,null,null,"",0]
[11,null,null,null,"",null,null,null,"",0]
[12,null,null,null,"",null,null,null,"",0]
[13,null,null,null,"",null,null,null,"",0]
[14,null,null,null,"",null,null,null,"",0]
[15,null,null,null,"",null,null,null,"",0]
[16,null,null,null,"",null,null,null,"",0]
[17,null,null,null,"",null,null,null,"",0]
[18,null,null,null,"",null,null,null,"",0]
[19,null,null,null,"",null,null,null,"",0]
[20,null,null,null,"",null,null,null,"",0]
[21,null,null,null,"",null,null,null,"",0]
[22,null,null,null,"",null,null,null,"",0]
[23,null,null,null,"",null,null,null,"",0]
[24,null,null,null,"",null,null,null,"",0]
[25,null,null,null,"",null,null,null,"",0]
[26,null,null,null,"",null,null,null,"",0]
[27,null,null,null,"",null,null,null,"",0]
[28,null,null,null,"",null,null,null,"",0]
[29,null,null,null,"",null,null,null,"",0]
[30,null,null,null,"",null,null,null,"",0]

{"sheet":"مرات احمد محمد احمد الجزار","index":54,"n_rows":34,"n_cols":10,"rows_kept":34,"cut":false,"hidden":false,"merged":[[0,0,1,1],[0,2,1,5],[0,6,1,6],[0,7,1,9],[2,0,3,0],[2,1,2,4],[2,5,2,8],[2,9,3,9]]}
["اسم العميل",null,"مرات احمد محمد احمد الجزار",null,null,null,"الرصيد  الحالى",{"$f":"J34","v":0}]
[]
["م","مسحوبـــــــــــات",null,null,null,"تنزيـــــــــــــــــــــــــلات",null,null,null,"الرصيد"]
[null,"المبلغ","البيان","التاريخ","اليوم","المبلغ","البيان","التاريخ","اليوم"]
[1,null,null,null,{"$f":"IF(D5=\"\",\"\",TEXT(D5,\"ddd\"))","v":""},null,null,null,{"$f":"IF(H5=\"\",\"\",TEXT(H5,\"ddd\"))","v":""},{"$f":"B5-F5","v":0}]
[2,null,null,null,null,null,null,null,{"$f":"IF(H6=\"\",\"\",TEXT(H6,\"ddd\"))","v":""},{"$f":"J5+B6-F6","v":0}]
[3,null,null,null,{"$f":"IF(D7=\"\",\"\",TEXT(D7,\"ddd\"))","v":""},null,null,null,"",{"$f":"J6+B7-F7","v":0}]
[4,null,null,null,"",null,null,null,"",0]
[5,null,null,null,"",null,null,null,"",0]
[6,null,null,null,"",null,null,null,"",0]
[7,null,null,null,"",null,null,null,"",0]
[8,null,null,null,"",null,null,null,"",0]
[9,null,null,null,"",null,null,null,"",0]
[10,null,null,null,"",null,null,null,"",0]
[11,null,null,null,"",null,null,null,"",0]
[12,null,null,null,"",null,null,null,"",0]
[13,null,null,null,"",null,null,null,"",0]
[14,null,null,null,"",null,null,null,"",0]
[15,null,null,null,"",null,null,null,"",0]
[16,null,null,null,"",null,null,null,"",0]
[17,null,null,null,"",null,null,null,"",0]
[18,null,null,null,"",null,null,null,"",0]
[19,null,null,null,"",null,null,null,"",0]
[20,null,null,null,"",null,null,null,"",0]
[21,null,null,null,"",null,null,null,"",0]
[22,null,null,null,"",null,null,null,"",0]
[23,null,null,null,"",null,null,null,"",0]
[24,null,null,null,"",null,null,null,"",0]
[25,null,null,null,"",null,null,null,"",0]
[26,null,null,null,"",null,null,null,"",0]
[27,null,null,null,"",null,null,null,"",0]
[28,null,null,null,"",null,null,null,"",0]
[29,null,null,null,"",null,null,null,"",0]
[30,null,null,null,"",null,null,null,"",0]

{"sheet":"حسام النجار","index":55,"n_rows":34,"n_cols":10,"rows_kept":34,"cut":false,"hidden":false,"merged":[[0,0,1,1],[0,2,1,5],[0,6,1,6],[0,7,1,9],[2,0,3,0],[2,1,2,4],[2,5,2,8],[2,9,3,9]]}
["اسم\nالعميل",null,"حسام النجار",null,null,null,"الرصيد  الحالى",{"$f":"J34","v":0}]
[]
["م","مسحوبـــــــــــات",null,null,null,"تنزيـــــــــــــــــــــــــلات",null,null,null,"الرصيد"]
[null,"المبلغ","البيان","التاريخ","اليوم","المبلغ","البيان","التاريخ","اليوم"]
[1,null,null,"2023-01-01",{"$f":"IF(D5=\"\",\"\",TEXT(D5,\"ddd\"))","v":"الأحد"},null,null,null,{"$f":"IF(H5=\"\",\"\",TEXT(H5,\"ddd\"))","v":""},{"$f":"B5-F5","v":0}]
[2,null,null,null,{"$f":"IF(D6=\"\",\"\",TEXT(D6,\"ddd\"))","v":""},null,null,null,{"$f":"IF(H6=\"\",\"\",TEXT(H6,\"ddd\"))","v":""},{"$f":"J5+B6-F6","v":0}]
[3,null,null,null,"",null,null,null,"",{"$f":"J6+B7-F7","v":0}]
[4,null,null,null,"",null,null,null,"",0]
[5,null,null,null,"",null,null,null,"",0]
[6,null,null,null,"",null,null,null,"",0]
[7,null,null,null,"",null,null,null,"",0]
[8,null,null,null,"",null,null,null,"",0]
[9,null,null,null,"",null,null,null,"",0]
[10,null,null,null,"",null,null,null,"",0]
[11,null,null,null,"",null,null,null,"",0]
[12,null,null,null,"",null,null,null,"",0]
[13,null,null,null,"",null,null,null,"",0]
[14,null,null,null,"",null,null,null,"",0]
[15,null,null,null,"",null,null,null,"",0]
[16,null,null,null,"",null,null,null,"",0]
[17,null,null,null,"",null,null,null,"",0]
[18,null,null,null,"",null,null,null,"",0]
[19,null,null,null,"",null,null,null,"",0]
[20,null,null,null,"",null,null,null,"",0]
[21,null,null,null,"",null,null,null,"",0]
[22,null,null,null,"",null,null,null,"",0]
[23,null,null,null,"",null,null,null,"",0]
[24,null,null,null,"",null,null,null,"",0]
[25,null,null,null,"",null,null,null,"",0]
[26,null,null,null,"",null,null,null,"",0]
[27,null,null,null,"",null,null,null,"",0]
[28,null,null,null,"",null,null,null,"",0]
[29,null,null,null,"",null,null,null,"",0]
[30,null,null,null,"",null,null,null,"",0]

{"sheet":"خليفه كبدة","index":56,"n_rows":34,"n_cols":10,"rows_kept":34,"cut":false,"hidden":false,"merged":[[0,0,1,1],[0,2,1,5],[0,6,1,6],[0,7,1,9],[2,0,3,0],[2,1,2,4],[2,5,2,8],[2,9,3,9]]}
["اسم\nالعميل",null,"خليفه كبدة",null,null,null,"الرصيد  الحالى",{"$f":"J34","v":0}]
[]
["م","مسحوبـــــــــــات",null,null,null,"تنزيـــــــــــــــــــــــــلات",null,null,null,"الرصيد"]
[null,"المبلغ","البيان","التاريخ","اليوم","المبلغ","البيان","التاريخ","اليوم"]
[1,null,null,"2023-01-01",{"$f":"IF(D5=\"\",\"\",TEXT(D5,\"ddd\"))","v":"الأحد"},null,null,null,{"$f":"IF(H5=\"\",\"\",TEXT(H5,\"ddd\"))","v":""},{"$f":"B5-F5","v":0}]
[2,null,null,null,{"$f":"IF(D6=\"\",\"\",TEXT(D6,\"ddd\"))","v":""},null,null,null,{"$f":"IF(H6=\"\",\"\",TEXT(H6,\"ddd\"))","v":""},{"$f":"J5+B6-F6","v":0}]
[3,null,null,null,"",null,null,null,"",{"$f":"J6+B7-F7","v":0}]
[4,null,null,null,"",null,null,null,"",0]
[5,null,null,null,"",null,null,null,"",0]
[6,null,null,null,"",null,null,null,"",0]
[7,null,null,null,"",null,null,null,"",0]
[8,null,null,null,"",null,null,null,"",0]
[9,null,null,null,"",null,null,null,"",0]
[10,null,null,null,"",null,null,null,"",0]
[11,null,null,null,"",null,null,null,"",0]
[12,null,null,null,"",null,null,null,"",0]
[13,null,null,null,"",null,null,null,"",0]
[14,null,null,null,"",null,null,null,"",0]
[15,null,null,null,"",null,null,null,"",0]
[16,null,null,null,"",null,null,null,"",0]
[17,null,null,null,"",null,null,null,"",0]
[18,null,null,null,"",null,null,null,"",0]
[19,null,null,null,"",null,null,null,"",0]
[20,null,null,null,"",null,null,null,"",0]
[21,null,null,null,"",null,null,null,"",0]
[22,null,null,null,"",null,null,null,"",0]
[23,null,null,null,"",null,null,null,"",0]
[24,null,null,null,"",null,null,null,"",0]
[25,null,null,null,"",null,null,null,"",0]
[26,null,null,null,"",null,null,null,"",0]
[27,null,null,null,"",null,null,null,"",0]
[28,null,null,null,"",null,null,null,"",0]
[29,null,null,null,"",null,null,null,"",0]
[30,null,null,null,"",null,null,null,"",0]

{"sheet":"رقيه عونى","index":57,"n_rows":34,"n_cols":10,"rows_kept":34,"cut":false,"hidden":false,"merged":[[0,0,1,1],[0,2,1,5],[0,6,1,6],[0,7,1,9],[2,0,3,0],[2,1,2,4],[2,5,2,8],[2,9,3,9]]}
["اسم\nالعميل",null,"رقيه عونى",null,null,null,"الرصيد  الحالى",{"$f":"J34","v":0}]
[]
["م","مسحوبـــــــــــات",null,null,null,"تنزيـــــــــــــــــــــــــلات",null,null,null,"الرصيد"]
[null,"المبلغ","البيان","التاريخ","اليوم","المبلغ","البيان","التاريخ","اليوم"]
[1,null,null,"2023-01-01",{"$f":"IF(D5=\"\",\"\",TEXT(D5,\"ddd\"))","v":"الأحد"},null,null,null,{"$f":"IF(H5=\"\",\"\",TEXT(H5,\"ddd\"))","v":""},{"$f":"B5-F5","v":0}]
[2,null,null,null,{"$f":"IF(D6=\"\",\"\",TEXT(D6,\"ddd\"))","v":""},null,null,null,{"$f":"IF(H6=\"\",\"\",TEXT(H6,\"ddd\"))","v":""},{"$f":"J5+B6-F6","v":0}]
[3,null,null,null,"",null,null,null,"",{"$f":"J6+B7-F7","v":0}]
[4,null,null,null,"",null,null,null,"",0]
[5,null,null,null,"",null,null,null,"",0]
[6,null,null,null,"",null,null,null,"",0]
[7,null,null,null,"",null,null,null,"",0]
[8,null,null,null,"",null,null,null,"",0]
[9,null,null,null,"",null,null,null,"",0]
[10,null,null,null,"",null,null,null,"",0]
[11,null,null,null,"",null,null,null,"",0]
[12,null,null,null,"",null,null,null,"",0]
[13,null,null,null,"",null,null,null,"",0]
[14,null,null,null,"",null,null,null,"",0]
[15,null,null,null,"",null,null,null,"",0]
[16,null,null,null,"",null,null,null,"",0]
[17,null,null,null,"",null,null,null,"",0]
[18,null,null,null,"",null,null,null,"",0]
[19,null,null,null,"",null,null,null,"",0]
[20,null,null,null,"",null,null,null,"",0]
[21,null,null,null,"",null,null,null,"",0]
[22,null,null,null,"",null,null,null,"",0]
[23,null,null,null,"",null,null,null,"",0]
[24,null,null,null,"",null,null,null,"",0]
[25,null,null,null,"",null,null,null,"",0]
[26,null,null,null,"",null,null,null,"",0]
[27,null,null,null,"",null,null,null,"",0]
[28,null,null,null,"",null,null,null,"",0]
[29,null,null,null,"",null,null,null,"",0]
[30,null,null,null,"",null,null,null,"",0]

{"sheet":"عرفه رجب فارس","index":58,"n_rows":34,"n_cols":10,"rows_kept":34,"cut":false,"hidden":false,"merged":[[0,0,1,1],[0,2,1,5],[0,6,1,6],[0,7,1,9],[2,0,3,0],[2,1,2,4],[2,5,2,8],[2,9,3,9]]}
["اسم\nالعميل",null,"عرفه رجب فارس",null,null,null,"الرصيد  الحالى",{"$f":"J34","v":0}]
[]
["م","مسحوبـــــــــــات",null,null,null,"تنزيـــــــــــــــــــــــــلات",null,null,null,"الرصيد"]
[null,"المبلغ","البيان","التاريخ","اليوم","المبلغ","البيان","التاريخ","اليوم"]
[1,null,null,"2023-01-01",{"$f":"IF(D5=\"\",\"\",TEXT(D5,\"ddd\"))","v":"الأحد"},null,null,null,{"$f":"IF(H5=\"\",\"\",TEXT(H5,\"ddd\"))","v":""},{"$f":"B5-F5","v":0}]
[2,null,null,null,{"$f":"IF(D6=\"\",\"\",TEXT(D6,\"ddd\"))","v":""},null,null,null,{"$f":"IF(H6=\"\",\"\",TEXT(H6,\"ddd\"))","v":""},{"$f":"J5+B6-F6","v":0}]
[3,null,null,null,"",null,null,null,"",{"$f":"J6+B7-F7","v":0}]
[4,null,null,null,"",null,null,null,"",0]
[5,null,null,null,"",null,null,null,"",0]
[6,null,null,null,"",null,null,null,"",0]
[7,null,null,null,"",null,null,null,"",0]
[8,null,null,null,"",null,null,null,"",0]
[9,null,null,null,"",null,null,null,"",0]
[10,null,null,null,"",null,null,null,"",0]
[11,null,null,null,"",null,null,null,"",0]
[12,null,null,null,"",null,null,null,"",0]
[13,null,null,null,"",null,null,null,"",0]
[14,null,null,null,"",null,null,null,"",0]
[15,null,null,null,"",null,null,null,"",0]
[16,null,null,null,"",null,null,null,"",0]
[17,null,null,null,"",null,null,null,"",0]
[18,null,null,null,"",null,null,null,"",0]
[19,null,null,null,"",null,null,null,"",0]
[20,null,null,null,"",null,null,null,"",0]
[21,null,null,null,"",null,null,null,"",0]
[22,null,null,null,"",null,null,null,"",0]
[23,null,null,null,"",null,null,null,"",0]
[24,null,null,null,"",null,null,null,"",0]
[25,null,null,null,"",null,null,null,"",0]
[26,null,null,null,"",null,null,null,"",0]
[27,null,null,null,"",null,null,null,"",0]
[28,null,null,null,"",null,null,null,"",0]
[29,null,null,null,"",null,null,null,"",0]
[30,null,null,null,"",null,null,null,"",0]

{"sheet":"ناجى محمد على","index":59,"n_rows":34,"n_cols":10,"rows_kept":34,"cut":false,"hidden":false,"merged":[[0,0,1,1],[0,2,1,5],[0,6,1,6],[0,7,1,9],[2,0,3,0],[2,1,2,4],[2,5,2,8],[2,9,3,9]]}
["اسم\nالعميل",null,"ناجى محمد على",null,null,null,"الرصيد  الحالى",{"$f":"J34","v":0}]
[]
["م","مسحوبـــــــــــات",null,null,null,"تنزيـــــــــــــــــــــــــلات",null,null,null,"الرصيد"]
[null,"المبلغ","البيان","التاريخ","اليوم","المبلغ","البيان","التاريخ","اليوم"]
[1,null,null,"2023-01-01",{"$f":"IF(D5=\"\",\"\",TEXT(D5,\"ddd\"))","v":"الأحد"},null,null,null,{"$f":"IF(H5=\"\",\"\",TEXT(H5,\"ddd\"))","v":""},{"$f":"B5-F5","v":0}]
[2,null,null,null,{"$f":"IF(D6=\"\",\"\",TEXT(D6,\"ddd\"))","v":""},null,null,null,{"$f":"IF(H6=\"\",\"\",TEXT(H6,\"ddd\"))","v":""},{"$f":"J5+B6-F6","v":0}]
[3,null,null,null,"",null,null,null,"",{"$f":"J6+B7-F7","v":0}]
[4,null,null,null,"",null,null,null,"",0]
[5,null,null,null,"",null,null,null,"",0]
[6,null,null,null,"",null,null,null,"",0]
[7,null,null,null,"",null,null,null,"",0]
[8,null,null,null,"",null,null,null,"",0]
[9,null,null,null,"",null,null,null,"",0]
[10,null,null,null,"",null,null,null,"",0]
[11,null,null,null,"",null,null,null,"",0]
[12,null,null,null,"",null,null,null,"",0]
[13,null,null,null,"",null,null,null,"",0]
[14,null,null,null,"",null,null,null,"",0]
[15,null,null,null,"",null,null,null,"",0]
[16,null,null,null,"",null,null,null,"",0]
[17,null,null,null,"",null,null,null,"",0]
[18,null,null,null,"",null,null,null,"",0]
[19,null,null,null,"",null,null,null,"",0]
[20,null,null,null,"",null,null,null,"",0]
[21,null,null,null,"",null,null,null,"",0]
[22,null,null,null,"",null,null,null,"",0]
[23,null,null,null,"",null,null,null,"",0]
[24,null,null,null,"",null,null,null,"",0]
[25,null,null,null,"",null,null,null,"",0]
[26,null,null,null,"",null,null,null,"",0]
[27,null,null,null,"",null,null,null,"",0]
[28,null,null,null,"",null,null,null,"",0]
[29,null,null,null,"",null,null,null,"",0]
[30,null,null,null,"",null,null,null,"",0]

{"sheet":"رضا محمود عبد الفتاح","index":60,"n_rows":34,"n_cols":10,"rows_kept":34,"cut":false,"hidden":false,"merged":[[0,0,1,1],[0,2,1,5],[0,6,1,6],[0,7,1,9],[2,0,3,0],[2,1,2,4],[2,5,2,8],[2,9,3,9]]}
["اسم\nالعميل",null,"رضا محمود عبد الفتاح",null,null,null,"الرصيد  الحالى",{"$f":"J34","v":0}]
[]
["م","مسحوبـــــــــــات",null,null,null,"تنزيـــــــــــــــــــــــــلات",null,null,null,"الرصيد"]
[null,"المبلغ","البيان","التاريخ","اليوم","المبلغ","البيان","التاريخ","اليوم"]
[1,null,null,"2023-01-01",{"$f":"IF(D5=\"\",\"\",TEXT(D5,\"ddd\"))","v":"الأحد"},null,null,null,{"$f":"IF(H5=\"\",\"\",TEXT(H5,\"ddd\"))","v":""},{"$f":"B5-F5","v":0}]
[2,null,null,null,{"$f":"IF(D6=\"\",\"\",TEXT(D6,\"ddd\"))","v":""},null,null,null,{"$f":"IF(H6=\"\",\"\",TEXT(H6,\"ddd\"))","v":""},{"$f":"J5+B6-F6","v":0}]
[3,null,null,null,"",null,null,null,"",{"$f":"J6+B7-F7","v":0}]
[4,null,null,null,"",null,null,null,"",0]
[5,null,null,null,"",null,null,null,"",0]
[6,null,null,null,"",null,null,null,"",0]
[7,null,null,null,"",null,null,null,"",0]
[8,null,null,null,"",null,null,null,"",0]
[9,null,null,null,"",null,null,null,"",0]
[10,null,null,null,"",null,null,null,"",0]
[11,null,null,null,"",null,null,null,"",0]
[12,null,null,null,"",null,null,null,"",0]
[13,null,null,null,"",null,null,null,"",0]
[14,null,null,null,"",null,null,null,"",0]
[15,null,null,null,"",null,null,null,"",0]
[16,null,null,null,"",null,null,null,"",0]
[17,null,null,null,"",null,null,null,"",0]
[18,null,null,null,"",null,null,null,"",0]
[19,null,null,null,"",null,null,null,"",0]
[20,null,null,null,"",null,null,null,"",0]
[21,null,null,null,"",null,null,null,"",0]
[22,null,null,null,"",null,null,null,"",0]
[23,null,null,null,"",null,null,null,"",0]
[24,null,null,null,"",null,null,null,"",0]
[25,null,null,null,"",null,null,null,"",0]
[26,null,null,null,"",null,null,null,"",0]
[27,null,null,null,"",null,null,null,"",0]
[28,null,null,null,"",null,null,null,"",0]
[29,null,null,null,"",null,null,null,"",0]
[30,null,null,null,"",null,null,null,"",0]

{"sheet":"محمد ابراهيم عمر","index":61,"n_rows":34,"n_cols":10,"rows_kept":34,"cut":false,"hidden":false,"merged":[[0,0,1,1],[0,2,1,5],[0,6,1,6],[0,7,1,9],[2,0,3,0],[2,1,2,4],[2,5,2,8],[2,9,3,9]]}
["اسم\nالعميل",null,"محمد ابراهيم عمر",null,null,null,"الرصيد  الحالى",{"$f":"J34","v":0}]
[]
["م","مسحوبـــــــــــات",null,null,null,"تنزيـــــــــــــــــــــــــلات",null,null,null,"الرصيد"]
[null,"المبلغ","البيان","التاريخ","اليوم","المبلغ","البيان","التاريخ","اليوم"]
[1,null,null,"2023-01-01",{"$f":"IF(D5=\"\",\"\",TEXT(D5,\"ddd\"))","v":"الأحد"},null,null,null,{"$f":"IF(H5=\"\",\"\",TEXT(H5,\"ddd\"))","v":""},{"$f":"B5-F5","v":0}]
[2,null,null,null,{"$f":"IF(D6=\"\",\"\",TEXT(D6,\"ddd\"))","v":""},null,null,null,{"$f":"IF(H6=\"\",\"\",TEXT(H6,\"ddd\"))","v":""},{"$f":"J5+B6-F6","v":0}]
[3,null,null,null,"",null,null,null,"",{"$f":"J6+B7-F7","v":0}]
[4,null,null,null,"",null,null,null,"",0]
[5,null,null,null,"",null,null,null,"",0]
[6,null,null,null,"",null,null,null,"",0]
[7,null,null,null,"",null,null,null,"",0]
[8,null,null,null,"",null,null,null,"",0]
[9,null,null,null,"",null,null,null,"",0]
[10,null,null,null,"",null,null,null,"",0]
[11,null,null,null,"",null,null,null,"",0]
[12,null,null,null,"",null,null,null,"",0]
[13,null,null,null,"",null,null,null,"",0]
[14,null,null,null,"",null,null,null,"",0]
[15,null,null,null,"",null,null,null,"",0]
[16,null,null,null,"",null,null,null,"",0]
[17,null,null,null,"",null,null,null,"",0]
[18,null,null,null,"",null,null,null,"",0]
[19,null,null,null,"",null,null,null,"",0]
[20,null,null,null,"",null,null,null,"",0]
[21,null,null,null,"",null,null,null,"",0]
[22,null,null,null,"",null,null,null,"",0]
[23,null,null,null,"",null,null,null,"",0]
[24,null,null,null,"",null,null,null,"",0]
[25,null,null,null,"",null,null,null,"",0]
[26,null,null,null,"",null,null,null,"",0]
[27,null,null,null,"",null,null,null,"",0]
[28,null,null,null,"",null,null,null,"",0]
[29,null,null,null,"",null,null,null,"",0]
[30,null,null,null,"",null,null,null,"",0]

{"sheet":"خيرى اسماعيل","index":62,"n_rows":34,"n_cols":10,"rows_kept":34,"cut":false,"hidden":false,"merged":[[0,0,1,1],[0,2,1,5],[0,6,1,6],[0,7,1,9],[2,0,3,0],[2,1,2,4],[2,5,2,8],[2,9,3,9]]}
["اسم\nالعميل",null,"خيرى اسماعيل",null,null,null,"الرصيد  الحالى",{"$f":"J34","v":0}]
[]
["م","مسحوبـــــــــــات",null,null,null,"تنزيـــــــــــــــــــــــــلات",null,null,null,"الرصيد"]
[null,"المبلغ","البيان","التاريخ","اليوم","المبلغ","البيان","التاريخ","اليوم"]
[1,null,null,"2023-01-01",{"$f":"IF(D5=\"\",\"\",TEXT(D5,\"ddd\"))","v":"الأحد"},null,null,null,{"$f":"IF(H5=\"\",\"\",TEXT(H5,\"ddd\"))","v":""},{"$f":"B5-F5","v":0}]
[2,null,null,null,{"$f":"IF(D6=\"\",\"\",TEXT(D6,\"ddd\"))","v":""},null,null,null,{"$f":"IF(H6=\"\",\"\",TEXT(H6,\"ddd\"))","v":""},{"$f":"J5+B6-F6","v":0}]
[3,null,null,null,"",null,null,null,"",{"$f":"J6+B7-F7","v":0}]
[4,null,null,null,"",null,null,null,"",0]
[5,null,null,null,"",null,null,null,"",0]
[6,null,null,null,"",null,null,null,"",0]
[7,null,null,null,"",null,null,null,"",0]
[8,null,null,null,"",null,null,null,"",0]
[9,null,null,null,"",null,null,null,"",0]
[10,null,null,null,"",null,null,null,"",0]
[11,null,null,null,"",null,null,null,"",0]
[12,null,null,null,"",null,null,null,"",0]
[13,null,null,null,"",null,null,null,"",0]
[14,null,null,null,"",null,null,null,"",0]
[15,null,null,null,"",null,null,null,"",0]
[16,null,null,null,"",null,null,null,"",0]
[17,null,null,null,"",null,null,null,"",0]
[18,null,null,null,"",null,null,null,"",0]
[19,null,null,null,"",null,null,null,"",0]
[20,null,null,null,"",null,null,null,"",0]
[21,null,null,null,"",null,null,null,"",0]
[22,null,null,null,"",null,null,null,"",0]
[23,null,null,null,"",null,null,null,"",0]
[24,null,null,null,"",null,null,null,"",0]
[25,null,null,null,"",null,null,null,"",0]
[26,null,null,null,"",null,null,null,"",0]
[27,null,null,null,"",null,null,null,"",0]
[28,null,null,null,"",null,null,null,"",0]
[29,null,null,null,"",null,null,null,"",0]
[30,null,null,null,"",null,null,null,"",0]

{"sheet":"ربيع محمود","index":63,"n_rows":34,"n_cols":10,"rows_kept":34,"cut":false,"hidden":false,"merged":[[0,0,1,1],[0,2,1,5],[0,6,1,6],[0,7,1,9],[2,0,3,0],[2,1,2,4],[2,5,2,8],[2,9,3,9]]}
["اسم\nالعميل",null,"ربيع محمود",null,null,null,"الرصيد  الحالى",{"$f":"J34","v":0}]
[]
["م","مسحوبـــــــــــات",null,null,null,"تنزيـــــــــــــــــــــــــلات",null,null,null,"الرصيد"]
[null,"المبلغ","البيان","التاريخ","اليوم","المبلغ","البيان","التاريخ","اليوم"]
[1,null,null,"2023-01-01",{"$f":"IF(D5=\"\",\"\",TEXT(D5,\"ddd\"))","v":"الأحد"},null,null,null,{"$f":"IF(H5=\"\",\"\",TEXT(H5,\"ddd\"))","v":""},{"$f":"B5-F5","v":0}]
[2,null,null,null,{"$f":"IF(D6=\"\",\"\",TEXT(D6,\"ddd\"))","v":""},null,null,null,{"$f":"IF(H6=\"\",\"\",TEXT(H6,\"ddd\"))","v":""},{"$f":"J5+B6-F6","v":0}]
[3,null,null,null,"",null,null,null,"",{"$f":"J6+B7-F7","v":0}]
[4,null,null,null,"",null,null,null,"",0]
[5,null,null,null,"",null,null,null,"",0]
[6,null,null,null,"",null,null,null,"",0]
[7,null,null,null,"",null,null,null,"",0]
[8,null,null,null,"",null,null,null,"",0]
[9,null,null,null,"",null,null,null,"",0]
[10,null,null,null,"",null,null,null,"",0]
[11,null,null,null,"",null,null,null,"",0]
[12,null,null,null,"",null,null,null,"",0]
[13,null,null,null,"",null,null,null,"",0]
[14,null,null,null,"",null,null,null,"",0]
[15,null,null,null,"",null,null,null,"",0]
[16,null,null,null,"",null,null,null,"",0]
[17,null,null,null,"",null,null,null,"",0]
[18,null,null,null,"",null,null,null,"",0]
[19,null,null,null,"",null,null,null,"",0]
[20,null,null,null,"",null,null,null,"",0]
[21,null,null,null,"",null,null,null,"",0]
[22,null,null,null,"",null,null,null,"",0]
[23,null,null,null,"",null,null,null,"",0]
[24,null,null,null,"",null,null,null,"",0]
[25,null,null,null,"",null,null,null,"",0]
[26,null,null,null,"",null,null,null,"",0]
[27,null,null,null,"",null,null,null,"",0]
[28,null,null,null,"",null,null,null,"",0]
[29,null,null,null,"",null,null,null,"",0]
[30,null,null,null,"",null,null,null,"",0]

{"sheet":"مرات احمد خيرى","index":64,"n_rows":34,"n_cols":10,"rows_kept":34,"cut":false,"hidden":false,"merged":[[0,0,1,1],[0,2,1,5],[0,6,1,6],[0,7,1,9],[2,0,3,0],[2,1,2,4],[2,5,2,8],[2,9,3,9]]}
["اسم\nالعميل",null,"مرات احمد خيرى",null,null,null,"الرصيد  الحالى",{"$f":"J34","v":0}]
[]
["م","مسحوبـــــــــــات",null,null,null,"تنزيـــــــــــــــــــــــــلات",null,null,null,"الرصيد"]
[null,"المبلغ","البيان","التاريخ","اليوم","المبلغ","البيان","التاريخ","اليوم"]
[1,null,null,"2023-01-01",{"$f":"IF(D5=\"\",\"\",TEXT(D5,\"ddd\"))","v":"الأحد"},null,null,null,{"$f":"IF(H5=\"\",\"\",TEXT(H5,\"ddd\"))","v":""},{"$f":"B5-F5","v":0}]
[2,null,null,null,{"$f":"IF(D6=\"\",\"\",TEXT(D6,\"ddd\"))","v":""},null,null,null,{"$f":"IF(H6=\"\",\"\",TEXT(H6,\"ddd\"))","v":""},{"$f":"J5+B6-F6","v":0}]
[3,null,null,null,"",null,null,null,"",{"$f":"J6+B7-F7","v":0}]
[4,null,null,null,"",null,null,null,"",0]
[5,null,null,null,"",null,null,null,"",0]
[6,null,null,null,"",null,null,null,"",0]
[7,null,null,null,"",null,null,null,"",0]
[8,null,null,null,"",null,null,null,"",0]
[9,null,null,null,"",null,null,null,"",0]
[10,null,null,null,"",null,null,null,"",0]
[11,null,null,null,"",null,null,null,"",0]
[12,null,null,null,"",null,null,null,"",0]
[13,null,null,null,"",null,null,null,"",0]
[14,null,null,null,"",null,null,null,"",0]
[15,null,null,null,"",null,null,null,"",0]
[16,null,null,null,"",null,null,null,"",0]
[17,null,null,null,"",null,null,null,"",0]
[18,null,null,null,"",null,null,null,"",0]
[19,null,null,null,"",null,null,null,"",0]
[20,null,null,null,"",null,null,null,"",0]
[21,null,null,null,"",null,null,null,"",0]
[22,null,null,null,"",null,null,null,"",0]
[23,null,null,null,"",null,null,null,"",0]
[24,null,null,null,"",null,null,null,"",0]
[25,null,null,null,"",null,null,null,"",0]
[26,null,null,null,"",null,null,null,"",0]
[27,null,null,null,"",null,null,null,"",0]
[28,null,null,null,"",null,null,null,"",0]
[29,null,null,null,"",null,null,null,"",0]
[30,null,null,null,"",null,null,null,"",0]

{"sheet":"بثينه قياتى","index":65,"n_rows":34,"n_cols":10,"rows_kept":34,"cut":false,"hidden":false,"merged":[[0,0,1,1],[0,2,1,5],[0,6,1,6],[0,7,1,9],[2,0,3,0],[2,1,2,4],[2,5,2,8],[2,9,3,9]]}
["اسم\nالعميل",null,"بثينه قياتى",null,null,null,"الرصيد  الحالى",{"$f":"J34","v":0}]
[]
["م","مسحوبـــــــــــات",null,null,null,"تنزيـــــــــــــــــــــــــلات",null,null,null,"الرصيد"]
[null,"المبلغ","البيان","التاريخ","اليوم","المبلغ","البيان","التاريخ","اليوم"]
[1,null,null,"2023-01-01",{"$f":"IF(D5=\"\",\"\",TEXT(D5,\"ddd\"))","v":"الأحد"},null,null,null,{"$f":"IF(H5=\"\",\"\",TEXT(H5,\"ddd\"))","v":""},{"$f":"B5-F5","v":0}]
[2,null,null,null,{"$f":"IF(D6=\"\",\"\",TEXT(D6,\"ddd\"))","v":""},null,null,null,{"$f":"IF(H6=\"\",\"\",TEXT(H6,\"ddd\"))","v":""},{"$f":"J5+B6-F6","v":0}]
[3,null,null,null,"",null,null,null,"",{"$f":"J6+B7-F7","v":0}]
[4,null,null,null,"",null,null,null,"",0]
[5,null,null,null,"",null,null,null,"",0]
[6,null,null,null,"",null,null,null,"",0]
[7,null,null,null,"",null,null,null,"",0]
[8,null,null,null,"",null,null,null,"",0]
[9,null,null,null,"",null,null,null,"",0]
[10,null,null,null,"",null,null,null,"",0]
[11,null,null,null,"",null,null,null,"",0]
[12,null,null,null,"",null,null,null,"",0]
[13,null,null,null,"",null,null,null,"",0]
[14,null,null,null,"",null,null,null,"",0]
[15,null,null,null,"",null,null,null,"",0]
[16,null,null,null,"",null,null,null,"",0]
[17,null,null,null,"",null,null,null,"",0]
[18,null,null,null,"",null,null,null,"",0]
[19,null,null,null,"",null,null,null,"",0]
[20,null,null,null,"",null,null,null,"",0]
[21,null,null,null,"",null,null,null,"",0]
[22,null,null,null,"",null,null,null,"",0]
[23,null,null,null,"",null,null,null,"",0]
[24,null,null,null,"",null,null,null,"",0]
[25,null,null,null,"",null,null,null,"",0]
[26,null,null,null,"",null,null,null,"",0]
[27,null,null,null,"",null,null,null,"",0]
[28,null,null,null,"",null,null,null,"",0]
[29,null,null,null,"",null,null,null,"",0]
[30,null,null,null,"",null,null,null,"",0]

{"sheet":"اشرف عبد الرحمن","index":66,"n_rows":34,"n_cols":10,"rows_kept":34,"cut":false,"hidden":false,"merged":[[0,0,1,1],[0,2,1,5],[0,6,1,6],[0,7,1,9],[2,0,3,0],[2,1,2,4],[2,5,2,8],[2,9,3,9]]}
["اسم\nالعميل",null,"اشرف عبد الرحمن",null,null,null,"الرصيد  الحالى",{"$f":"J34","v":0}]
[]
["م","مسحوبـــــــــــات",null,null,null,"تنزيـــــــــــــــــــــــــلات",null,null,null,"الرصيد"]
[null,"المبلغ","البيان","التاريخ","اليوم","المبلغ","البيان","التاريخ","اليوم"]
[1,null,null,"2023-01-01",{"$f":"IF(D5=\"\",\"\",TEXT(D5,\"ddd\"))","v":"الأحد"},null,null,null,{"$f":"IF(H5=\"\",\"\",TEXT(H5,\"ddd\"))","v":""},{"$f":"B5-F5","v":0}]
[2,null,null,null,{"$f":"IF(D6=\"\",\"\",TEXT(D6,\"ddd\"))","v":""},null,null,null,{"$f":"IF(H6=\"\",\"\",TEXT(H6,\"ddd\"))","v":""},{"$f":"J5+B6-F6","v":0}]
[3,null,null,null,"",null,null,null,"",{"$f":"J6+B7-F7","v":0}]
[4,null,null,null,"",null,null,null,"",0]
[5,null,null,null,"",null,null,null,"",0]
[6,null,null,null,"",null,null,null,"",0]
[7,null,null,null,"",null,null,null,"",0]
[8,null,null,null,"",null,null,null,"",0]
[9,null,null,null,"",null,null,null,"",0]
[10,null,null,null,"",null,null,null,"",0]
[11,null,null,null,"",null,null,null,"",0]
[12,null,null,null,"",null,null,null,"",0]
[13,null,null,null,"",null,null,null,"",0]
[14,null,null,null,"",null,null,null,"",0]
[15,null,null,null,"",null,null,null,"",0]
[16,null,null,null,"",null,null,null,"",0]
[17,null,null,null,"",null,null,null,"",0]
[18,null,null,null,"",null,null,null,"",0]
[19,null,null,null,"",null,null,null,"",0]
[20,null,null,null,"",null,null,null,"",0]
[21,null,null,null,"",null,null,null,"",0]
[22,null,null,null,"",null,null,null,"",0]
[23,null,null,null,"",null,null,null,"",0]
[24,null,null,null,"",null,null,null,"",0]
[25,null,null,null,"",null,null,null,"",0]
[26,null,null,null,"",null,null,null,"",0]
[27,null,null,null,"",null,null,null,"",0]
[28,null,null,null,"",null,null,null,"",0]
[29,null,null,null,"",null,null,null,"",0]
[30,null,null,null,"",null,null,null,"",0]

{"sheet":"حسام الدكش","index":67,"n_rows":34,"n_cols":10,"rows_kept":34,"cut":false,"hidden":false,"merged":[[0,0,1,1],[0,2,1,5],[0,6,1,6],[0,7,1,9],[2,0,3,0],[2,1,2,4],[2,5,2,8],[2,9,3,9]]}
["اسم\nالعميل",null,"حسام الدكش",null,null,null,"الرصيد  الحالى",{"$f":"J34","v":0}]
[]
["م","مسحوبـــــــــــات",null,null,null,"تنزيـــــــــــــــــــــــــلات",null,null,null,"الرصيد"]
[null,"المبلغ","البيان","التاريخ","اليوم","المبلغ","البيان","التاريخ","اليوم"]
[1,null,null,"2023-01-01",{"$f":"IF(D5=\"\",\"\",TEXT(D5,\"ddd\"))","v":"الأحد"},null,null,null,{"$f":"IF(H5=\"\",\"\",TEXT(H5,\"ddd\"))","v":""},{"$f":"B5-F5","v":0}]
[2,null,null,null,{"$f":"IF(D6=\"\",\"\",TEXT(D6,\"ddd\"))","v":""},null,null,null,{"$f":"IF(H6=\"\",\"\",TEXT(H6,\"ddd\"))","v":""},{"$f":"J5+B6-F6","v":0}]
[3,null,null,null,"",null,null,null,"",{"$f":"J6+B7-F7","v":0}]
[4,null,null,null,"",null,null,null,"",0]
[5,null,null,null,"",null,null,null,"",0]
[6,null,null,null,"",null,null,null,"",0]
[7,null,null,null,"",null,null,null,"",0]
[8,null,null,null,"",null,null,null,"",0]
[9,null,null,null,"",null,null,null,"",0]
[10,null,null,null,"",null,null,null,"",0]
[11,null,null,null,"",null,null,null,"",0]
[12,null,null,null,"",null,null,null,"",0]
[13,null,null,null,"",null,null,null,"",0]
[14,null,null,null,"",null,null,null,"",0]
[15,null,null,null,"",null,null,null,"",0]
[16,null,null,null,"",null,null,null,"",0]
[17,null,null,null,"",null,null,null,"",0]
[18,null,null,null,"",null,null,null,"",0]
[19,null,null,null,"",null,null,null,"",0]
[20,null,null,null,"",null,null,null,"",0]
[21,null,null,null,"",null,null,null,"",0]
[22,null,null,null,"",null,null,null,"",0]
[23,null,null,null,"",null,null,null,"",0]
[24,null,null,null,"",null,null,null,"",0]
[25,null,null,null,"",null,null,null,"",0]
[26,null,null,null,"",null,null,null,"",0]
[27,null,null,null,"",null,null,null,"",0]
[28,null,null,null,"",null,null,null,"",0]
[29,null,null,null,"",null,null,null,"",0]
[30,null,null,null,"",null,null,null,"",0]

{"sheet":"محمد جمال عبد العليم ","index":68,"n_rows":34,"n_cols":10,"rows_kept":34,"cut":false,"hidden":false,"merged":[[0,0,1,1],[0,2,1,5],[0,6,1,6],[0,7,1,9],[2,0,3,0],[2,1,2,4],[2,5,2,8],[2,9,3,9]]}
["اسم\nالعميل",null,"محمد جمال عبد العليم ",null,null,null,"الرصيد  الحالى",{"$f":"J34","v":0}]
[]
["م","مسحوبـــــــــــات",null,null,null,"تنزيـــــــــــــــــــــــــلات",null,null,null,"الرصيد"]
[null,"المبلغ","البيان","التاريخ","اليوم","المبلغ","البيان","التاريخ","اليوم"]
[1,null,null,"2023-01-01",{"$f":"IF(D5=\"\",\"\",TEXT(D5,\"ddd\"))","v":"الأحد"},null,null,null,{"$f":"IF(H5=\"\",\"\",TEXT(H5,\"ddd\"))","v":""},{"$f":"B5-F5","v":0}]
[2,null,null,null,{"$f":"IF(D6=\"\",\"\",TEXT(D6,\"ddd\"))","v":""},null,null,null,{"$f":"IF(H6=\"\",\"\",TEXT(H6,\"ddd\"))","v":""},{"$f":"J5+B6-F6","v":0}]
[3,null,null,null,"",null,null,null,"",{"$f":"J6+B7-F7","v":0}]
[4,null,null,null,"",null,null,null,"",0]
[5,null,null,null,"",null,null,null,"",0]
[6,null,null,null,"",null,null,null,"",0]
[7,null,null,null,"",null,null,null,"",0]
[8,null,null,null,"",null,null,null,"",0]
[9,null,null,null,"",null,null,null,"",0]
[10,null,null,null,"",null,null,null,"",0]
[11,null,null,null,"",null,null,null,"",0]
[12,null,null,null,"",null,null,null,"",0]
[13,null,null,null,"",null,null,null,"",0]
[14,null,null,null,"",null,null,null,"",0]
[15,null,null,null,"",null,null,null,"",0]
[16,null,null,null,"",null,null,null,"",0]
[17,null,null,null,"",null,null,null,"",0]
[18,null,null,null,"",null,null,null,"",0]
[19,null,null,null,"",null,null,null,"",0]
[20,null,null,null,"",null,null,null,"",0]
[21,null,null,null,"",null,null,null,"",0]
[22,null,null,null,"",null,null,null,"",0]
[23,null,null,null,"",null,null,null,"",0]
[24,null,null,null,"",null,null,null,"",0]
[25,null,null,null,"",null,null,null,"",0]
[26,null,null,null,"",null,null,null,"",0]
[27,null,null,null,"",null,null,null,"",0]
[28,null,null,null,"",null,null,null,"",0]
[29,null,null,null,"",null,null,null,"",0]
[30,null,null,null,"",null,null,null,"",0]

{"sheet":"احمد الشيخ عيد ","index":69,"n_rows":34,"n_cols":10,"rows_kept":34,"cut":false,"hidden":false,"merged":[[0,0,1,1],[0,2,1,5],[0,6,1,6],[0,7,1,9],[2,0,3,0],[2,1,2,4],[2,5,2,8],[2,9,3,9]]}
["اسم\nالعميل",null,"احمد الشيخ عيد ",null,null,null,"الرصيد  الحالى",{"$f":"J34","v":0}]
[]
["م","مسحوبـــــــــــات",null,null,null,"تنزيـــــــــــــــــــــــــلات",null,null,null,"الرصيد"]
[null,"المبلغ","البيان","التاريخ","اليوم","المبلغ","البيان","التاريخ","اليوم"]
[1,null,null,"2023-01-01",{"$f":"IF(D5=\"\",\"\",TEXT(D5,\"ddd\"))","v":"الأحد"},null,null,null,{"$f":"IF(H5=\"\",\"\",TEXT(H5,\"ddd\"))","v":""},{"$f":"B5-F5","v":0}]
[2,null,null,null,{"$f":"IF(D6=\"\",\"\",TEXT(D6,\"ddd\"))","v":""},null,null,null,{"$f":"IF(H6=\"\",\"\",TEXT(H6,\"ddd\"))","v":""},{"$f":"J5+B6-F6","v":0}]
[3,null,null,null,"",null,null,null,"",{"$f":"J6+B7-F7","v":0}]
[4,null,null,null,"",null,null,null,"",0]
[5,null,null,null,"",null,null,null,"",0]
[6,null,null,null,"",null,null,null,"",0]
[7,null,null,null,"",null,null,null,"",0]
[8,null,null,null,"",null,null,null,"",0]
[9,null,null,null,"",null,null,null,"",0]
[10,null,null,null,"",null,null,null,"",0]
[11,null,null,null,"",null,null,null,"",0]
[12,null,null,null,"",null,null,null,"",0]
[13,null,null,null,"",null,null,null,"",0]
[14,null,null,null,"",null,null,null,"",0]
[15,null,null,null,"",null,null,null,"",0]
[16,null,null,null,"",null,null,null,"",0]
[17,null,null,null,"",null,null,null,"",0]
[18,null,null,null,"",null,null,null,"",0]
[19,null,null,null,"",null,null,null,"",0]
[20,null,null,null,"",null,null,null,"",0]
[21,null,null,null,"",null,null,null,"",0]
[22,null,null,null,"",null,null,null,"",0]
[23,null,null,null,"",null,null,null,"",0]
[24,null,null,null,"",null,null,null,"",0]
[25,null,null,null,"",null,null,null,"",0]
[26,null,null,null,"",null,null,null,"",0]
[27,null,null,null,"",null,null,null,"",0]
[28,null,null,null,"",null,null,null,"",0]
[29,null,null,null,"",null,null,null,"",0]
[30,null,null,null,"",null,null,null,"",0]

{"sheet":"محمود ممدوح","index":70,"n_rows":34,"n_cols":10,"rows_kept":34,"cut":false,"hidden":false,"merged":[[0,0,1,1],[0,2,1,5],[0,6,1,6],[0,7,1,9],[2,0,3,0],[2,1,2,4],[2,5,2,8],[2,9,3,9]]}
["اسم\nالعميل",null,"محمود ممدوح",null,null,null,"الرصيد  الحالى",{"$f":"J34","v":0}]
[]
["م","مسحوبـــــــــــات",null,null,null,"تنزيـــــــــــــــــــــــــلات",null,null,null,"الرصيد"]
[null,"المبلغ","البيان","التاريخ","اليوم","المبلغ","البيان","التاريخ","اليوم"]
[1,null,null,"2023-01-01",{"$f":"IF(D5=\"\",\"\",TEXT(D5,\"ddd\"))","v":"الأحد"},null,null,null,{"$f":"IF(H5=\"\",\"\",TEXT(H5,\"ddd\"))","v":""},{"$f":"B5-F5","v":0}]
[2,null,null,null,{"$f":"IF(D6=\"\",\"\",TEXT(D6,\"ddd\"))","v":""},null,null,null,{"$f":"IF(H6=\"\",\"\",TEXT(H6,\"ddd\"))","v":""},{"$f":"J5+B6-F6","v":0}]
[3,null,null,null,"",null,null,null,"",{"$f":"J6+B7-F7","v":0}]
[4,null,null,null,"",null,null,null,"",0]
[5,null,null,null,"",null,null,null,"",0]
[6,null,null,null,"",null,null,null,"",0]
[7,null,null,null,"",null,null,null,"",0]
[8,null,null,null,"",null,null,null,"",0]
[9,null,null,null,"",null,null,null,"",0]
[10,null,null,null,"",null,null,null,"",0]
[11,null,null,null,"",null,null,null,"",0]
[12,null,null,null,"",null,null,null,"",0]
[13,null,null,null,"",null,null,null,"",0]
[14,null,null,null,"",null,null,null,"",0]
[15,null,null,null,"",null,null,null,"",0]
[16,null,null,null,"",null,null,null,"",0]
[17,null,null,null,"",null,null,null,"",0]
[18,null,null,null,"",null,null,null,"",0]
[19,null,null,null,"",null,null,null,"",0]
[20,null,null,null,"",null,null,null,"",0]
[21,null,null,null,"",null,null,null,"",0]
[22,null,null,null,"",null,null,null,"",0]
[23,null,null,null,"",null,null,null,"",0]
[24,null,null,null,"",null,null,null,"",0]
[25,null,null,null,"",null,null,null,"",0]
[26,null,null,null,"",null,null,null,"",0]
[27,null,null,null,"",null,null,null,"",0]
[28,null,null,null,"",null,null,null,"",0]
[29,null,null,null,"",null,null,null,"",0]
[30,null,null,null,"",null,null,null,"",0]

{"sheet":"الشيخ حسان","index":71,"n_rows":34,"n_cols":10,"rows_kept":34,"cut":false,"hidden":false,"merged":[[0,0,1,1],[0,2,1,5],[0,6,1,6],[0,7,1,9],[2,0,3,0],[2,1,2,4],[2,5,2,8],[2,9,3,9]]}
["اسم\nالعميل",null,"الشيخ حسان",null,null,null,"الرصيد  الحالى",{"$f":"J34","v":0}]
[]
["م","مسحوبـــــــــــات",null,null,null,"تنزيـــــــــــــــــــــــــلات",null,null,null,"الرصيد"]
[null,"المبلغ","البيان","التاريخ","اليوم","المبلغ","البيان","التاريخ","اليوم"]
[1,null,null,"2023-01-01",{"$f":"IF(D5=\"\",\"\",TEXT(D5,\"ddd\"))","v":"الأحد"},null,null,null,{"$f":"IF(H5=\"\",\"\",TEXT(H5,\"ddd\"))","v":""},{"$f":"B5-F5","v":0}]
[2,null,null,null,{"$f":"IF(D6=\"\",\"\",TEXT(D6,\"ddd\"))","v":""},null,null,null,{"$f":"IF(H6=\"\",\"\",TEXT(H6,\"ddd\"))","v":""},{"$f":"J5+B6-F6","v":0}]
[3,null,null,null,"",null,null,null,"",{"$f":"J6+B7-F7","v":0}]
[4,null,null,null,"",null,null,null,"",0]
[5,null,null,null,"",null,null,null,"",0]
[6,null,null,null,"",null,null,null,"",0]
[7,null,null,null,"",null,null,null,"",0]
[8,null,null,null,"",null,null,null,"",0]
[9,null,null,null,"",null,null,null,"",0]
[10,null,null,null,"",null,null,null,"",0]
[11,null,null,null,"",null,null,null,"",0]
[12,null,null,null,"",null,null,null,"",0]
[13,null,null,null,"",null,null,null,"",0]
[14,null,null,null,"",null,null,null,"",0]
[15,null,null,null,"",null,null,null,"",0]
[16,null,null,null,"",null,null,null,"",0]
[17,null,null,null,"",null,null,null,"",0]
[18,null,null,null,"",null,null,null,"",0]
[19,null,null,null,"",null,null,null,"",0]
[20,null,null,null,"",null,null,null,"",0]
[21,null,null,null,"",null,null,null,"",0]
[22,null,null,null,"",null,null,null,"",0]
[23,null,null,null,"",null,null,null,"",0]
[24,null,null,null,"",null,null,null,"",0]
[25,null,null,null,"",null,null,null,"",0]
[26,null,null,null,"",null,null,null,"",0]
[27,null,null,null,"",null,null,null,"",0]
[28,null,null,null,"",null,null,null,"",0]
[29,null,null,null,"",null,null,null,"",0]
[30,null,null,null,"",null,null,null,"",0]

{"sheet":"ربيع هنداوى","index":72,"n_rows":34,"n_cols":10,"rows_kept":34,"cut":false,"hidden":false,"merged":[[0,0,1,1],[0,2,1,5],[0,6,1,6],[0,7,1,9],[2,0,3,0],[2,1,2,4],[2,5,2,8],[2,9,3,9]]}
["اسم\nالعميل",null,"ربيع هنداوى",null,null,null,"الرصيد  الحالى",{"$f":"J34","v":0}]
[]
["م","مسحوبـــــــــــات",null,null,null,"تنزيـــــــــــــــــــــــــلات",null,null,null,"الرصيد"]
[null,"المبلغ","البيان","التاريخ","اليوم","المبلغ","البيان","التاريخ","اليوم"]
[1,null,null,"2023-01-01",{"$f":"IF(D5=\"\",\"\",TEXT(D5,\"ddd\"))","v":"الأحد"},null,null,null,{"$f":"IF(H5=\"\",\"\",TEXT(H5,\"ddd\"))","v":""},{"$f":"B5-F5","v":0}]
[2,null,null,null,{"$f":"IF(D6=\"\",\"\",TEXT(D6,\"ddd\"))","v":""},null,null,null,{"$f":"IF(H6=\"\",\"\",TEXT(H6,\"ddd\"))","v":""},{"$f":"J5+B6-F6","v":0}]
[3,null,null,null,"",null,null,null,"",{"$f":"J6+B7-F7","v":0}]
[4,null,null,null,"",null,null,null,"",0]
[5,null,null,null,"",null,null,null,"",0]
[6,null,null,null,"",null,null,null,"",0]
[7,null,null,null,"",null,null,null,"",0]
[8,null,null,null,"",null,null,null,"",0]
[9,null,null,null,"",null,null,null,"",0]
[10,null,null,null,"",null,null,null,"",0]
[11,null,null,null,"",null,null,null,"",0]
[12,null,null,null,"",null,null,null,"",0]
[13,null,null,null,"",null,null,null,"",0]
[14,null,null,null,"",null,null,null,"",0]
[15,null,null,null,"",null,null,null,"",0]
[16,null,null,null,"",null,null,null,"",0]
[17,null,null,null,"",null,null,null,"",0]
[18,null,null,null,"",null,null,null,"",0]
[19,null,null,null,"",null,null,null,"",0]
[20,null,null,null,"",null,null,null,"",0]
[21,null,null,null,"",null,null,null,"",0]
[22,null,null,null,"",null,null,null,"",0]
[23,null,null,null,"",null,null,null,"",0]
[24,null,null,null,"",null,null,null,"",0]
[25,null,null,null,"",null,null,null,"",0]
[26,null,null,null,"",null,null,null,"",0]
[27,null,null,null,"",null,null,null,"",0]
[28,null,null,null,"",null,null,null,"",0]
[29,null,null,null,"",null,null,null,"",0]
[30,null,null,null,"",null,null,null,"",0]

{"sheet":"محمد صبحى عبد التواب","index":73,"n_rows":34,"n_cols":10,"rows_kept":34,"cut":false,"hidden":false,"merged":[[0,0,1,1],[0,2,1,5],[0,6,1,6],[0,7,1,9],[2,0,3,0],[2,1,2,4],[2,5,2,8],[2,9,3,9]]}
["اسم\nالعميل",null,"محمد صبحى عبد التواب",null,null,null,"الرصيد  الحالى",{"$f":"J34","v":0}]
[]
["م","مسحوبـــــــــــات",null,null,null,"تنزيـــــــــــــــــــــــــلات",null,null,null,"الرصيد"]
[null,"المبلغ","البيان","التاريخ","اليوم","المبلغ","البيان","التاريخ","اليوم"]
[1,null,null,"2023-01-01",{"$f":"IF(D5=\"\",\"\",TEXT(D5,\"ddd\"))","v":"الأحد"},null,null,null,{"$f":"IF(H5=\"\",\"\",TEXT(H5,\"ddd\"))","v":""},{"$f":"B5-F5","v":0}]
[2,null,null,null,{"$f":"IF(D6=\"\",\"\",TEXT(D6,\"ddd\"))","v":""},null,null,null,{"$f":"IF(H6=\"\",\"\",TEXT(H6,\"ddd\"))","v":""},{"$f":"J5+B6-F6","v":0}]
[3,null,null,null,"",null,null,null,"",{"$f":"J6+B7-F7","v":0}]
[4,null,null,null,"",null,null,null,"",0]
[5,null,null,null,"",null,null,null,"",0]
[6,null,null,null,"",null,null,null,"",0]
[7,null,null,null,"",null,null,null,"",0]
[8,null,null,null,"",null,null,null,"",0]
[9,null,null,null,"",null,null,null,"",0]
[10,null,null,null,"",null,null,null,"",0]
[11,null,null,null,"",null,null,null,"",0]
[12,null,null,null,"",null,null,null,"",0]
[13,null,null,null,"",null,null,null,"",0]
[14,null,null,null,"",null,null,null,"",0]
[15,null,null,null,"",null,null,null,"",0]
[16,null,null,null,"",null,null,null,"",0]
[17,null,null,null,"",null,null,null,"",0]
[18,null,null,null,"",null,null,null,"",0]
[19,null,null,null,"",null,null,null,"",0]
[20,null,null,null,"",null,null,null,"",0]
[21,null,null,null,"",null,null,null,"",0]
[22,null,null,null,"",null,null,null,"",0]
[23,null,null,null,"",null,null,null,"",0]
[24,null,null,null,"",null,null,null,"",0]
[25,null,null,null,"",null,null,null,"",0]
[26,null,null,null,"",null,null,null,"",0]
[27,null,null,null,"",null,null,null,"",0]
[28,null,null,null,"",null,null,null,"",0]
[29,null,null,null,"",null,null,null,"",0]
[30,null,null,null,"",null,null,null,"",0]

{"sheet":"ام الشيخ صلاح","index":74,"n_rows":34,"n_cols":10,"rows_kept":34,"cut":false,"hidden":false,"merged":[[0,0,1,1],[0,2,1,5],[0,6,1,6],[0,7,1,9],[2,0,3,0],[2,1,2,4],[2,5,2,8],[2,9,3,9]]}
["اسم\nالعميل",null,"ام الشيخ صلاح",null,null,null,"الرصيد  الحالى",{"$f":"J34","v":0}]
[]
["م","مسحوبـــــــــــات",null,null,null,"تنزيـــــــــــــــــــــــــلات",null,null,null,"الرصيد"]
[null,"المبلغ","البيان","التاريخ","اليوم","المبلغ","البيان","التاريخ","اليوم"]
[1,null,null,"2023-01-01",{"$f":"IF(D5=\"\",\"\",TEXT(D5,\"ddd\"))","v":"الأحد"},null,null,null,{"$f":"IF(H5=\"\",\"\",TEXT(H5,\"ddd\"))","v":""},{"$f":"B5-F5","v":0}]
[2,null,null,null,{"$f":"IF(D6=\"\",\"\",TEXT(D6,\"ddd\"))","v":""},null,null,null,{"$f":"IF(H6=\"\",\"\",TEXT(H6,\"ddd\"))","v":""},{"$f":"J5+B6-F6","v":0}]
[3,null,null,null,"",null,null,null,"",{"$f":"J6+B7-F7","v":0}]
[4,null,null,null,"",null,null,null,"",0]
[5,null,null,null,"",null,null,null,"",0]
[6,null,null,null,"",null,null,null,"",0]
[7,null,null,null,"",null,null,null,"",0]
[8,null,null,null,"",null,null,null,"",0]
[9,null,null,null,"",null,null,null,"",0]
[10,null,null,null,"",null,null,null,"",0]
[11,null,null,null,"",null,null,null,"",0]
[12,null,null,null,"",null,null,null,"",0]
[13,null,null,null,"",null,null,null,"",0]
[14,null,null,null,"",null,null,null,"",0]
[15,null,null,null,"",null,null,null,"",0]
[16,null,null,null,"",null,null,null,"",0]
[17,null,null,null,"",null,null,null,"",0]
[18,null,null,null,"",null,null,null,"",0]
[19,null,null,null,"",null,null,null,"",0]
[20,null,null,null,"",null,null,null,"",0]
[21,null,null,null,"",null,null,null,"",0]
[22,null,null,null,"",null,null,null,"",0]
[23,null,null,null,"",null,null,null,"",0]
[24,null,null,null,"",null,null,null,"",0]
[25,null,null,null,"",null,null,null,"",0]
[26,null,null,null,"",null,null,null,"",0]
[27,null,null,null,"",null,null,null,"",0]
[28,null,null,null,"",null,null,null,"",0]
[29,null,null,null,"",null,null,null,"",0]
[30,null,null,null,"",null,null,null,"",0]

{"sheet":"ام جمال عبد العال","index":75,"n_rows":34,"n_cols":10,"rows_kept":34,"cut":false,"hidden":false,"merged":[[0,0,1,1],[0,2,1,5],[0,6,1,6],[0,7,1,9],[2,0,3,0],[2,1,2,4],[2,5,2,8],[2,9,3,9]]}
["اسم\nالعميل",null,"ام جمال عبد العال",null,null,null,"الرصيد  الحالى",{"$f":"J34","v":0}]
[]
["م","مسحوبـــــــــــات",null,null,null,"تنزيـــــــــــــــــــــــــلات",null,null,null,"الرصيد"]
[null,"المبلغ","البيان","التاريخ","اليوم","المبلغ","البيان","التاريخ","اليوم"]
[1,null,null,"2023-01-01",{"$f":"IF(D5=\"\",\"\",TEXT(D5,\"ddd\"))","v":"الأحد"},null,null,null,{"$f":"IF(H5=\"\",\"\",TEXT(H5,\"ddd\"))","v":""},{"$f":"B5-F5","v":0}]
[2,null,null,null,{"$f":"IF(D6=\"\",\"\",TEXT(D6,\"ddd\"))","v":""},null,null,null,{"$f":"IF(H6=\"\",\"\",TEXT(H6,\"ddd\"))","v":""},{"$f":"J5+B6-F6","v":0}]
[3,null,null,null,"",null,null,null,"",{"$f":"J6+B7-F7","v":0}]
[4,null,null,null,"",null,null,null,"",0]
[5,null,null,null,"",null,null,null,"",0]
[6,null,null,null,"",null,null,null,"",0]
[7,null,null,null,"",null,null,null,"",0]
[8,null,null,null,"",null,null,null,"",0]
[9,null,null,null,"",null,null,null,"",0]
[10,null,null,null,"",null,null,null,"",0]
[11,null,null,null,"",null,null,null,"",0]
[12,null,null,null,"",null,null,null,"",0]
[13,null,null,null,"",null,null,null,"",0]
[14,null,null,null,"",null,null,null,"",0]
[15,null,null,null,"",null,null,null,"",0]
[16,null,null,null,"",null,null,null,"",0]
[17,null,null,null,"",null,null,null,"",0]
[18,null,null,null,"",null,null,null,"",0]
[19,null,null,null,"",null,null,null,"",0]
[20,null,null,null,"",null,null,null,"",0]
[21,null,null,null,"",null,null,null,"",0]
[22,null,null,null,"",null,null,null,"",0]
[23,null,null,null,"",null,null,null,"",0]
[24,null,null,null,"",null,null,null,"",0]
[25,null,null,null,"",null,null,null,"",0]
[26,null,null,null,"",null,null,null,"",0]
[27,null,null,null,"",null,null,null,"",0]
[28,null,null,null,"",null,null,null,"",0]
[29,null,null,null,"",null,null,null,"",0]
[30,null,null,null,"",null,null,null,"",0]

{"sheet":"على عبد الله","index":76,"n_rows":34,"n_cols":10,"rows_kept":34,"cut":false,"hidden":false,"merged":[[0,0,1,1],[0,2,1,5],[0,6,1,6],[0,7,1,9],[2,0,3,0],[2,1,2,4],[2,5,2,8],[2,9,3,9]]}
["اسم\nالعميل",null,"على عبد الله",null,null,null,"الرصيد  الحالى",{"$f":"J34","v":0}]
[]
["م","مسحوبـــــــــــات",null,null,null,"تنزيـــــــــــــــــــــــــلات",null,null,null,"الرصيد"]
[null,"المبلغ","البيان","التاريخ","اليوم","المبلغ","البيان","التاريخ","اليوم"]
[1,null,null,"2023-01-01",{"$f":"IF(D5=\"\",\"\",TEXT(D5,\"ddd\"))","v":"الأحد"},null,null,null,{"$f":"IF(H5=\"\",\"\",TEXT(H5,\"ddd\"))","v":""},{"$f":"B5-F5","v":0}]
[2,null,null,null,{"$f":"IF(D6=\"\",\"\",TEXT(D6,\"ddd\"))","v":""},null,null,null,{"$f":"IF(H6=\"\",\"\",TEXT(H6,\"ddd\"))","v":""},{"$f":"J5+B6-F6","v":0}]
[3,null,null,null,"",null,null,null,"",{"$f":"J6+B7-F7","v":0}]
[4,null,null,null,"",null,null,null,"",0]
[5,null,null,null,"",null,null,null,"",0]
[6,null,null,null,"",null,null,null,"",0]
[7,null,null,null,"",null,null,null,"",0]
[8,null,null,null,"",null,null,null,"",0]
[9,null,null,null,"",null,null,null,"",0]
[10,null,null,null,"",null,null,null,"",0]
[11,null,null,null,"",null,null,null,"",0]
[12,null,null,null,"",null,null,null,"",0]
[13,null,null,null,"",null,null,null,"",0]
[14,null,null,null,"",null,null,null,"",0]
[15,null,null,null,"",null,null,null,"",0]
[16,null,null,null,"",null,null,null,"",0]
[17,null,null,null,"",null,null,null,"",0]
[18,null,null,null,"",null,null,null,"",0]
[19,null,null,null,"",null,null,null,"",0]
[20,null,null,null,"",null,null,null,"",0]
[21,null,null,null,"",null,null,null,"",0]
[22,null,null,null,"",null,null,null,"",0]
[23,null,null,null,"",null,null,null,"",0]
[24,null,null,null,"",null,null,null,"",0]
[25,null,null,null,"",null,null,null,"",0]
[26,null,null,null,"",null,null,null,"",0]
[27,null,null,null,"",null,null,null,"",0]
[28,null,null,null,"",null,null,null,"",0]
[29,null,null,null,"",null,null,null,"",0]
[30,null,null,null,"",null,null,null,"",0]

{"sheet":"محمد حمزة الشايب","index":77,"n_rows":34,"n_cols":10,"rows_kept":34,"cut":false,"hidden":false,"merged":[[0,0,1,1],[0,2,1,5],[0,6,1,6],[0,7,1,9],[2,0,3,0],[2,1,2,4],[2,5,2,8],[2,9,3,9]]}
["اسم\nالعميل",null,"محمد حمزة الشايب",null,null,null,"الرصيد  الحالى",{"$f":"J34","v":0}]
[]
["م","مسحوبـــــــــــات",null,null,null,"تنزيـــــــــــــــــــــــــلات",null,null,null,"الرصيد"]
[null,"المبلغ","البيان","التاريخ","اليوم","المبلغ","البيان","التاريخ","اليوم"]
[1,null,null,"2023-01-01",{"$f":"IF(D5=\"\",\"\",TEXT(D5,\"ddd\"))","v":"الأحد"},null,null,null,{"$f":"IF(H5=\"\",\"\",TEXT(H5,\"ddd\"))","v":""},{"$f":"B5-F5","v":0}]
[2,null,null,null,{"$f":"IF(D6=\"\",\"\",TEXT(D6,\"ddd\"))","v":""},null,null,null,{"$f":"IF(H6=\"\",\"\",TEXT(H6,\"ddd\"))","v":""},{"$f":"J5+B6-F6","v":0}]
[3,null,null,null,"",null,null,null,"",{"$f":"J6+B7-F7","v":0}]
[4,null,null,null,"",null,null,null,"",0]
[5,null,null,null,"",null,null,null,"",0]
[6,null,null,null,"",null,null,null,"",0]
[7,null,null,null,"",null,null,null,"",0]
[8,null,null,null,"",null,null,null,"",0]
[9,null,null,null,"",null,null,null,"",0]
[10,null,null,null,"",null,null,null,"",0]
[11,null,null,null,"",null,null,null,"",0]
[12,null,null,null,"",null,null,null,"",0]
[13,null,null,null,"",null,null,null,"",0]
[14,null,null,null,"",null,null,null,"",0]
[15,null,null,null,"",null,null,null,"",0]
[16,null,null,null,"",null,null,null,"",0]
[17,null,null,null,"",null,null,null,"",0]
[18,null,null,null,"",null,null,null,"",0]
[19,null,null,null,"",null,null,null,"",0]
[20,null,null,null,"",null,null,null,"",0]
[21,null,null,null,"",null,null,null,"",0]
[22,null,null,null,"",null,null,null,"",0]
[23,null,null,null,"",null,null,null,"",0]
[24,null,null,null,"",null,null,null,"",0]
[25,null,null,null,"",null,null,null,"",0]
[26,null,null,null,"",null,null,null,"",0]
[27,null,null,null,"",null,null,null,"",0]
[28,null,null,null,"",null,null,null,"",0]
[29,null,null,null,"",null,null,null,"",0]
[30,null,null,null,"",null,null,null,"",0]

{"sheet":"عبد الرحمن احمد ","index":78,"n_rows":34,"n_cols":10,"rows_kept":34,"cut":false,"hidden":false,"merged":[[0,0,1,1],[0,2,1,5],[0,6,1,6],[0,7,1,9],[2,0,3,0],[2,1,2,4],[2,5,2,8],[2,9,3,9]]}
["اسم\nالعميل",null,"عبد الرحمن احمد ",null,null,null,"الرصيد  الحالى",{"$f":"J34","v":0}]
[]
["م","مسحوبـــــــــــات",null,null,null,"تنزيـــــــــــــــــــــــــلات",null,null,null,"الرصيد"]
[null,"المبلغ","البيان","التاريخ","اليوم","المبلغ","البيان","التاريخ","اليوم"]
[1,null,null,"2023-01-01",{"$f":"IF(D5=\"\",\"\",TEXT(D5,\"ddd\"))","v":"الأحد"},null,null,null,{"$f":"IF(H5=\"\",\"\",TEXT(H5,\"ddd\"))","v":""},{"$f":"B5-F5","v":0}]
[2,null,null,null,{"$f":"IF(D6=\"\",\"\",TEXT(D6,\"ddd\"))","v":""},null,null,null,{"$f":"IF(H6=\"\",\"\",TEXT(H6,\"ddd\"))","v":""},{"$f":"J5+B6-F6","v":0}]
[3,null,null,null,"",null,null,null,"",{"$f":"J6+B7-F7","v":0}]
[4,null,null,null,"",null,null,null,"",0]
[5,null,null,null,"",null,null,null,"",0]
[6,null,null,null,"",null,null,null,"",0]
[7,null,null,null,"",null,null,null,"",0]
[8,null,null,null,"",null,null,null,"",0]
[9,null,null,null,"",null,null,null,"",0]
[10,null,null,null,"",null,null,null,"",0]
[11,null,null,null,"",null,null,null,"",0]
[12,null,null,null,"",null,null,null,"",0]
[13,null,null,null,"",null,null,null,"",0]
[14,null,null,null,"",null,null,null,"",0]
[15,null,null,null,"",null,null,null,"",0]
[16,null,null,null,"",null,null,null,"",0]
[17,null,null,null,"",null,null,null,"",0]
[18,null,null,null,"",null,null,null,"",0]
[19,null,null,null,"",null,null,null,"",0]
[20,null,null,null,"",null,null,null,"",0]
[21,null,null,null,"",null,null,null,"",0]
[22,null,null,null,"",null,null,null,"",0]
[23,null,null,null,"",null,null,null,"",0]
[24,null,null,null,"",null,null,null,"",0]
[25,null,null,null,"",null,null,null,"",0]
[26,null,null,null,"",null,null,null,"",0]
[27,null,null,null,"",null,null,null,"",0]
[28,null,null,null,"",null,null,null,"",0]
[29,null,null,null,"",null,null,null,"",0]
[30,null,null,null,"",null,null,null,"",0]

{"sheet":"مرات صلاح محمود","index":79,"n_rows":34,"n_cols":10,"rows_kept":34,"cut":false,"hidden":false,"merged":[[0,0,1,1],[0,2,1,5],[0,6,1,6],[0,7,1,9],[2,0,3,0],[2,1,2,4],[2,5,2,8],[2,9,3,9]]}
["اسم\nالعميل",null,"مرات صلاح محمود",null,null,null,"الرصيد  الحالى",{"$f":"J34","v":0}]
[]
["م","مسحوبـــــــــــات",null,null,null,"تنزيـــــــــــــــــــــــــلات",null,null,null,"الرصيد"]
[null,"المبلغ","البيان","التاريخ","اليوم","المبلغ","البيان","التاريخ","اليوم"]
[1,null,null,"2023-01-01",{"$f":"IF(D5=\"\",\"\",TEXT(D5,\"ddd\"))","v":"الأحد"},null,null,null,{"$f":"IF(H5=\"\",\"\",TEXT(H5,\"ddd\"))","v":""},{"$f":"B5-F5","v":0}]
[2,null,null,null,{"$f":"IF(D6=\"\",\"\",TEXT(D6,\"ddd\"))","v":""},null,null,null,{"$f":"IF(H6=\"\",\"\",TEXT(H6,\"ddd\"))","v":""},{"$f":"J5+B6-F6","v":0}]
[3,null,null,null,"",null,null,null,"",{"$f":"J6+B7-F7","v":0}]
[4,null,null,null,"",null,null,null,"",0]
[5,null,null,null,"",null,null,null,"",0]
[6,null,null,null,"",null,null,null,"",0]
[7,null,null,null,"",null,null,null,"",0]
[8,null,null,null,"",null,null,null,"",0]
[9,null,null,null,"",null,null,null,"",0]
[10,null,null,null,"",null,null,null,"",0]
[11,null,null,null,"",null,null,null,"",0]
[12,null,null,null,"",null,null,null,"",0]
[13,null,null,null,"",null,null,null,"",0]
[14,null,null,null,"",null,null,null,"",0]
[15,null,null,null,"",null,null,null,"",0]
[16,null,null,null,"",null,null,null,"",0]
[17,null,null,null,"",null,null,null,"",0]
[18,null,null,null,"",null,null,null,"",0]
[19,null,null,null,"",null,null,null,"",0]
[20,null,null,null,"",null,null,null,"",0]
[21,null,null,null,"",null,null,null,"",0]
[22,null,null,null,"",null,null,null,"",0]
[23,null,null,null,"",null,null,null,"",0]
[24,null,null,null,"",null,null,null,"",0]
[25,null,null,null,"",null,null,null,"",0]
[26,null,null,null,"",null,null,null,"",0]
[27,null,null,null,"",null,null,null,"",0]
[28,null,null,null,"",null,null,null,"",0]
[29,null,null,null,"",null,null,null,"",0]
[30,null,null,null,"",null,null,null,"",0]

{"sheet":"احمد صالح حنظورة","index":80,"n_rows":34,"n_cols":10,"rows_kept":34,"cut":false,"hidden":false,"merged":[[0,0,1,1],[0,2,1,5],[0,6,1,6],[0,7,1,9],[2,0,3,0],[2,1,2,4],[2,5,2,8],[2,9,3,9]]}
["اسم\nالعميل",null,"احمد صالح حنظورة",null,null,null,"الرصيد  الحالى",{"$f":"J34","v":0}]
[]
["م","مسحوبـــــــــــات",null,null,null,"تنزيـــــــــــــــــــــــــلات",null,null,null,"الرصيد"]
[null,"المبلغ","البيان","التاريخ","اليوم","المبلغ","البيان","التاريخ","اليوم"]
[1,null,null,"2023-01-01",{"$f":"IF(D5=\"\",\"\",TEXT(D5,\"ddd\"))","v":"الأحد"},null,null,null,{"$f":"IF(H5=\"\",\"\",TEXT(H5,\"ddd\"))","v":""},{"$f":"B5-F5","v":0}]
[2,null,null,null,{"$f":"IF(D6=\"\",\"\",TEXT(D6,\"ddd\"))","v":""},null,null,null,{"$f":"IF(H6=\"\",\"\",TEXT(H6,\"ddd\"))","v":""},{"$f":"J5+B6-F6","v":0}]
[3,null,null,null,"",null,null,null,"",{"$f":"J6+B7-F7","v":0}]
[4,null,null,null,"",null,null,null,"",0]
[5,null,null,null,"",null,null,null,"",0]
[6,null,null,null,"",null,null,null,"",0]
[7,null,null,null,"",null,null,null,"",0]
[8,null,null,null,"",null,null,null,"",0]
[9,null,null,null,"",null,null,null,"",0]
[10,null,null,null,"",null,null,null,"",0]
[11,null,null,null,"",null,null,null,"",0]
[12,null,null,null,"",null,null,null,"",0]
[13,null,null,null,"",null,null,null,"",0]
[14,null,null,null,"",null,null,null,"",0]
[15,null,null,null,"",null,null,null,"",0]
[16,null,null,null,"",null,null,null,"",0]
[17,null,null,null,"",null,null,null,"",0]
[18,null,null,null,"",null,null,null,"",0]
[19,null,null,null,"",null,null,null,"",0]
[20,null,null,null,"",null,null,null,"",0]
[21,null,null,null,"",null,null,null,"",0]
[22,null,null,null,"",null,null,null,"",0]
[23,null,null,null,"",null,null,null,"",0]
[24,null,null,null,"",null,null,null,"",0]
[25,null,null,null,"",null,null,null,"",0]
[26,null,null,null,"",null,null,null,"",0]
[27,null,null,null,"",null,null,null,"",0]
[28,null,null,null,"",null,null,null,"",0]
[29,null,null,null,"",null,null,null,"",0]
[30,null,null,null,"",null,null,null,"",0]

{"sheet":"احمد ابراهيم محمد","index":81,"n_rows":34,"n_cols":10,"rows_kept":34,"cut":false,"hidden":false,"merged":[[0,0,1,1],[0,2,1,5],[0,6,1,6],[0,7,1,9],[2,0,3,0],[2,1,2,4],[2,5,2,8],[2,9,3,9]]}
["اسم\nالعميل",null,"احمد ابراهيم محمد",null,null,null,"الرصيد  الحالى",{"$f":"J34","v":0}]
[]
["م","مسحوبـــــــــــات",null,null,null,"تنزيـــــــــــــــــــــــــلات",null,null,null,"الرصيد"]
[null,"المبلغ","البيان","التاريخ","اليوم","المبلغ","البيان","التاريخ","اليوم"]
[1,null,null,"2023-01-01",{"$f":"IF(D5=\"\",\"\",TEXT(D5,\"ddd\"))","v":"الأحد"},null,null,null,{"$f":"IF(H5=\"\",\"\",TEXT(H5,\"ddd\"))","v":""},{"$f":"B5-F5","v":0}]
[2,null,null,null,{"$f":"IF(D6=\"\",\"\",TEXT(D6,\"ddd\"))","v":""},null,null,null,{"$f":"IF(H6=\"\",\"\",TEXT(H6,\"ddd\"))","v":""},{"$f":"J5+B6-F6","v":0}]
[3,null,null,null,"",null,null,null,"",{"$f":"J6+B7-F7","v":0}]
[4,null,null,null,"",null,null,null,"",0]
[5,null,null,null,"",null,null,null,"",0]
[6,null,null,null,"",null,null,null,"",0]
[7,null,null,null,"",null,null,null,"",0]
[8,null,null,null,"",null,null,null,"",0]
[9,null,null,null,"",null,null,null,"",0]
[10,null,null,null,"",null,null,null,"",0]
[11,null,null,null,"",null,null,null,"",0]
[12,null,null,null,"",null,null,null,"",0]
[13,null,null,null,"",null,null,null,"",0]
[14,null,null,null,"",null,null,null,"",0]
[15,null,null,null,"",null,null,null,"",0]
[16,null,null,null,"",null,null,null,"",0]
[17,null,null,null,"",null,null,null,"",0]
[18,null,null,null,"",null,null,null,"",0]
[19,null,null,null,"",null,null,null,"",0]
[20,null,null,null,"",null,null,null,"",0]
[21,null,null,null,"",null,null,null,"",0]
[22,null,null,null,"",null,null,null,"",0]
[23,null,null,null,"",null,null,null,"",0]
[24,null,null,null,"",null,null,null,"",0]
[25,null,null,null,"",null,null,null,"",0]
[26,null,null,null,"",null,null,null,"",0]
[27,null,null,null,"",null,null,null,"",0]
[28,null,null,null,"",null,null,null,"",0]
[29,null,null,null,"",null,null,null,"",0]
[30,null,null,null,"",null,null,null,"",0]

{"sheet":"عبد الناصر جمال","index":82,"n_rows":34,"n_cols":10,"rows_kept":34,"cut":false,"hidden":false,"merged":[[0,0,1,1],[0,2,1,5],[0,6,1,6],[0,7,1,9],[2,0,3,0],[2,1,2,4],[2,5,2,8],[2,9,3,9]]}
["اسم\nالعميل",null,"عبد الناصر جمال",null,null,null,"الرصيد  الحالى",{"$f":"J34","v":0}]
[]
["م","مسحوبـــــــــــات",null,null,null,"تنزيـــــــــــــــــــــــــلات",null,null,null,"الرصيد"]
[null,"المبلغ","البيان","التاريخ","اليوم","المبلغ","البيان","التاريخ","اليوم"]
[1,null,null,"2023-01-01",{"$f":"IF(D5=\"\",\"\",TEXT(D5,\"ddd\"))","v":"الأحد"},null,null,null,{"$f":"IF(H5=\"\",\"\",TEXT(H5,\"ddd\"))","v":""},{"$f":"B5-F5","v":0}]
[2,null,null,null,{"$f":"IF(D6=\"\",\"\",TEXT(D6,\"ddd\"))","v":""},null,null,null,{"$f":"IF(H6=\"\",\"\",TEXT(H6,\"ddd\"))","v":""},{"$f":"J5+B6-F6","v":0}]
[3,null,null,null,"",null,null,null,"",{"$f":"J6+B7-F7","v":0}]
[4,null,null,null,"",null,null,null,"",0]
[5,null,null,null,"",null,null,null,"",0]
[6,null,null,null,"",null,null,null,"",0]
[7,null,null,null,"",null,null,null,"",0]
[8,null,null,null,"",null,null,null,"",0]
[9,null,null,null,"",null,null,null,"",0]
[10,null,null,null,"",null,null,null,"",0]
[11,null,null,null,"",null,null,null,"",0]
[12,null,null,null,"",null,null,null,"",0]
[13,null,null,null,"",null,null,null,"",0]
[14,null,null,null,"",null,null,null,"",0]
[15,null,null,null,"",null,null,null,"",0]
[16,null,null,null,"",null,null,null,"",0]
[17,null,null,null,"",null,null,null,"",0]
[18,null,null,null,"",null,null,null,"",0]
[19,null,null,null,"",null,null,null,"",0]
[20,null,null,null,"",null,null,null,"",0]
[21,null,null,null,"",null,null,null,"",0]
[22,null,null,null,"",null,null,null,"",0]
[23,null,null,null,"",null,null,null,"",0]
[24,null,null,null,"",null,null,null,"",0]
[25,null,null,null,"",null,null,null,"",0]
[26,null,null,null,"",null,null,null,"",0]
[27,null,null,null,"",null,null,null,"",0]
[28,null,null,null,"",null,null,null,"",0]
[29,null,null,null,"",null,null,null,"",0]
[30,null,null,null,"",null,null,null,"",0]

{"sheet":"نبيل مجدى ","index":83,"n_rows":34,"n_cols":10,"rows_kept":34,"cut":false,"hidden":false,"merged":[[0,0,1,1],[0,2,1,5],[0,6,1,6],[0,7,1,9],[2,0,3,0],[2,1,2,4],[2,5,2,8],[2,9,3,9]]}
["اسم\nالعميل",null,"نبيل مجدى ",null,null,null,"الرصيد  الحالى",{"$f":"J34","v":0}]
[]
["م","مسحوبـــــــــــات",null,null,null,"تنزيـــــــــــــــــــــــــلات",null,null,null,"الرصيد"]
[null,"المبلغ","البيان","التاريخ","اليوم","المبلغ","البيان","التاريخ","اليوم"]
[1,null,null,"2023-01-01",{"$f":"IF(D5=\"\",\"\",TEXT(D5,\"ddd\"))","v":"الأحد"},null,null,null,{"$f":"IF(H5=\"\",\"\",TEXT(H5,\"ddd\"))","v":""},{"$f":"B5-F5","v":0}]
[2,null,null,null,{"$f":"IF(D6=\"\",\"\",TEXT(D6,\"ddd\"))","v":""},null,null,null,{"$f":"IF(H6=\"\",\"\",TEXT(H6,\"ddd\"))","v":""},{"$f":"J5+B6-F6","v":0}]
[3,null,null,null,"",null,null,null,"",{"$f":"J6+B7-F7","v":0}]
[4,null,null,null,"",null,null,null,"",0]
[5,null,null,null,"",null,null,null,"",0]
[6,null,null,null,"",null,null,null,"",0]
[7,null,null,null,"",null,null,null,"",0]
[8,null,null,null,"",null,null,null,"",0]
[9,null,null,null,"",null,null,null,"",0]
[10,null,null,null,"",null,null,null,"",0]
[11,null,null,null,"",null,null,null,"",0]
[12,null,null,null,"",null,null,null,"",0]
[13,null,null,null,"",null,null,null,"",0]
[14,null,null,null,"",null,null,null,"",0]
[15,null,null,null,"",null,null,null,"",0]
[16,null,null,null,"",null,null,null,"",0]
[17,null,null,null,"",null,null,null,"",0]
[18,null,null,null,"",null,null,null,"",0]
[19,null,null,null,"",null,null,null,"",0]
[20,null,null,null,"",null,null,null,"",0]
[21,null,null,null,"",null,null,null,"",0]
[22,null,null,null,"",null,null,null,"",0]
[23,null,null,null,"",null,null,null,"",0]
[24,null,null,null,"",null,null,null,"",0]
[25,null,null,null,"",null,null,null,"",0]
[26,null,null,null,"",null,null,null,"",0]
[27,null,null,null,"",null,null,null,"",0]
[28,null,null,null,"",null,null,null,"",0]
[29,null,null,null,"",null,null,null,"",0]
[30,null,null,null,"",null,null,null,"",0]

{"sheet":"محمد زغلول الميرى","index":84,"n_rows":34,"n_cols":10,"rows_kept":34,"cut":false,"hidden":false,"merged":[[0,0,1,1],[0,2,1,5],[0,6,1,6],[0,7,1,9],[2,0,3,0],[2,1,2,4],[2,5,2,8],[2,9,3,9]]}
["اسم\nالعميل",null,"محمد زغلول الميرى",null,null,null,"الرصيد  الحالى",{"$f":"J34","v":0}]
[]
["م","مسحوبـــــــــــات",null,null,null,"تنزيـــــــــــــــــــــــــلات",null,null,null,"الرصيد"]
[null,"المبلغ","البيان","التاريخ","اليوم","المبلغ","البيان","التاريخ","اليوم"]
[1,null,null,"2023-01-01",{"$f":"IF(D5=\"\",\"\",TEXT(D5,\"ddd\"))","v":"الأحد"},null,null,null,{"$f":"IF(H5=\"\",\"\",TEXT(H5,\"ddd\"))","v":""},{"$f":"B5-F5","v":0}]
[2,null,null,null,{"$f":"IF(D6=\"\",\"\",TEXT(D6,\"ddd\"))","v":""},null,null,null,{"$f":"IF(H6=\"\",\"\",TEXT(H6,\"ddd\"))","v":""},{"$f":"J5+B6-F6","v":0}]
[3,null,null,null,"",null,null,null,"",{"$f":"J6+B7-F7","v":0}]
[4,null,null,null,"",null,null,null,"",0]
[5,null,null,null,"",null,null,null,"",0]
[6,null,null,null,"",null,null,null,"",0]
[7,null,null,null,"",null,null,null,"",0]
[8,null,null,null,"",null,null,null,"",0]
[9,null,null,null,"",null,null,null,"",0]
[10,null,null,null,"",null,null,null,"",0]
[11,null,null,null,"",null,null,null,"",0]
[12,null,null,null,"",null,null,null,"",0]
[13,null,null,null,"",null,null,null,"",0]
[14,null,null,null,"",null,null,null,"",0]
[15,null,null,null,"",null,null,null,"",0]
[16,null,null,null,"",null,null,null,"",0]
[17,null,null,null,"",null,null,null,"",0]
[18,null,null,null,"",null,null,null,"",0]
[19,null,null,null,"",null,null,null,"",0]
[20,null,null,null,"",null,null,null,"",0]
[21,null,null,null,"",null,null,null,"",0]
[22,null,null,null,"",null,null,null,"",0]
[23,null,null,null,"",null,null,null,"",0]
[24,null,null,null,"",null,null,null,"",0]
[25,null,null,null,"",null,null,null,"",0]
[26,null,null,null,"",null,null,null,"",0]
[27,null,null,null,"",null,null,null,"",0]
[28,null,null,null,"",null,null,null,"",0]
[29,null,null,null,"",null,null,null,"",0]
[30,null,null,null,"",null,null,null,"",0]

{"sheet":"عيد محمد عبد الوهاب","index":85,"n_rows":34,"n_cols":10,"rows_kept":34,"cut":false,"hidden":false,"merged":[[0,0,1,1],[0,2,1,5],[0,6,1,6],[0,7,1,9],[2,0,3,0],[2,1,2,4],[2,5,2,8],[2,9,3,9]]}
["اسم\nالعميل",null,"عيد محمد عبد الوهاب",null,null,null,"الرصيد  الحالى",{"$f":"J34","v":0}]
[]
["م","مسحوبـــــــــــات",null,null,null,"تنزيـــــــــــــــــــــــــلات",null,null,null,"الرصيد"]
[null,"المبلغ","البيان","التاريخ","اليوم","المبلغ","البيان","التاريخ","اليوم"]
[1,null,null,"2023-01-01",{"$f":"IF(D5=\"\",\"\",TEXT(D5,\"ddd\"))","v":"الأحد"},null,null,null,{"$f":"IF(H5=\"\",\"\",TEXT(H5,\"ddd\"))","v":""},{"$f":"B5-F5","v":0}]
[2,null,null,null,{"$f":"IF(D6=\"\",\"\",TEXT(D6,\"ddd\"))","v":""},null,null,null,{"$f":"IF(H6=\"\",\"\",TEXT(H6,\"ddd\"))","v":""},{"$f":"J5+B6-F6","v":0}]
[3,null,null,null,"",null,null,null,"",{"$f":"J6+B7-F7","v":0}]
[4,null,null,null,"",null,null,null,"",0]
[5,null,null,null,"",null,null,null,"",0]
[6,null,null,null,"",null,null,null,"",0]
[7,null,null,null,"",null,null,null,"",0]
[8,null,null,null,"",null,null,null,"",0]
[9,null,null,null,"",null,null,null,"",0]
[10,null,null,null,"",null,null,null,"",0]
[11,null,null,null,"",null,null,null,"",0]
[12,null,null,null,"",null,null,null,"",0]
[13,null,null,null,"",null,null,null,"",0]
[14,null,null,null,"",null,null,null,"",0]
[15,null,null,null,"",null,null,null,"",0]
[16,null,null,null,"",null,null,null,"",0]
[17,null,null,null,"",null,null,null,"",0]
[18,null,null,null,"",null,null,null,"",0]
[19,null,null,null,"",null,null,null,"",0]
[20,null,null,null,"",null,null,null,"",0]
[21,null,null,null,"",null,null,null,"",0]
[22,null,null,null,"",null,null,null,"",0]
[23,null,null,null,"",null,null,null,"",0]
[24,null,null,null,"",null,null,null,"",0]
[25,null,null,null,"",null,null,null,"",0]
[26,null,null,null,"",null,null,null,"",0]
[27,null,null,null,"",null,null,null,"",0]
[28,null,null,null,"",null,null,null,"",0]
[29,null,null,null,"",null,null,null,"",0]
[30,null,null,null,"",null,null,null,"",0]

{"sheet":"همت عبد الحميد","index":86,"n_rows":34,"n_cols":10,"rows_kept":34,"cut":false,"hidden":false,"merged":[[0,0,1,1],[0,2,1,5],[0,6,1,6],[0,7,1,9],[2,0,3,0],[2,1,2,4],[2,5,2,8],[2,9,3,9]]}
["اسم\nالعميل",null,"همت عبد الحميد",null,null,null,"الرصيد  الحالى",{"$f":"J34","v":0}]
[]
["م","مسحوبـــــــــــات",null,null,null,"تنزيـــــــــــــــــــــــــلات",null,null,null,"الرصيد"]
[null,"المبلغ","البيان","التاريخ","اليوم","المبلغ","البيان","التاريخ","اليوم"]
[1,null,null,"2023-01-01",{"$f":"IF(D5=\"\",\"\",TEXT(D5,\"ddd\"))","v":"الأحد"},null,null,null,{"$f":"IF(H5=\"\",\"\",TEXT(H5,\"ddd\"))","v":""},{"$f":"B5-F5","v":0}]
[2,null,null,null,{"$f":"IF(D6=\"\",\"\",TEXT(D6,\"ddd\"))","v":""},null,null,null,{"$f":"IF(H6=\"\",\"\",TEXT(H6,\"ddd\"))","v":""},{"$f":"J5+B6-F6","v":0}]
[3,null,null,null,"",null,null,null,"",{"$f":"J6+B7-F7","v":0}]
[4,null,null,null,"",null,null,null,"",0]
[5,null,null,null,"",null,null,null,"",0]
[6,null,null,null,"",null,null,null,"",0]
[7,null,null,null,"",null,null,null,"",0]
[8,null,null,null,"",null,null,null,"",0]
[9,null,null,null,"",null,null,null,"",0]
[10,null,null,null,"",null,null,null,"",0]
[11,null,null,null,"",null,null,null,"",0]
[12,null,null,null,"",null,null,null,"",0]
[13,null,null,null,"",null,null,null,"",0]
[14,null,null,null,"",null,null,null,"",0]
[15,null,null,null,"",null,null,null,"",0]
[16,null,null,null,"",null,null,null,"",0]
[17,null,null,null,"",null,null,null,"",0]
[18,null,null,null,"",null,null,null,"",0]
[19,null,null,null,"",null,null,null,"",0]
[20,null,null,null,"",null,null,null,"",0]
[21,null,null,null,"",null,null,null,"",0]
[22,null,null,null,"",null,null,null,"",0]
[23,null,null,null,"",null,null,null,"",0]
[24,null,null,null,"",null,null,null,"",0]
[25,null,null,null,"",null,null,null,"",0]
[26,null,null,null,"",null,null,null,"",0]
[27,null,null,null,"",null,null,null,"",0]
[28,null,null,null,"",null,null,null,"",0]
[29,null,null,null,"",null,null,null,"",0]
[30,null,null,null,"",null,null,null,"",0]

{"sheet":"سعيد راضى","index":87,"n_rows":34,"n_cols":10,"rows_kept":34,"cut":false,"hidden":false,"merged":[[0,0,1,1],[0,2,1,5],[0,6,1,6],[0,7,1,9],[2,0,3,0],[2,1,2,4],[2,5,2,8],[2,9,3,9]]}
["اسم\nالعميل",null,"سعيد راضى",null,null,null,"الرصيد  الحالى",{"$f":"J34","v":0}]
[]
["م","مسحوبـــــــــــات",null,null,null,"تنزيـــــــــــــــــــــــــلات",null,null,null,"الرصيد"]
[null,"المبلغ","البيان","التاريخ","اليوم","المبلغ","البيان","التاريخ","اليوم"]
[1,null,null,"2023-01-01",{"$f":"IF(D5=\"\",\"\",TEXT(D5,\"ddd\"))","v":"الأحد"},null,null,null,{"$f":"IF(H5=\"\",\"\",TEXT(H5,\"ddd\"))","v":""},{"$f":"B5-F5","v":0}]
[2,null,null,null,{"$f":"IF(D6=\"\",\"\",TEXT(D6,\"ddd\"))","v":""},null,null,null,{"$f":"IF(H6=\"\",\"\",TEXT(H6,\"ddd\"))","v":""},{"$f":"J5+B6-F6","v":0}]
[3,null,null,null,"",null,null,null,"",{"$f":"J6+B7-F7","v":0}]
[4,null,null,null,"",null,null,null,"",0]
[5,null,null,null,"",null,null,null,"",0]
[6,null,null,null,"",null,null,null,"",0]
[7,null,null,null,"",null,null,null,"",0]
[8,null,null,null,"",null,null,null,"",0]
[9,null,null,null,"",null,null,null,"",0]
[10,null,null,null,"",null,null,null,"",0]
[11,null,null,null,"",null,null,null,"",0]
[12,null,null,null,"",null,null,null,"",0]
[13,null,null,null,"",null,null,null,"",0]
[14,null,null,null,"",null,null,null,"",0]
[15,null,null,null,"",null,null,null,"",0]
[16,null,null,null,"",null,null,null,"",0]
[17,null,null,null,"",null,null,null,"",0]
[18,null,null,null,"",null,null,null,"",0]
[19,null,null,null,"",null,null,null,"",0]
[20,null,null,null,"",null,null,null,"",0]
[21,null,null,null,"",null,null,null,"",0]
[22,null,null,null,"",null,null,null,"",0]
[23,null,null,null,"",null,null,null,"",0]
[24,null,null,null,"",null,null,null,"",0]
[25,null,null,null,"",null,null,null,"",0]
[26,null,null,null,"",null,null,null,"",0]
[27,null,null,null,"",null,null,null,"",0]
[28,null,null,null,"",null,null,null,"",0]
[29,null,null,null,"",null,null,null,"",0]
[30,null,null,null,"",null,null,null,"",0]

{"sheet":"ام ياسين الجمال","index":88,"n_rows":34,"n_cols":10,"rows_kept":34,"cut":false,"hidden":false,"merged":[[0,0,1,1],[0,2,1,5],[0,6,1,6],[0,7,1,9],[2,0,3,0],[2,1,2,4],[2,5,2,8],[2,9,3,9]]}
["اسم\nالعميل",null,"ام ياسين الجمال",null,null,null,"الرصيد  الحالى",{"$f":"J34","v":0}]
[]
["م","مسحوبـــــــــــات",null,null,null,"تنزيـــــــــــــــــــــــــلات",null,null,null,"الرصيد"]
[null,"المبلغ","البيان","التاريخ","اليوم","المبلغ","البيان","التاريخ","اليوم"]
[1,null,null,"2023-01-01",{"$f":"IF(D5=\"\",\"\",TEXT(D5,\"ddd\"))","v":"الأحد"},null,null,null,{"$f":"IF(H5=\"\",\"\",TEXT(H5,\"ddd\"))","v":""},{"$f":"B5-F5","v":0}]
[2,null,null,null,{"$f":"IF(D6=\"\",\"\",TEXT(D6,\"ddd\"))","v":""},null,null,null,{"$f":"IF(H6=\"\",\"\",TEXT(H6,\"ddd\"))","v":""},{"$f":"J5+B6-F6","v":0}]
[3,null,null,null,"",null,null,null,"",{"$f":"J6+B7-F7","v":0}]
[4,null,null,null,"",null,null,null,"",0]
[5,null,null,null,"",null,null,null,"",0]
[6,null,null,null,"",null,null,null,"",0]
[7,null,null,null,"",null,null,null,"",0]
[8,null,null,null,"",null,null,null,"",0]
[9,null,null,null,"",null,null,null,"",0]
[10,null,null,null,"",null,null,null,"",0]
[11,null,null,null,"",null,null,null,"",0]
[12,null,null,null,"",null,null,null,"",0]
[13,null,null,null,"",null,null,null,"",0]
[14,null,null,null,"",null,null,null,"",0]
[15,null,null,null,"",null,null,null,"",0]
[16,null,null,null,"",null,null,null,"",0]
[17,null,null,null,"",null,null,null,"",0]
[18,null,null,null,"",null,null,null,"",0]
[19,null,null,null,"",null,null,null,"",0]
[20,null,null,null,"",null,null,null,"",0]
[21,null,null,null,"",null,null,null,"",0]
[22,null,null,null,"",null,null,null,"",0]
[23,null,null,null,"",null,null,null,"",0]
[24,null,null,null,"",null,null,null,"",0]
[25,null,null,null,"",null,null,null,"",0]
[26,null,null,null,"",null,null,null,"",0]
[27,null,null,null,"",null,null,null,"",0]
[28,null,null,null,"",null,null,null,"",0]
[29,null,null,null,"",null,null,null,"",0]
[30,null,null,null,"",null,null,null,"",0]

{"sheet":"ام خالد عربى ","index":89,"n_rows":34,"n_cols":10,"rows_kept":34,"cut":false,"hidden":false,"merged":[[0,0,1,1],[0,2,1,5],[0,6,1,6],[0,7,1,9],[2,0,3,0],[2,1,2,4],[2,5,2,8],[2,9,3,9]]}
["اسم\nالعميل",null,"ام خالد عربى ",null,null,null,"الرصيد  الحالى",{"$f":"J34","v":0}]
[]
["م","مسحوبـــــــــــات",null,null,null,"تنزيـــــــــــــــــــــــــلات",null,null,null,"الرصيد"]
[null,"المبلغ","البيان","التاريخ","اليوم","المبلغ","البيان","التاريخ","اليوم"]
[1,null,null,"2023-01-01",{"$f":"IF(D5=\"\",\"\",TEXT(D5,\"ddd\"))","v":"الأحد"},null,null,null,{"$f":"IF(H5=\"\",\"\",TEXT(H5,\"ddd\"))","v":""},{"$f":"B5-F5","v":0}]
[2,null,null,null,{"$f":"IF(D6=\"\",\"\",TEXT(D6,\"ddd\"))","v":""},null,null,null,{"$f":"IF(H6=\"\",\"\",TEXT(H6,\"ddd\"))","v":""},{"$f":"J5+B6-F6","v":0}]
[3,null,null,null,"",null,null,null,"",{"$f":"J6+B7-F7","v":0}]
[4,null,null,null,"",null,null,null,"",0]
[5,null,null,null,"",null,null,null,"",0]
[6,null,null,null,"",null,null,null,"",0]
[7,null,null,null,"",null,null,null,"",0]
[8,null,null,null,"",null,null,null,"",0]
[9,null,null,null,"",null,null,null,"",0]
[10,null,null,null,"",null,null,null,"",0]
[11,null,null,null,"",null,null,null,"",0]
[12,null,null,null,"",null,null,null,"",0]
[13,null,null,null,"",null,null,null,"",0]
[14,null,null,null,"",null,null,null,"",0]
[15,null,null,null,"",null,null,null,"",0]
[16,null,null,null,"",null,null,null,"",0]
[17,null,null,null,"",null,null,null,"",0]
[18,null,null,null,"",null,null,null,"",0]
[19,null,null,null,"",null,null,null,"",0]
[20,null,null,null,"",null,null,null,"",0]
[21,null,null,null,"",null,null,null,"",0]
[22,null,null,null,"",null,null,null,"",0]
[23,null,null,null,"",null,null,null,"",0]
[24,null,null,null,"",null,null,null,"",0]
[25,null,null,null,"",null,null,null,"",0]
[26,null,null,null,"",null,null,null,"",0]
[27,null,null,null,"",null,null,null,"",0]
[28,null,null,null,"",null,null,null,"",0]
[29,null,null,null,"",null,null,null,"",0]
[30,null,null,null,"",null,null,null,"",0]

{"sheet":"عمرو محمد رجب","index":90,"n_rows":34,"n_cols":10,"rows_kept":34,"cut":false,"hidden":false,"merged":[[0,0,1,1],[0,2,1,5],[0,6,1,6],[0,7,1,9],[2,0,3,0],[2,1,2,4],[2,5,2,8],[2,9,3,9]]}
["اسم\nالعميل",null,"عمرو محمد رجب",null,null,null,"الرصيد  الحالى",{"$f":"J34","v":0}]
[]
["م","مسحوبـــــــــــات",null,null,null,"تنزيـــــــــــــــــــــــــلات",null,null,null,"الرصيد"]
[null,"المبلغ","البيان","التاريخ","اليوم","المبلغ","البيان","التاريخ","اليوم"]
[1,null,null,"2023-01-01",{"$f":"IF(D5=\"\",\"\",TEXT(D5,\"ddd\"))","v":"الأحد"},null,null,null,{"$f":"IF(H5=\"\",\"\",TEXT(H5,\"ddd\"))","v":""},{"$f":"B5-F5","v":0}]
[2,null,null,null,{"$f":"IF(D6=\"\",\"\",TEXT(D6,\"ddd\"))","v":""},null,null,null,{"$f":"IF(H6=\"\",\"\",TEXT(H6,\"ddd\"))","v":""},{"$f":"J5+B6-F6","v":0}]
[3,null,null,null,"",null,null,null,"",{"$f":"J6+B7-F7","v":0}]
[4,null,null,null,"",null,null,null,"",0]
[5,null,null,null,"",null,null,null,"",0]
[6,null,null,null,"",null,null,null,"",0]
[7,null,null,null,"",null,null,null,"",0]
[8,null,null,null,"",null,null,null,"",0]
[9,null,null,null,"",null,null,null,"",0]
[10,null,null,null,"",null,null,null,"",0]
[11,null,null,null,"",null,null,null,"",0]
[12,null,null,null,"",null,null,null,"",0]
[13,null,null,null,"",null,null,null,"",0]
[14,null,null,null,"",null,null,null,"",0]
[15,null,null,null,"",null,null,null,"",0]
[16,null,null,null,"",null,null,null,"",0]
[17,null,null,null,"",null,null,null,"",0]
[18,null,null,null,"",null,null,null,"",0]
[19,null,null,null,"",null,null,null,"",0]
[20,null,null,null,"",null,null,null,"",0]
[21,null,null,null,"",null,null,null,"",0]
[22,null,null,null,"",null,null,null,"",0]
[23,null,null,null,"",null,null,null,"",0]
[24,null,null,null,"",null,null,null,"",0]
[25,null,null,null,"",null,null,null,"",0]
[26,null,null,null,"",null,null,null,"",0]
[27,null,null,null,"",null,null,null,"",0]
[28,null,null,null,"",null,null,null,"",0]
[29,null,null,null,"",null,null,null,"",0]
[30,null,null,null,"",null,null,null,"",0]

{"sheet":"ربيع جمعه","index":91,"n_rows":34,"n_cols":10,"rows_kept":34,"cut":false,"hidden":false,"merged":[[0,0,1,1],[0,2,1,5],[0,6,1,6],[0,7,1,9],[2,0,3,0],[2,1,2,4],[2,5,2,8],[2,9,3,9]]}
["اسم\nالعميل",null,"ربيع جمعه",null,null,null,"الرصيد  الحالى",{"$f":"J34","v":0}]
[]
["م","مسحوبـــــــــــات",null,null,null,"تنزيـــــــــــــــــــــــــلات",null,null,null,"الرصيد"]
[null,"المبلغ","البيان","التاريخ","اليوم","المبلغ","البيان","التاريخ","اليوم"]
[1,null,null,"2023-01-01",{"$f":"IF(D5=\"\",\"\",TEXT(D5,\"ddd\"))","v":"الأحد"},null,null,null,{"$f":"IF(H5=\"\",\"\",TEXT(H5,\"ddd\"))","v":""},{"$f":"B5-F5","v":0}]
[2,null,null,null,{"$f":"IF(D6=\"\",\"\",TEXT(D6,\"ddd\"))","v":""},null,null,null,{"$f":"IF(H6=\"\",\"\",TEXT(H6,\"ddd\"))","v":""},{"$f":"J5+B6-F6","v":0}]
[3,null,null,null,"",null,null,null,"",{"$f":"J6+B7-F7","v":0}]
[4,null,null,null,"",null,null,null,"",0]
[5,null,null,null,"",null,null,null,"",0]
[6,null,null,null,"",null,null,null,"",0]
[7,null,null,null,"",null,null,null,"",0]
[8,null,null,null,"",null,null,null,"",0]
[9,null,null,null,"",null,null,null,"",0]
[10,null,null,null,"",null,null,null,"",0]
[11,null,null,null,"",null,null,null,"",0]
[12,null,null,null,"",null,null,null,"",0]
[13,null,null,null,"",null,null,null,"",0]
[14,null,null,null,"",null,null,null,"",0]
[15,null,null,null,"",null,null,null,"",0]
[16,null,null,null,"",null,null,null,"",0]
[17,null,null,null,"",null,null,null,"",0]
[18,null,null,null,"",null,null,null,"",0]
[19,null,null,null,"",null,null,null,"",0]
[20,null,null,null,"",null,null,null,"",0]
[21,null,null,null,"",null,null,null,"",0]
[22,null,null,null,"",null,null,null,"",0]
[23,null,null,null,"",null,null,null,"",0]
[24,null,null,null,"",null,null,null,"",0]
[25,null,null,null,"",null,null,null,"",0]
[26,null,null,null,"",null,null,null,"",0]
[27,null,null,null,"",null,null,null,"",0]
[28,null,null,null,"",null,null,null,"",0]
[29,null,null,null,"",null,null,null,"",0]
[30,null,null,null,"",null,null,null,"",0]

{"sheet":"محمد راضى عبد العليم","index":92,"n_rows":34,"n_cols":10,"rows_kept":34,"cut":false,"hidden":false,"merged":[[0,0,1,1],[0,2,1,5],[0,6,1,6],[0,7,1,9],[2,0,3,0],[2,1,2,4],[2,5,2,8],[2,9,3,9]]}
["اسم\nالعميل",null,"محمد راضى عبد العليم",null,null,null,"الرصيد  الحالى",{"$f":"J34","v":0}]
[]
["م","مسحوبـــــــــــات",null,null,null,"تنزيـــــــــــــــــــــــــلات",null,null,null,"الرصيد"]
[null,"المبلغ","البيان","التاريخ","اليوم","المبلغ","البيان","التاريخ","اليوم"]
[1,null,null,"2023-01-01",{"$f":"IF(D5=\"\",\"\",TEXT(D5,\"ddd\"))","v":"الأحد"},null,null,null,{"$f":"IF(H5=\"\",\"\",TEXT(H5,\"ddd\"))","v":""},{"$f":"B5-F5","v":0}]
[2,null,null,null,{"$f":"IF(D6=\"\",\"\",TEXT(D6,\"ddd\"))","v":""},null,null,null,{"$f":"IF(H6=\"\",\"\",TEXT(H6,\"ddd\"))","v":""},{"$f":"J5+B6-F6","v":0}]
[3,null,null,null,"",null,null,null,"",{"$f":"J6+B7-F7","v":0}]
[4,null,null,null,"",null,null,null,"",0]
[5,null,null,null,"",null,null,null,"",0]
[6,null,null,null,"",null,null,null,"",0]
[7,null,null,null,"",null,null,null,"",0]
[8,null,null,null,"",null,null,null,"",0]
[9,null,null,null,"",null,null,null,"",0]
[10,null,null,null,"",null,null,null,"",0]
[11,null,null,null,"",null,null,null,"",0]
[12,null,null,null,"",null,null,null,"",0]
[13,null,null,null,"",null,null,null,"",0]
[14,null,null,null,"",null,null,null,"",0]
[15,null,null,null,"",null,null,null,"",0]
[16,null,null,null,"",null,null,null,"",0]
[17,null,null,null,"",null,null,null,"",0]
[18,null,null,null,"",null,null,null,"",0]
[19,null,null,null,"",null,null,null,"",0]
[20,null,null,null,"",null,null,null,"",0]
[21,null,null,null,"",null,null,null,"",0]
[22,null,null,null,"",null,null,null,"",0]
[23,null,null,null,"",null,null,null,"",0]
[24,null,null,null,"",null,null,null,"",0]
[25,null,null,null,"",null,null,null,"",0]
[26,null,null,null,"",null,null,null,"",0]
[27,null,null,null,"",null,null,null,"",0]
[28,null,null,null,"",null,null,null,"",0]
[29,null,null,null,"",null,null,null,"",0]
[30,null,null,null,"",null,null,null,"",0]

{"sheet":"مرات استاذ عماد عبد السميع","index":93,"n_rows":34,"n_cols":10,"rows_kept":34,"cut":false,"hidden":false,"merged":[[0,0,1,1],[0,2,1,5],[0,6,1,6],[0,7,1,9],[2,0,3,0],[2,1,2,4],[2,5,2,8],[2,9,3,9]]}
["اسم\nالعميل",null,"مرات استاذ عماد عبد السميع",null,null,null,"الرصيد  الحالى",{"$f":"J34","v":0}]
[]
["م","مسحوبـــــــــــات",null,null,null,"تنزيـــــــــــــــــــــــــلات",null,null,null,"الرصيد"]
[null,"المبلغ","البيان","التاريخ","اليوم","المبلغ","البيان","التاريخ","اليوم"]
[1,null,null,"2023-01-01",{"$f":"IF(D5=\"\",\"\",TEXT(D5,\"ddd\"))","v":"الأحد"},null,null,null,{"$f":"IF(H5=\"\",\"\",TEXT(H5,\"ddd\"))","v":""},{"$f":"B5-F5","v":0}]
[2,null,null,null,{"$f":"IF(D6=\"\",\"\",TEXT(D6,\"ddd\"))","v":""},null,null,null,{"$f":"IF(H6=\"\",\"\",TEXT(H6,\"ddd\"))","v":""},{"$f":"J5+B6-F6","v":0}]
[3,null,null,null,"",null,null,null,"",{"$f":"J6+B7-F7","v":0}]
[4,null,null,null,"",null,null,null,"",0]
[5,null,null,null,"",null,null,null,"",0]
[6,null,null,null,"",null,null,null,"",0]
[7,null,null,null,"",null,null,null,"",0]
[8,null,null,null,"",null,null,null,"",0]
[9,null,null,null,"",null,null,null,"",0]
[10,null,null,null,"",null,null,null,"",0]
[11,null,null,null,"",null,null,null,"",0]
[12,null,null,null,"",null,null,null,"",0]
[13,null,null,null,"",null,null,null,"",0]
[14,null,null,null,"",null,null,null,"",0]
[15,null,null,null,"",null,null,null,"",0]
[16,null,null,null,"",null,null,null,"",0]
[17,null,null,null,"",null,null,null,"",0]
[18,null,null,null,"",null,null,null,"",0]
[19,null,null,null,"",null,null,null,"",0]
[20,null,null,null,"",null,null,null,"",0]
[21,null,null,null,"",null,null,null,"",0]
[22,null,null,null,"",null,null,null,"",0]
[23,null,null,null,"",null,null,null,"",0]
[24,null,null,null,"",null,null,null,"",0]
[25,null,null,null,"",null,null,null,"",0]
[26,null,null,null,"",null,null,null,"",0]
[27,null,null,null,"",null,null,null,"",0]
[28,null,null,null,"",null,null,null,"",0]
[29,null,null,null,"",null,null,null,"",0]
[30,null,null,null,"",null,null,null,"",0]